Transaction Date,Local Authority Department,Beneficiary,Purpose of Expenditure,Amount (excluding VAT),Non Recoverable VAT,Merchant Category
 07-03-2022,Adults,John Stanleys Care Agency Ltd,Home Care - Private Contractors Payment,500.00,0.00,COMMERCIAL SUPPLIER 
 16-03-2022,Adults,Lodge Group Care UK Ltd,Home Care - Private Contractors Payment,500.00,0.00,COMMERCIAL SUPPLIER 
 07-03-2022,Adults,John Stanleys Care Agency Ltd,Home Care - Private Contractors Payment,500.31,0.00,COMMERCIAL SUPPLIER 
 11-03-2022,Adults,Home Sweet Home Care Ltd,Home Care - Private Contractors Payment,502.17,0.00,COMMERCIAL SUPPLIER 
 16-03-2022,Adults,Cera Care Operations Ltd,Home Care - Private Contractors Payment,502.48,0.00,COMMERCIAL SUPPLIER 
 16-03-2022,Adults,Cera Care Operations Ltd,Home Care - Private Contractors Payment,503.10,0.00,COMMERCIAL SUPPLIER 
 11-03-2022,Adults,Alexander Court Care Centre - Bondcare,Nursing Homes - Private Contractors Payment,504.00,0.00,COMMERCIAL SUPPLIER 
 23-03-2022,Adults,Prior Care Ltd_a,Home Care - Private Contractors Payment,505.69,0.00,COMMERCIAL SUPPLIER 
 16-03-2022,Adults,Lodge Group Care UK Ltd,Home Care - Private Contractors Payment,506.20,0.00,COMMERCIAL SUPPLIER 
 16-03-2022,Adults,Lodge Group Care UK Ltd,Home Care - Private Contractors Payment,506.20,0.00,COMMERCIAL SUPPLIER 
 16-03-2022,Adults,Lodge Group Care UK Ltd,Home Care - Private Contractors Payment,506.82,0.00,COMMERCIAL SUPPLIER 
 11-03-2022,Adults,Topaz Care and Support Co Ltd,Supported Other Accommodation - Private Contractors Payment,507.09,0.00,COMMERCIAL SUPPLIER 
 16-03-2022,Adults,Anytime Care 2020_a,Home Care - Private Contractors Payment,507.12,0.00,COMMERCIAL SUPPLIER 
 16-03-2022,Adults,Lodge Group Care UK Ltd,Home Care - Private Contractors Payment,507.74,0.00,COMMERCIAL SUPPLIER 
 09-03-2022,Adults,Home Support Services (Havering & Essex) Ltd,Home Care - Private Contractors Payment,508.67,0.00,COMMERCIAL SUPPLIER 
 23-03-2022,Adults,Matrix SCM Ltd,Agency Staff,510.40,0.00,COMMERCIAL SUPPLIER 
 11-03-2022,Adults,Home Sweet Home Care Ltd,Home Care - Private Contractors Payment,510.84,0.00,COMMERCIAL SUPPLIER 
 16-03-2022,Adults,Cera Care Operations Ltd,Home Care - Private Contractors Payment,511.57,0.00,COMMERCIAL SUPPLIER 
 02-03-2022,Adults,Prestige Care & Support Ltd,Home Care - Private Contractors Payment,511.77,0.00,COMMERCIAL SUPPLIER 
 16-03-2022,Adults,Lodge Group Care UK Ltd,Home Care - Private Contractors Payment,512.81,0.00,COMMERCIAL SUPPLIER 
 02-03-2022,Adults,Prestige Care & Support Ltd,Home Care - Private Contractors Payment,513.32,0.00,COMMERCIAL SUPPLIER 
 09-03-2022,Adults,Home Support Services (Havering & Essex) Ltd,Home Care - Private Contractors Payment,514.86,0.00,COMMERCIAL SUPPLIER 
 16-03-2022,Adults,Anytime Care 2020_a,Home Care - Private Contractors Payment,514.97,0.00,COMMERCIAL SUPPLIER 
 09-03-2022,Adults,Home Support Services (Havering & Essex) Ltd,Home Care - Private Contractors Payment,514.98,0.00,COMMERCIAL SUPPLIER 
 24-03-2022,Adults,Morepower Ltd t/a Aqs Homecare,Home Care - Private Contractors Payment,515.17,0.00,COMMERCIAL SUPPLIER 
 16-03-2022,Adults,Anytime Care 2020_a,Home Care - Private Contractors Payment,515.79,0.00,COMMERCIAL SUPPLIER 
 01-03-2022,Adults,Mayflower Travel,Client Transport,516.00,0.00,COMMERCIAL SUPPLIER 
 07-03-2022,Adults,John Stanleys Care Agency Ltd,Home Care - Private Contractors Payment,516.10,0.00,COMMERCIAL SUPPLIER 
 11-03-2022,Adults,Oaks Residential Home,Residential Placements - Private Contractors Payment,516.15,0.00,COMMERCIAL SUPPLIER 
 09-03-2022,Adults,Matrix SCM Ltd,Agency Staff,516.60,0.00,COMMERCIAL SUPPLIER 
 23-03-2022,Adults,Matrix SCM Ltd,Agency Staff,516.60,0.00,COMMERCIAL SUPPLIER 
 30-03-2022,Adults,Matrix SCM Ltd,Agency Staff,516.60,0.00,COMMERCIAL SUPPLIER 
 16-03-2022,Adults,Lodge Group Care UK Ltd,Home Care - Private Contractors Payment,516.83,0.00,COMMERCIAL SUPPLIER 
 16-03-2022,Adults,Lodge Group Care UK Ltd,Home Care - Private Contractors Payment,517.03,0.00,COMMERCIAL SUPPLIER 
 23-03-2022,Adults,Prior Care Ltd_a,Home Care - Private Contractors Payment,517.03,0.00,COMMERCIAL SUPPLIER 
 23-03-2022,Adults,Prior Care Ltd_a,Home Care - Private Contractors Payment,517.03,0.00,COMMERCIAL SUPPLIER 
 07-03-2022,Adults,Quality Healthcare Solutions Ltd t/a Kare Plus Romford,Home Care - Private Contractors Payment,517.16,0.00,COMMERCIAL SUPPLIER 
 11-03-2022,Adults,Home Sweet Home Care Ltd,Home Care - Private Contractors Payment,517.65,0.00,COMMERCIAL SUPPLIER 
 24-03-2022,Adults,Morepower Ltd t/a Aqs Homecare,Home Care - Private Contractors Payment,517.96,0.00,COMMERCIAL SUPPLIER 
 16-03-2022,Adults,Cera Care Operations Ltd,Home Care - Private Contractors Payment,518.38,0.00,COMMERCIAL SUPPLIER 
 24-03-2022,Adults,Morepower Ltd t/a Aqs Homecare,Home Care - Private Contractors Payment,518.58,0.00,COMMERCIAL SUPPLIER 
 16-03-2022,Adults,Cera Care Operations Ltd,Home Care - Private Contractors Payment,518.89,0.00,COMMERCIAL SUPPLIER 
 23-03-2022,Adults,Prior Care Ltd_a,Home Care - Private Contractors Payment,519.00,0.00,COMMERCIAL SUPPLIER 
 16-03-2022,Adults,Lodge Group Care UK Ltd,Home Care - Private Contractors Payment,519.51,0.00,COMMERCIAL SUPPLIER 
 30-03-2022,Adults,Matrix SCM Ltd,Agency Staff,519.72,0.00,COMMERCIAL SUPPLIER 
 28-03-2022,Adults,The Camden Society,Daycare - Private Contractors Payment,520.00,0.00,NON COMMERCIAL SUPPLIER 
 11-03-2022,Adults,Home Sweet Home Care Ltd,Home Care - Private Contractors Payment,520.13,0.00,COMMERCIAL SUPPLIER 
 11-03-2022,Adults,Home Sweet Home Care Ltd,Home Care - Private Contractors Payment,520.13,0.00,COMMERCIAL SUPPLIER 
 11-03-2022,Adults,Home Sweet Home Care Ltd,Home Care - Private Contractors Payment,520.13,0.00,COMMERCIAL SUPPLIER 
 11-03-2022,Adults,Home Sweet Home Care Ltd,Home Care - Private Contractors Payment,520.13,0.00,COMMERCIAL SUPPLIER 
 16-03-2022,Adults,Lodge Group Care UK Ltd,Home Care - Private Contractors Payment,520.13,0.00,COMMERCIAL SUPPLIER 
 16-03-2022,Adults,Passion Tree Care Services Ltd,Home Care - Private Contractors Payment,520.13,0.00,COMMERCIAL SUPPLIER 
 16-03-2022,Adults,Passion Tree Care Services Ltd,Home Care - Private Contractors Payment,520.13,0.00,COMMERCIAL SUPPLIER 
 16-03-2022,Adults,Passion Tree Care Services Ltd,Home Care - Private Contractors Payment,520.13,0.00,COMMERCIAL SUPPLIER 
 16-03-2022,Adults,Passion Tree Care Services Ltd,Home Care - Private Contractors Payment,520.13,0.00,COMMERCIAL SUPPLIER 
 16-03-2022,Adults,Passion Tree Care Services Ltd,Home Care - Private Contractors Payment,520.13,0.00,COMMERCIAL SUPPLIER 
 16-03-2022,Adults,Passion Tree Care Services Ltd,Home Care - Private Contractors Payment,520.13,0.00,COMMERCIAL SUPPLIER 
 25-03-2022,Adults,KJD Care Limited,Home Care - Private Contractors Payment,520.13,0.00,INDIVIDUALS 
 28-03-2022,Adults,Outreach Support Services Ltd,Home Care - Private Contractors Payment,520.13,0.00,COMMERCIAL SUPPLIER 
 28-03-2022,Adults,Outreach Support Services Ltd,Home Care - Private Contractors Payment,520.13,0.00,COMMERCIAL SUPPLIER 
 28-03-2022,Adults,Outreach Support Services Ltd,Home Care - Private Contractors Payment,520.13,0.00,COMMERCIAL SUPPLIER 
 28-03-2022,Adults,Outreach Support Services Ltd,Home Care - Private Contractors Payment,520.13,0.00,COMMERCIAL SUPPLIER 
 07-03-2022,Adults,Quality Healthcare Solutions Ltd t/a Kare Plus Romford,Home Care - Private Contractors Payment,521.99,0.00,COMMERCIAL SUPPLIER 
 24-03-2022,Adults,Morepower Ltd t/a Aqs Homecare,Home Care - Private Contractors Payment,523.22,0.00,COMMERCIAL SUPPLIER 
 07-03-2022,Adults,John Stanleys Care Agency Ltd,Home Care - Private Contractors Payment,523.53,0.00,COMMERCIAL SUPPLIER 
 09-03-2022,Adults,Home Support Services (Havering & Essex) Ltd,Home Care - Private Contractors Payment,523.53,0.00,COMMERCIAL SUPPLIER 
 23-03-2022,Adults,Prior Care Ltd_a,Home Care - Private Contractors Payment,523.84,0.00,COMMERCIAL SUPPLIER 
 09-03-2022,Adults,Home Support Services (Havering & Essex) Ltd,Home Care - Private Contractors Payment,524.15,0.00,COMMERCIAL SUPPLIER 
 16-03-2022,Adults,Anytime Care 2020_a,Home Care - Private Contractors Payment,524.25,0.00,COMMERCIAL SUPPLIER 
 09-03-2022,Adults,Home Support Services (Havering & Essex) Ltd,Home Care - Private Contractors Payment,524.46,0.00,COMMERCIAL SUPPLIER 
 11-03-2022,Adults,GCH - Hillside Nursing Home,Nursing Care Income,525.29,0.00,COMMERCIAL SUPPLIER 
 16-03-2022,Adults,Lodge Group Care UK Ltd,Home Care - Private Contractors Payment,525.39,0.00,COMMERCIAL SUPPLIER 
 11-03-2022,Adults,Home Sweet Home Care Ltd,Home Care - Private Contractors Payment,525.70,0.00,COMMERCIAL SUPPLIER 
 16-03-2022,Adults,Lodge Group Care UK Ltd,Home Care - Private Contractors Payment,526.32,0.00,COMMERCIAL SUPPLIER 
 16-03-2022,Adults,Lodge Group Care UK Ltd,Home Care - Private Contractors Payment,526.94,0.00,COMMERCIAL SUPPLIER 
 02-03-2022,Adults,Matrix SCM Ltd,Agency Staff,527.37,0.00,COMMERCIAL SUPPLIER 
 11-03-2022,Adults,One Tree Estates Ltd t/a Ashbrook Nursing Home,Nursing Homes - Private Contractors Payment,528.00,0.00,COMMERCIAL SUPPLIER 
 09-03-2022,Adults,Home Support Services (Havering & Essex) Ltd,Home Care - Private Contractors Payment,528.49,0.00,COMMERCIAL SUPPLIER 
 16-03-2022,Adults,Lodge Group Care UK Ltd,Home Care - Private Contractors Payment,528.80,0.00,COMMERCIAL SUPPLIER 
 23-03-2022,Adults,Prior Care Ltd_a,Home Care - Private Contractors Payment,528.80,0.00,COMMERCIAL SUPPLIER 
 09-03-2022,Adults,Home Support Services (Havering & Essex) Ltd,Home Care - Private Contractors Payment,529.11,0.00,COMMERCIAL SUPPLIER 
 07-03-2022,Adults,Quality Healthcare Solutions Ltd t/a Kare Plus Romford,Home Care - Private Contractors Payment,529.42,0.00,COMMERCIAL SUPPLIER 
 09-03-2022,Adults,Home Support Services (Havering & Essex) Ltd,Home Care - Private Contractors Payment,529.42,0.00,COMMERCIAL SUPPLIER 
 09-03-2022,Adults,Home Support Services (Havering & Essex) Ltd,Home Care - Private Contractors Payment,530.04,0.00,COMMERCIAL SUPPLIER 
 16-03-2022,Adults,Lodge Group Care UK Ltd,Home Care - Private Contractors Payment,530.65,0.00,COMMERCIAL SUPPLIER 
 16-03-2022,Adults,Lodge Group Care UK Ltd,Home Care - Private Contractors Payment,530.96,0.00,COMMERCIAL SUPPLIER 
 16-03-2022,Adults,Lodge Group Care UK Ltd,Home Care - Private Contractors Payment,531.27,0.00,COMMERCIAL SUPPLIER 
 02-03-2022,Adults,Matrix SCM Ltd,Agency Staff,532.20,0.00,COMMERCIAL SUPPLIER 
 16-03-2022,Adults,Lodge Group Care UK Ltd,Home Care - Private Contractors Payment,532.20,0.00,COMMERCIAL SUPPLIER 
 30-03-2022,Adults,Matrix SCM Ltd,Agency Staff,532.20,0.00,COMMERCIAL SUPPLIER 
 11-03-2022,Adults,Fountains Care Centre - Bondcare,Residential Placements - Private Contractors Payment,533.71,0.00,COMMERCIAL SUPPLIER 
 11-03-2022,Adults,Alexander Court Care Centre - Bondcare,Nursing Homes - Private Contractors Payment,533.71,0.00,COMMERCIAL SUPPLIER 
 16-03-2022,Adults,Lodge Group Care UK Ltd,Home Care - Private Contractors Payment,533.75,0.00,COMMERCIAL SUPPLIER 
 16-03-2022,Adults,Cera Care Operations Ltd,Home Care - Private Contractors Payment,533.75,0.00,COMMERCIAL SUPPLIER 
 16-03-2022,Adults,Lodge Group Care UK Ltd,Home Care - Private Contractors Payment,534.06,0.00,COMMERCIAL SUPPLIER 
 11-03-2022,Adults,Affinia Healthcare Ltd_a,Supported Other Accommodation - Private Contractors Payment,535.80,0.00,COMMERCIAL SUPPLIER 
 16-03-2022,Adults,Anytime Care 2020_a,Home Care - Private Contractors Payment,535.92,0.00,COMMERCIAL SUPPLIER 
 16-03-2022,Adults,Anytime Care 2020_a,Home Care - Private Contractors Payment,536.54,0.00,COMMERCIAL SUPPLIER 
 16-03-2022,Adults,Lodge Group Care UK Ltd,Home Care - Private Contractors Payment,536.54,0.00,COMMERCIAL SUPPLIER 
 16-03-2022,Adults,Cera Care Operations Ltd,Home Care - Private Contractors Payment,536.54,0.00,COMMERCIAL SUPPLIER 
 02-03-2022,Adults,Prestige Care & Support Ltd,Home Care - Private Contractors Payment,538.70,0.00,COMMERCIAL SUPPLIER 
 11-03-2022,Adults,Paradise Independent Living,Supported Other Accommodation - Private Contractors Payment,538.82,0.00,NON COMMERCIAL SUPPLIER 
 16-03-2022,Adults,Anytime Care 2020_a,Home Care - Private Contractors Payment,539.32,0.00,COMMERCIAL SUPPLIER 
 16-03-2022,Adults,Lodge Group Care UK Ltd,Home Care - Private Contractors Payment,539.32,0.00,COMMERCIAL SUPPLIER 
 11-03-2022,Adults,May Residential Homes Ltd,Residential Care Income,539.51,0.00,COMMERCIAL SUPPLIER 
 07-03-2022,Adults,All Therapy Solutions Ltd,Occupational Health,540.00,0.00,COMMERCIAL SUPPLIER 
 03-03-2022,Adults,Care-Away Ltd T/A Care Support,Home Care - Private Contractors Payment,540.80,0.00,COMMERCIAL SUPPLIER 
 11-03-2022,Adults,Home Sweet Home Care Ltd,Home Care - Private Contractors Payment,543.04,0.00,COMMERCIAL SUPPLIER 
 07-03-2022,Adults,Quality Healthcare Solutions Ltd t/a Kare Plus Romford,Home Care - Private Contractors Payment,543.16,0.00,COMMERCIAL SUPPLIER 
 24-03-2022,Adults,Morepower Ltd t/a Aqs Homecare,Home Care - Private Contractors Payment,543.66,0.00,COMMERCIAL SUPPLIER 
 16-03-2022,Adults,Anytime Care 2020_a,Home Care - Private Contractors Payment,543.97,0.00,COMMERCIAL SUPPLIER 
 24-03-2022,Adults,Morepower Ltd t/a Aqs Homecare,Home Care - Private Contractors Payment,543.97,0.00,COMMERCIAL SUPPLIER 
 09-03-2022,Adults,Home Support Services (Havering & Essex) Ltd,Home Care - Private Contractors Payment,544.59,0.00,COMMERCIAL SUPPLIER 
 16-03-2022,Adults,Lodge Group Care UK Ltd,Home Care - Private Contractors Payment,544.90,0.00,COMMERCIAL SUPPLIER 
 23-03-2022,Adults,Prior Care Ltd_a,Home Care - Private Contractors Payment,544.90,0.00,COMMERCIAL SUPPLIER 
 09-03-2022,Adults,Home Support Services (Havering & Essex) Ltd,Home Care - Private Contractors Payment,545.21,0.00,COMMERCIAL SUPPLIER 
 09-03-2022,Adults,Matrix SCM Ltd,Agency Staff,545.74,0.00,COMMERCIAL SUPPLIER 
 23-03-2022,Adults,Prior Care Ltd_a,Home Care - Private Contractors Payment,547.06,0.00,COMMERCIAL SUPPLIER 
 24-03-2022,Adults,Morepower Ltd t/a Aqs Homecare,Home Care - Private Contractors Payment,547.23,0.00,COMMERCIAL SUPPLIER 
 02-03-2022,Adults,Prestige Care & Support Ltd,Home Care - Private Contractors Payment,547.48,0.00,COMMERCIAL SUPPLIER 
 16-03-2022,Adults,Lodge Group Care UK Ltd,Home Care - Private Contractors Payment,547.68,0.00,COMMERCIAL SUPPLIER 
 16-03-2022,Adults,Matrix SCM Ltd,Agency Staff,548.10,0.00,COMMERCIAL SUPPLIER 
 17-03-2022,Adults,Fisk Group,Catering And Vending Supplies,549.50,0.00,COMMERCIAL SUPPLIER 
 16-03-2022,Adults,Lodge Group Care UK Ltd,Home Care - Private Contractors Payment,549.97,0.00,COMMERCIAL SUPPLIER 
 09-03-2022,Adults,Matrix SCM Ltd,Agency Staff,551.00,0.00,COMMERCIAL SUPPLIER 
 22-03-2022,Adults,Crystalize Care Services,Other Short Term Support,551.00,0.00,COMMERCIAL SUPPLIER 
 22-03-2022,Adults,Mevtec 360 Locum Ltd,Other Short Term Support,551.00,0.00,COMMERCIAL SUPPLIER 
 16-03-2022,Adults,Cera Care Operations Ltd,Home Care - Private Contractors Payment,551.20,0.00,COMMERCIAL SUPPLIER 
 16-03-2022,Adults,Lodge Group Care UK Ltd,Home Care - Private Contractors Payment,551.71,0.00,COMMERCIAL SUPPLIER 
 07-03-2022,Adults,John Stanleys Care Agency Ltd,Home Care - Private Contractors Payment,552.02,0.00,COMMERCIAL SUPPLIER 
 16-03-2022,Adults,Lodge Group Care UK Ltd,Home Care - Private Contractors Payment,552.02,0.00,COMMERCIAL SUPPLIER 
 23-03-2022,Adults,Prior Care Ltd_a,Home Care - Private Contractors Payment,552.33,0.00,COMMERCIAL SUPPLIER 
 09-03-2022,Adults,Home Support Services (Havering & Essex) Ltd,Home Care - Private Contractors Payment,552.95,0.00,COMMERCIAL SUPPLIER 
 09-03-2022,Adults,Home Support Services (Havering & Essex) Ltd,Home Care - Private Contractors Payment,553.38,0.00,COMMERCIAL SUPPLIER 
 09-03-2022,Adults,Home Support Services (Havering & Essex) Ltd,Home Care - Private Contractors Payment,555.11,0.00,COMMERCIAL SUPPLIER 
 16-03-2022,Adults,Lodge Group Care UK Ltd,Home Care - Private Contractors Payment,556.48,0.00,COMMERCIAL SUPPLIER 
 11-03-2022,Adults,Home Sweet Home Care Ltd,Home Care - Private Contractors Payment,557.28,0.00,COMMERCIAL SUPPLIER 
 29-03-2022,Adults,London Homecare Ltd,Home Care - Private Contractors Payment,557.28,0.00,COMMERCIAL SUPPLIER 
 30-03-2022,Adults,Matrix SCM Ltd,Agency Staff,557.76,0.00,COMMERCIAL SUPPLIER 
 16-03-2022,Adults,Anytime Care 2020_a,Home Care - Private Contractors Payment,558.02,0.00,COMMERCIAL SUPPLIER 
 16-03-2022,Adults,Cera Care Operations Ltd,Home Care - Private Contractors Payment,558.52,0.00,COMMERCIAL SUPPLIER 
 23-03-2022,Adults,Prior Care Ltd_a,Home Care - Private Contractors Payment,558.63,0.00,COMMERCIAL SUPPLIER 
 16-03-2022,Adults,Lodge Group Care UK Ltd,Home Care - Private Contractors Payment,559.14,0.00,COMMERCIAL SUPPLIER 
 07-03-2022,Adults,John Stanleys Care Agency Ltd,Home Care - Private Contractors Payment,559.76,0.00,COMMERCIAL SUPPLIER 
 16-03-2022,Adults,Lodge Group Care UK Ltd,Home Care - Private Contractors Payment,559.76,0.00,COMMERCIAL SUPPLIER 
 23-03-2022,Adults,Prior Care Ltd_a,Home Care - Private Contractors Payment,560.18,0.00,COMMERCIAL SUPPLIER 
 23-03-2022,Adults,Prior Care Ltd_a,Home Care - Private Contractors Payment,560.38,0.00,COMMERCIAL SUPPLIER 
 16-03-2022,Adults,Lodge Group Care UK Ltd,Home Care - Private Contractors Payment,561.00,0.00,COMMERCIAL SUPPLIER 
 16-03-2022,Adults,Lodge Group Care UK Ltd,Home Care - Private Contractors Payment,561.00,0.00,COMMERCIAL SUPPLIER 
 16-03-2022,Adults,Cera Care Operations Ltd,Home Care - Private Contractors Payment,561.00,0.00,COMMERCIAL SUPPLIER 
 11-03-2022,Adults,Home Sweet Home Care Ltd,Home Care - Private Contractors Payment,561.92,0.00,COMMERCIAL SUPPLIER 
 11-03-2022,Adults,Home Sweet Home Care Ltd,Home Care - Private Contractors Payment,561.92,0.00,COMMERCIAL SUPPLIER 
 16-03-2022,Adults,Lodge Group Care UK Ltd,Home Care - Private Contractors Payment,561.92,0.00,COMMERCIAL SUPPLIER 
 16-03-2022,Adults,Lodge Group Care UK Ltd,Home Care - Private Contractors Payment,562.23,0.00,COMMERCIAL SUPPLIER 
 09-03-2022,Adults,Home Support Services (Havering & Essex) Ltd,Home Care - Private Contractors Payment,562.66,0.00,COMMERCIAL SUPPLIER 
 16-03-2022,Adults,Matrix SCM Ltd,Agency Staff,563.37,0.00,COMMERCIAL SUPPLIER 
 02-03-2022,Adults,Prestige Care & Support Ltd,Home Care - Private Contractors Payment,563.47,0.00,COMMERCIAL SUPPLIER 
 02-03-2022,Adults,Prestige Care & Support Ltd,Home Care - Private Contractors Payment,563.78,0.00,COMMERCIAL SUPPLIER 
 02-03-2022,Adults,Prestige Care & Support Ltd,Home Care - Private Contractors Payment,563.78,0.00,COMMERCIAL SUPPLIER 
 02-03-2022,Adults,Matrix SCM Ltd,Agency Staff,563.78,0.00,COMMERCIAL SUPPLIER 
 09-03-2022,Adults,Home Support Services (Havering & Essex) Ltd,Home Care - Private Contractors Payment,563.78,0.00,COMMERCIAL SUPPLIER 
 23-03-2022,Adults,Prior Care Ltd_a,Home Care - Private Contractors Payment,564.09,0.00,COMMERCIAL SUPPLIER 
 23-03-2022,Adults,Prior Care Ltd_a,Home Care - Private Contractors Payment,564.09,0.00,COMMERCIAL SUPPLIER 
 11-03-2022,Adults,Home Sweet Home Care Ltd,Home Care - Private Contractors Payment,564.40,0.00,COMMERCIAL SUPPLIER 
 16-03-2022,Adults,Lodge Group Care UK Ltd,Home Care - Private Contractors Payment,564.40,0.00,COMMERCIAL SUPPLIER 
 07-03-2022,Adults,Quality Healthcare Solutions Ltd t/a Kare Plus Romford,Home Care - Private Contractors Payment,565.33,0.00,COMMERCIAL SUPPLIER 
 09-03-2022,Adults,Home Support Services (Havering & Essex) Ltd,Home Care - Private Contractors Payment,565.44,0.00,COMMERCIAL SUPPLIER 
 11-03-2022,Adults,Home Sweet Home Care Ltd,Home Care - Private Contractors Payment,565.64,0.00,COMMERCIAL SUPPLIER 
 16-03-2022,Adults,Lodge Group Care UK Ltd,Home Care - Private Contractors Payment,566.57,0.00,COMMERCIAL SUPPLIER 
 07-03-2022,Adults,John Stanleys Care Agency Ltd,Home Care - Private Contractors Payment,567.19,0.00,COMMERCIAL SUPPLIER 
 09-03-2022,Adults,Matrix SCM Ltd,Agency Staff,567.70,0.00,COMMERCIAL SUPPLIER 
 11-03-2022,Adults,Leonard Cheshire Disability_a.,Residential Placements - Private Contractors Payment,567.74,0.00,COMMERCIAL SUPPLIER 
 09-03-2022,Adults,Home Support Services (Havering & Essex) Ltd,Home Care - Private Contractors Payment,567.91,0.00,COMMERCIAL SUPPLIER 
 11-03-2022,Adults,Home Sweet Home Care Ltd,Home Care - Private Contractors Payment,568.12,0.00,COMMERCIAL SUPPLIER 
 24-03-2022,Adults,Morepower Ltd t/a Aqs Homecare,Home Care - Private Contractors Payment,568.43,0.00,COMMERCIAL SUPPLIER 
 07-03-2022,Adults,John Stanleys Care Agency Ltd,Home Care - Private Contractors Payment,569.97,0.00,COMMERCIAL SUPPLIER 
 23-03-2022,Adults,Prior Care Ltd_a,Home Care - Private Contractors Payment,569.97,0.00,COMMERCIAL SUPPLIER 
 16-03-2022,Adults,Lodge Group Care UK Ltd,Home Care - Private Contractors Payment,570.28,0.00,COMMERCIAL SUPPLIER 
 11-03-2022,Adults,Home Sweet Home Care Ltd,Home Care - Private Contractors Payment,570.59,0.00,COMMERCIAL SUPPLIER 
 02-03-2022,Adults,Prestige Care & Support Ltd,Home Care - Private Contractors Payment,571.21,0.00,COMMERCIAL SUPPLIER 
 24-03-2022,Adults,Morepower Ltd t/a Aqs Homecare,Home Care - Private Contractors Payment,573.07,0.00,COMMERCIAL SUPPLIER 
 09-03-2022,Adults,Home Support Services (Havering & Essex) Ltd,Home Care - Private Contractors Payment,573.69,0.00,COMMERCIAL SUPPLIER 
 08-03-2022,Adults,R G Care Ltd ,Other Short Term Support,575.00,0.00,COMMERCIAL SUPPLIER 
 08-03-2022,Adults,R G Care Ltd ,Other Short Term Support,575.00,0.00,COMMERCIAL SUPPLIER 
 16-03-2022,Adults,Anytime Care 2020_a,Home Care - Private Contractors Payment,575.05,0.00,COMMERCIAL SUPPLIER 
 07-03-2022,Adults,John Stanleys Care Agency Ltd,Home Care - Private Contractors Payment,575.24,0.00,COMMERCIAL SUPPLIER 
 16-03-2022,Adults,Cera Care Operations Ltd,Home Care - Private Contractors Payment,575.86,0.00,COMMERCIAL SUPPLIER 
 07-03-2022,Adults,John Stanleys Care Agency Ltd,Home Care - Private Contractors Payment,576.48,0.00,COMMERCIAL SUPPLIER 
 16-03-2022,Adults,Lodge Group Care UK Ltd,Home Care - Private Contractors Payment,576.48,0.00,COMMERCIAL SUPPLIER 
 02-03-2022,Adults,Prestige Care & Support Ltd,Home Care - Private Contractors Payment,577.71,0.00,COMMERCIAL SUPPLIER 
 02-03-2022,Adults,Care-Away Ltd T/A Care Support,Home Care - Private Contractors Payment,578.24,0.00,COMMERCIAL SUPPLIER 
 11-03-2022,Adults,Home Sweet Home Care Ltd,Home Care - Private Contractors Payment,580.19,0.00,COMMERCIAL SUPPLIER 
 16-03-2022,Adults,Cera Care Operations Ltd,Home Care - Private Contractors Payment,581.43,0.00,COMMERCIAL SUPPLIER 
 23-03-2022,Adults,Prior Care Ltd_a,Home Care - Private Contractors Payment,581.43,0.00,COMMERCIAL SUPPLIER 
 16-03-2022,Adults,Anytime Care 2020_a,Home Care - Private Contractors Payment,581.55,0.00,COMMERCIAL SUPPLIER 
 30-03-2022,Adults,Matrix SCM Ltd,Agency Staff,581.64,0.00,COMMERCIAL SUPPLIER 
 16-03-2022,Adults,Anytime Care 2020_a,Home Care - Private Contractors Payment,581.85,0.00,COMMERCIAL SUPPLIER 
 09-03-2022,Adults,Home Support Services (Havering & Essex) Ltd,Home Care - Private Contractors Payment,582.05,0.00,COMMERCIAL SUPPLIER 
 16-03-2022,Adults,Lodge Group Care UK Ltd,Home Care - Private Contractors Payment,582.36,0.00,COMMERCIAL SUPPLIER 
 02-03-2022,Adults,Care-Away Ltd T/A Care Support,Home Care - Private Contractors Payment,582.40,0.00,COMMERCIAL SUPPLIER 
 02-03-2022,Adults,Care-Away Ltd T/A Care Support,Home Care - Private Contractors Payment,582.40,0.00,COMMERCIAL SUPPLIER 
 03-03-2022,Adults,Care-Away Ltd T/A Care Support,Home Care - Private Contractors Payment,582.40,0.00,COMMERCIAL SUPPLIER 
 30-03-2022,Adults,Matrix SCM Ltd,Agency Staff,583.33,0.00,COMMERCIAL SUPPLIER 
 23-03-2022,Adults,Matrix SCM Ltd,Agency Staff,583.44,0.00,COMMERCIAL SUPPLIER 
 09-03-2022,Adults,Home Support Services (Havering & Essex) Ltd,Home Care - Private Contractors Payment,583.60,0.00,COMMERCIAL SUPPLIER 
 02-03-2022,Adults,Prestige Care & Support Ltd,Home Care - Private Contractors Payment,584.22,0.00,COMMERCIAL SUPPLIER 
 16-03-2022,Adults,Lodge Group Care UK Ltd,Home Care - Private Contractors Payment,584.52,0.00,COMMERCIAL SUPPLIER 
 23-03-2022,Adults,Prior Care Ltd_a,Home Care - Private Contractors Payment,584.52,0.00,COMMERCIAL SUPPLIER 
 11-03-2022,Adults,Alexander Court Care Centre - Bondcare,Nursing Care Income,585.64,0.00,COMMERCIAL SUPPLIER 
 09-03-2022,Adults,Home Support Services (Havering & Essex) Ltd,Home Care - Private Contractors Payment,586.38,0.00,COMMERCIAL SUPPLIER 
 16-03-2022,Adults,Lodge Group Care UK Ltd,Home Care - Private Contractors Payment,586.69,0.00,COMMERCIAL SUPPLIER 
 16-03-2022,Adults,Cera Care Operations Ltd,Home Care - Private Contractors Payment,587.62,0.00,COMMERCIAL SUPPLIER 
 11-03-2022,Adults,Nightingale Residential Care Home Ltd,Residential Care Income,590.36,0.00,COMMERCIAL SUPPLIER 
 09-03-2022,Adults,Home Support Services (Havering & Essex) Ltd,Home Care - Private Contractors Payment,591.03,0.00,COMMERCIAL SUPPLIER 
 16-03-2022,Adults,Lodge Group Care UK Ltd,Home Care - Private Contractors Payment,594.12,0.00,COMMERCIAL SUPPLIER 
 16-03-2022,Adults,Anytime Care 2020_a,Home Care - Private Contractors Payment,594.43,0.00,COMMERCIAL SUPPLIER 
 25-03-2022,Adults,KJD Care Limited,Home Care - Private Contractors Payment,594.43,0.00,INDIVIDUALS 
 30-03-2022,Adults,Crystalize Care Services,Home Care - Private Contractors Payment,594.43,0.00,COMMERCIAL SUPPLIER 
 30-03-2022,Adults,Crystalize Care Services,Home Care - Private Contractors Payment,594.43,0.00,COMMERCIAL SUPPLIER 
 02-03-2022,Adults,Prestige Care & Support Ltd,Home Care - Private Contractors Payment,594.84,0.00,COMMERCIAL SUPPLIER 
 23-03-2022,Adults,Prior Care Ltd_a,Home Care - Private Contractors Payment,595.67,0.00,COMMERCIAL SUPPLIER 
 11-03-2022,Adults,Havering Care Homes Ltd t/a Abbscross Nursing Home,Respite Care - Private Contractors Payment,596.00,0.00,COMMERCIAL SUPPLIER 
 11-03-2022,Adults,Outlook Care - 76 Neave Crescent,Supported Other Accommodation - Private Contractors Payment,596.36,0.00,COMMERCIAL SUPPLIER 
 02-03-2022,Adults,Matrix SCM Ltd,Agency Staff,596.51,0.00,COMMERCIAL SUPPLIER 
 23-03-2022,Adults,Matrix SCM Ltd,Agency Staff,596.51,0.00,COMMERCIAL SUPPLIER 
 30-03-2022,Adults,Matrix SCM Ltd,Agency Staff,596.51,0.00,COMMERCIAL SUPPLIER 
 02-03-2022,Adults,Matrix SCM Ltd,Agency Staff,596.75,0.00,COMMERCIAL SUPPLIER 
 16-03-2022,Adults,Lodge Group Care UK Ltd,Home Care - Private Contractors Payment,597.22,0.00,COMMERCIAL SUPPLIER 
 02-03-2022,Adults,Prestige Care & Support Ltd,Home Care - Private Contractors Payment,598.15,0.00,COMMERCIAL SUPPLIER 
 09-03-2022,Adults,Home Support Services (Havering & Essex) Ltd,Home Care - Private Contractors Payment,598.26,0.00,COMMERCIAL SUPPLIER 
 16-03-2022,Adults,Lodge Group Care UK Ltd,Home Care - Private Contractors Payment,599.39,0.00,COMMERCIAL SUPPLIER 
 25-03-2022,Adults,KJD Care Limited,Home Care - Private Contractors Payment,599.86,0.00,INDIVIDUALS 
 01-03-2022,Adults,Star Mini Cabs.,Client Transport,600.00,0.00,COMMERCIAL SUPPLIER 
 16-03-2022,Adults,Euroloos Limited,Premises Hire - Facilities,600.00,0.00,NON COMMERCIAL SUPPLIER 
 21-03-2022,Adults,All Therapy Solutions Ltd,Occupational Health,600.00,0.00,COMMERCIAL SUPPLIER 
 02-03-2022,Adults,Prestige Care & Support Ltd,Home Care - Private Contractors Payment,600.31,0.00,COMMERCIAL SUPPLIER 
 16-03-2022,Adults,Lodge Group Care UK Ltd,Home Care - Private Contractors Payment,602.48,0.00,COMMERCIAL SUPPLIER 
 16-03-2022,Adults,Anytime Care 2020_a,Home Care - Private Contractors Payment,602.63,0.00,COMMERCIAL SUPPLIER 
 09-03-2022,Adults,Home Support Services (Havering & Essex) Ltd,Home Care - Private Contractors Payment,603.10,0.00,COMMERCIAL SUPPLIER 
 16-03-2022,Adults,Lodge Group Care UK Ltd,Home Care - Private Contractors Payment,603.72,0.00,COMMERCIAL SUPPLIER 
 02-03-2022,Adults,Prestige Care & Support Ltd,Home Care - Private Contractors Payment,604.65,0.00,COMMERCIAL SUPPLIER 
 28-03-2022,Adults,Tapestry_a.,Daycare - Private Contractors Payment,605.00,0.00,COMMERCIAL SUPPLIER 
 07-03-2022,Adults,Quality Healthcare Solutions Ltd t/a Kare Plus Romford,Home Care - Private Contractors Payment,605.58,0.00,COMMERCIAL SUPPLIER 
 02-03-2022,Adults,Matrix SCM Ltd,Agency Staff,605.89,0.00,COMMERCIAL SUPPLIER 
 09-03-2022,Adults,Matrix SCM Ltd,Agency Staff,605.89,0.00,COMMERCIAL SUPPLIER 
 16-03-2022,Adults,Matrix SCM Ltd,Agency Staff,605.89,0.00,COMMERCIAL SUPPLIER 
 23-03-2022,Adults,Matrix SCM Ltd,Agency Staff,605.89,0.00,COMMERCIAL SUPPLIER 
 30-03-2022,Adults,Matrix SCM Ltd,Agency Staff,605.89,0.00,COMMERCIAL SUPPLIER 
 02-03-2022,Adults,Matrix SCM Ltd,Agency Staff,606.05,0.00,COMMERCIAL SUPPLIER 
 09-03-2022,Adults,Matrix SCM Ltd,Agency Staff,606.05,0.00,COMMERCIAL SUPPLIER 
 16-03-2022,Adults,Matrix SCM Ltd,Agency Staff,606.05,0.00,COMMERCIAL SUPPLIER 
 02-03-2022,Adults,Care-Away Ltd T/A Care Support,Home Care - Private Contractors Payment,606.17,0.00,COMMERCIAL SUPPLIER 
 16-03-2022,Adults,Lodge Group Care UK Ltd,Home Care - Private Contractors Payment,606.20,0.00,COMMERCIAL SUPPLIER 
 11-03-2022,Adults,GCH - Hillside Nursing Home,Nursing Care Income,606.88,0.00,COMMERCIAL SUPPLIER 
 02-03-2022,Adults,Prestige Care & Support Ltd,Home Care - Private Contractors Payment,607.13,0.00,COMMERCIAL SUPPLIER 
 16-03-2022,Adults,Anytime Care 2020_a,Home Care - Private Contractors Payment,607.56,0.00,COMMERCIAL SUPPLIER 
 16-03-2022,Adults,Cera Care Operations Ltd,Home Care - Private Contractors Payment,607.74,0.00,COMMERCIAL SUPPLIER 
 16-03-2022,Adults,Lodge Group Care UK Ltd,Home Care - Private Contractors Payment,608.36,0.00,COMMERCIAL SUPPLIER 
 11-03-2022,Adults,One Tree Estates Ltd t/a Ashbrook Nursing Home,Nursing Care Income,608.80,0.00,COMMERCIAL SUPPLIER 
 11-03-2022,Adults,One Tree Estates Ltd t/a Ashbrook Nursing Home,Nursing Care Income,608.80,0.00,COMMERCIAL SUPPLIER 
 11-03-2022,Adults,One Tree Estates Ltd t/a Ashbrook Nursing Home,Nursing Care Income,608.80,0.00,COMMERCIAL SUPPLIER 
 11-03-2022,Adults,One Tree Estates Ltd t/a Ashbrook Nursing Home,Nursing Care Income,608.80,0.00,COMMERCIAL SUPPLIER 
 11-03-2022,Adults,One Tree Estates Ltd t/a Ashbrook Nursing Home,Nursing Care Income,608.80,0.00,COMMERCIAL SUPPLIER 
 09-03-2022,Adults,Matrix SCM Ltd,Agency Staff,610.96,0.00,COMMERCIAL SUPPLIER 
 11-03-2022,Adults,GCH - Hillside Nursing Home,Nursing Care Income,612.84,0.00,COMMERCIAL SUPPLIER 
 02-03-2022,Adults,Prestige Care & Support Ltd,Home Care - Private Contractors Payment,613.01,0.00,COMMERCIAL SUPPLIER 
 16-03-2022,Adults,Lodge Group Care UK Ltd,Home Care - Private Contractors Payment,613.94,0.00,COMMERCIAL SUPPLIER 
 02-03-2022,Adults,Matrix SCM Ltd,Agency Staff,614.18,0.00,COMMERCIAL SUPPLIER 
 09-03-2022,Adults,Matrix SCM Ltd,Agency Staff,614.18,0.00,COMMERCIAL SUPPLIER 
 16-03-2022,Adults,Matrix SCM Ltd,Agency Staff,614.18,0.00,COMMERCIAL SUPPLIER 
 23-03-2022,Adults,Matrix SCM Ltd,Agency Staff,614.18,0.00,COMMERCIAL SUPPLIER 
 16-03-2022,Adults,Lodge Group Care UK Ltd,Home Care - Private Contractors Payment,614.56,0.00,COMMERCIAL SUPPLIER 
 07-03-2022,Adults,John Stanleys Care Agency Ltd,Home Care - Private Contractors Payment,614.87,0.00,COMMERCIAL SUPPLIER 
 11-03-2022,Adults,Home Sweet Home Care Ltd,Home Care - Private Contractors Payment,614.87,0.00,COMMERCIAL SUPPLIER 
 16-03-2022,Adults,Cera Care Operations Ltd,Home Care - Private Contractors Payment,614.87,0.00,COMMERCIAL SUPPLIER 
 07-03-2022,Adults,Quality Healthcare Solutions Ltd t/a Kare Plus Romford,Home Care - Private Contractors Payment,615.18,0.00,COMMERCIAL SUPPLIER 
 07-03-2022,Adults,John Stanleys Care Agency Ltd,Home Care - Private Contractors Payment,615.18,0.00,COMMERCIAL SUPPLIER 
 30-03-2022,Adults,Matrix SCM Ltd,Agency Staff,615.97,0.00,COMMERCIAL SUPPLIER 
 16-03-2022,Adults,Matrix SCM Ltd,Agency Staff,616.42,0.00,COMMERCIAL SUPPLIER 
 11-03-2022,Adults,Barleycroft Care Home Ltd,Nursing Care Income,616.66,0.00,COMMERCIAL SUPPLIER 
 30-03-2022,Adults,Matrix SCM Ltd,Agency Staff,617.10,0.00,COMMERCIAL SUPPLIER 
 02-03-2022,Adults,Matrix SCM Ltd,Agency Staff,618.45,0.00,COMMERCIAL SUPPLIER 
 02-03-2022,Adults,Matrix SCM Ltd,Agency Staff,618.45,0.00,COMMERCIAL SUPPLIER 
 09-03-2022,Adults,Home Support Services (Havering & Essex) Ltd,Home Care - Private Contractors Payment,618.71,0.00,COMMERCIAL SUPPLIER 
 16-03-2022,Adults,Anytime Care 2020_a,Home Care - Private Contractors Payment,619.20,0.00,COMMERCIAL SUPPLIER 
 16-03-2022,Adults,Lodge Group Care UK Ltd,Home Care - Private Contractors Payment,619.20,0.00,COMMERCIAL SUPPLIER 
 16-03-2022,Adults,Lodge Group Care UK Ltd,Home Care - Private Contractors Payment,619.51,0.00,COMMERCIAL SUPPLIER 
 23-03-2022,Adults,Action First Assessments Ltd,Private Contractors Payment - Other,620.00,0.00,COMMERCIAL SUPPLIER 
 09-03-2022,Adults,Matrix SCM Ltd,Agency Staff,621.88,0.00,COMMERCIAL SUPPLIER 
 16-03-2022,Adults,Lodge Group Care UK Ltd,Home Care - Private Contractors Payment,621.99,0.00,COMMERCIAL SUPPLIER 
 16-03-2022,Adults,Cera Care Operations Ltd,Home Care - Private Contractors Payment,621.99,0.00,COMMERCIAL SUPPLIER 
 09-03-2022,Adults,Home Support Services (Havering & Essex) Ltd,Home Care - Private Contractors Payment,622.92,0.00,COMMERCIAL SUPPLIER 
 09-03-2022,Adults,Matrix SCM Ltd,Agency Staff,623.20,0.00,COMMERCIAL SUPPLIER 
 16-03-2022,Adults,Lodge Group Care UK Ltd,Home Care - Private Contractors Payment,623.22,0.00,COMMERCIAL SUPPLIER 
 09-03-2022,Adults,Home Support Services (Havering & Essex) Ltd,Home Care - Private Contractors Payment,624.15,0.00,COMMERCIAL SUPPLIER 
 11-03-2022,Adults,Home Sweet Home Care Ltd,Home Care - Private Contractors Payment,624.28,0.00,COMMERCIAL SUPPLIER 
 09-03-2022,Adults,Home Support Services (Havering & Essex) Ltd,Home Care - Private Contractors Payment,625.39,0.00,COMMERCIAL SUPPLIER 
 02-03-2022,Adults,Prestige Care & Support Ltd,Home Care - Private Contractors Payment,626.01,0.00,COMMERCIAL SUPPLIER 
 16-03-2022,Adults,Lodge Group Care UK Ltd,Home Care - Private Contractors Payment,627.87,0.00,COMMERCIAL SUPPLIER 
 16-03-2022,Adults,Cera Care Operations Ltd,Home Care - Private Contractors Payment,628.18,0.00,COMMERCIAL SUPPLIER 
 16-03-2022,Adults,Matrix SCM Ltd,Agency Staff,628.32,0.00,COMMERCIAL SUPPLIER 
 02-03-2022,Adults,Prestige Care & Support Ltd,Home Care - Private Contractors Payment,628.49,0.00,COMMERCIAL SUPPLIER 
 16-03-2022,Adults,Lodge Group Care UK Ltd,Home Care - Private Contractors Payment,628.62,0.00,COMMERCIAL SUPPLIER 
 11-03-2022,Adults,Home Sweet Home Care Ltd,Home Care - Private Contractors Payment,629.11,0.00,COMMERCIAL SUPPLIER 
 16-03-2022,Adults,Lodge Group Care UK Ltd,Home Care - Private Contractors Payment,629.73,0.00,COMMERCIAL SUPPLIER 
 09-03-2022,Adults,Treal Care Limited,Home Care - Private Contractors Payment,630.00,0.00,COMMERCIAL SUPPLIER 
 22-03-2022,Adults,Eveshel Care Ltd,Other Short Term Support,630.00,0.00,COMMERCIAL SUPPLIER 
 02-03-2022,Adults,Prestige Care & Support Ltd,Home Care - Private Contractors Payment,630.66,0.00,COMMERCIAL SUPPLIER 
 02-03-2022,Adults,Prestige Care & Support Ltd,Home Care - Private Contractors Payment,630.96,0.00,COMMERCIAL SUPPLIER 
 11-03-2022,Adults,Home Sweet Home Care Ltd,Home Care - Private Contractors Payment,631.27,0.00,COMMERCIAL SUPPLIER 
 25-03-2022,Adults,KJD Care Limited,Home Care - Private Contractors Payment,631.58,0.00,INDIVIDUALS 
 25-03-2022,Adults,KJD Care Limited,Home Care - Private Contractors Payment,631.58,0.00,INDIVIDUALS 
 28-03-2022,Adults,London Care Plc_a,Home Care - Private Contractors Payment,632.51,0.00,COMMERCIAL SUPPLIER 
 16-03-2022,Adults,Cera Care Operations Ltd,Home Care - Private Contractors Payment,633.13,0.00,COMMERCIAL SUPPLIER 
 02-03-2022,Adults,Matrix SCM Ltd,Agency Staff,633.60,0.00,COMMERCIAL SUPPLIER 
 09-03-2022,Adults,Matrix SCM Ltd,Agency Staff,633.60,0.00,COMMERCIAL SUPPLIER 
 16-03-2022,Adults,Matrix SCM Ltd,Agency Staff,633.60,0.00,COMMERCIAL SUPPLIER 
 30-03-2022,Adults,Matrix SCM Ltd,Agency Staff,633.60,0.00,COMMERCIAL SUPPLIER 
 07-03-2022,Adults,John Stanleys Care Agency Ltd,Home Care - Private Contractors Payment,634.06,0.00,COMMERCIAL SUPPLIER 
 16-03-2022,Adults,Lodge Group Care UK Ltd,Home Care - Private Contractors Payment,634.37,0.00,COMMERCIAL SUPPLIER 
 09-03-2022,Adults,Matrix SCM Ltd,Agency Staff,634.80,0.00,COMMERCIAL SUPPLIER 
 28-03-2022,Adults,London Care Plc_a,Home Care - Private Contractors Payment,635.74,0.00,COMMERCIAL SUPPLIER 
 07-03-2022,Adults,John Stanleys Care Agency Ltd,Home Care - Private Contractors Payment,636.23,0.00,COMMERCIAL SUPPLIER 
 16-03-2022,Adults,Cera Care Operations Ltd,Home Care - Private Contractors Payment,636.54,0.00,COMMERCIAL SUPPLIER 
 24-03-2022,Adults,Morepower Ltd t/a Aqs Homecare,Home Care - Private Contractors Payment,636.54,0.00,COMMERCIAL SUPPLIER 
 16-03-2022,Adults,Lodge Group Care UK Ltd,Home Care - Private Contractors Payment,637.16,0.00,COMMERCIAL SUPPLIER 
 16-03-2022,Adults,Lodge Group Care UK Ltd,Home Care - Private Contractors Payment,637.78,0.00,COMMERCIAL SUPPLIER 
 02-03-2022,Adults,Matrix SCM Ltd,Agency Staff,638.25,0.00,COMMERCIAL SUPPLIER 
 11-03-2022,Adults,Home Sweet Home Care Ltd,Home Care - Private Contractors Payment,638.40,0.00,COMMERCIAL SUPPLIER 
 16-03-2022,Adults,Lodge Group Care UK Ltd,Home Care - Private Contractors Payment,638.40,0.00,COMMERCIAL SUPPLIER 
 16-03-2022,Adults,Lodge Group Care UK Ltd,Home Care - Private Contractors Payment,639.01,0.00,COMMERCIAL SUPPLIER 
 11-03-2022,Adults,HC-One Oval Ltd - The Hornchurch Nursing Centre,Nursing Homes - Private Contractors Payment,640.00,0.00,COMMERCIAL SUPPLIER 
 11-03-2022,Adults,DMP Healthcare (Heatherbrook) Ltd,Respite Care - Private Contractors Payment,640.00,0.00,NON COMMERCIAL SUPPLIER 
 16-03-2022,Adults,Cera Care Operations Ltd,Home Care - Private Contractors Payment,640.25,0.00,COMMERCIAL SUPPLIER 
 09-03-2022,Adults,Home Support Services (Havering & Essex) Ltd,Home Care - Private Contractors Payment,640.56,0.00,COMMERCIAL SUPPLIER 
 24-03-2022,Adults,Morepower Ltd t/a Aqs Homecare,Home Care - Private Contractors Payment,642.73,0.00,COMMERCIAL SUPPLIER 
 28-03-2022,Adults,London Care Plc_a,Home Care - Private Contractors Payment,643.35,0.00,COMMERCIAL SUPPLIER 
 16-03-2022,Adults,Cera Care Operations Ltd,Home Care - Private Contractors Payment,644.59,0.00,COMMERCIAL SUPPLIER 
 16-03-2022,Adults,Lodge Group Care UK Ltd,Home Care - Private Contractors Payment,645.35,0.00,COMMERCIAL SUPPLIER 
 09-03-2022,Adults,Home Support Services (Havering & Essex) Ltd,Home Care - Private Contractors Payment,647.37,0.00,COMMERCIAL SUPPLIER 
 02-03-2022,Adults,Care-Away Ltd T/A Care Support,Home Care - Private Contractors Payment,648.96,0.00,COMMERCIAL SUPPLIER 
 11-03-2022,Adults,Home Sweet Home Care Ltd,Home Care - Private Contractors Payment,649.23,0.00,COMMERCIAL SUPPLIER 
 09-03-2022,Adults,Home Support Services (Havering & Essex) Ltd,Home Care - Private Contractors Payment,649.54,0.00,COMMERCIAL SUPPLIER 
 09-03-2022,Adults,Home Support Services (Havering & Essex) Ltd,Home Care - Private Contractors Payment,649.85,0.00,COMMERCIAL SUPPLIER 
 16-03-2022,Adults,Passion Tree Care Services Ltd,Home Care - Private Contractors Payment,650.16,0.00,COMMERCIAL SUPPLIER 
 28-03-2022,Adults,Outreach Support Services Ltd,Home Care - Private Contractors Payment,650.16,0.00,COMMERCIAL SUPPLIER 
 29-03-2022,Adults,London Homecare Ltd,Home Care - Private Contractors Payment,650.16,0.00,COMMERCIAL SUPPLIER 
 02-03-2022,Adults,Prestige Care & Support Ltd,Home Care - Private Contractors Payment,650.47,0.00,COMMERCIAL SUPPLIER 
 09-03-2022,Adults,Matrix SCM Ltd,Agency Staff,650.76,0.00,COMMERCIAL SUPPLIER 
 02-03-2022,Adults,Prestige Care & Support Ltd,Home Care - Private Contractors Payment,650.78,0.00,COMMERCIAL SUPPLIER 
 09-03-2022,Adults,Home Support Services (Havering & Essex) Ltd,Home Care - Private Contractors Payment,651.52,0.00,COMMERCIAL SUPPLIER 
 09-03-2022,Adults,Home Support Services (Havering & Essex) Ltd,Home Care - Private Contractors Payment,651.71,0.00,COMMERCIAL SUPPLIER 
 16-03-2022,Adults,Lodge Group Care UK Ltd,Home Care - Private Contractors Payment,651.71,0.00,COMMERCIAL SUPPLIER 
 11-03-2022,Adults,Home Sweet Home Care Ltd,Home Care - Private Contractors Payment,652.33,0.00,COMMERCIAL SUPPLIER 
 24-03-2022,Adults,Morepower Ltd t/a Aqs Homecare,Home Care - Private Contractors Payment,652.33,0.00,COMMERCIAL SUPPLIER 
 16-03-2022,Adults,Lodge Group Care UK Ltd,Home Care - Private Contractors Payment,653.57,0.00,COMMERCIAL SUPPLIER 
 11-03-2022,Adults,Lodge Lane Care Home Limited,Residential Placements - Private Contractors Payment,656.00,0.00,COMMERCIAL SUPPLIER 
 07-03-2022,Adults,Quality Healthcare Solutions Ltd t/a Kare Plus Romford,Home Care - Private Contractors Payment,656.66,0.00,COMMERCIAL SUPPLIER 
 08-03-2022,Adults,Lily Close-Partnerships in Care,Other Short Term Support,657.00,0.00,COMMERCIAL SUPPLIER 
 16-03-2022,Adults,Anytime Care 2020_a,Home Care - Private Contractors Payment,657.28,0.00,COMMERCIAL SUPPLIER 
 24-03-2022,Adults,Morepower Ltd t/a Aqs Homecare,Home Care - Private Contractors Payment,659.14,0.00,COMMERCIAL SUPPLIER 
 28-03-2022,Adults,Tapestry_a.,Daycare - Private Contractors Payment,660.00,0.00,COMMERCIAL SUPPLIER 
 28-03-2022,Adults,Tapestry_a.,Daycare - Private Contractors Payment,660.00,0.00,COMMERCIAL SUPPLIER 
 28-03-2022,Adults,Tapestry_a.,Daycare - Private Contractors Payment,660.00,0.00,COMMERCIAL SUPPLIER 
 28-03-2022,Adults,Tapestry_a.,Daycare - Private Contractors Payment,660.00,0.00,COMMERCIAL SUPPLIER 
 28-03-2022,Adults,Tapestry_a.,Daycare - Private Contractors Payment,660.00,0.00,COMMERCIAL SUPPLIER 
 28-03-2022,Adults,Tapestry_a.,Daycare - Private Contractors Payment,660.00,0.00,COMMERCIAL SUPPLIER 
 28-03-2022,Adults,Tapestry_a.,Daycare - Private Contractors Payment,660.00,0.00,COMMERCIAL SUPPLIER 
 28-03-2022,Adults,Tapestry_a.,Daycare - Private Contractors Payment,660.00,0.00,COMMERCIAL SUPPLIER 
 28-03-2022,Adults,Tapestry_a.,Daycare - Private Contractors Payment,660.00,0.00,COMMERCIAL SUPPLIER 
 16-03-2022,Adults,Lodge Group Care UK Ltd,Home Care - Private Contractors Payment,660.38,0.00,COMMERCIAL SUPPLIER 
 11-03-2022,Adults,Home Sweet Home Care Ltd,Home Care - Private Contractors Payment,660.69,0.00,COMMERCIAL SUPPLIER 
 09-03-2022,Adults,Matrix SCM Ltd,Agency Staff,661.08,0.00,COMMERCIAL SUPPLIER 
 11-03-2022,Adults,Home Sweet Home Care Ltd,Home Care - Private Contractors Payment,661.31,0.00,COMMERCIAL SUPPLIER 
 09-03-2022,Adults,Home Support Services (Havering & Essex) Ltd,Home Care - Private Contractors Payment,662.54,0.00,COMMERCIAL SUPPLIER 
 09-03-2022,Adults,Home Support Services (Havering & Essex) Ltd,Home Care - Private Contractors Payment,662.85,0.00,COMMERCIAL SUPPLIER 
 09-03-2022,Adults,Matrix SCM Ltd,Agency Staff,662.94,0.00,COMMERCIAL SUPPLIER 
 21-03-2022,Adults,Euroloos Limited,Premises Hire - Facilities,664.26,0.00,NON COMMERCIAL SUPPLIER 
 11-03-2022,Adults,Home Sweet Home Care Ltd,Home Care - Private Contractors Payment,665.02,0.00,COMMERCIAL SUPPLIER 
 11-03-2022,Adults,Priory Supporting Care Ltd,Residential Care Income,665.34,0.00,COMMERCIAL SUPPLIER 
 23-03-2022,Adults,Matrix SCM Ltd,Agency Staff,665.51,0.00,COMMERCIAL SUPPLIER 
 30-03-2022,Adults,Matrix SCM Ltd,Agency Staff,665.51,0.00,COMMERCIAL SUPPLIER 
 01-03-2022,Adults,Bluebird Care Havering,Home Care - Private Contractors Payment,666.16,0.00,COMMERCIAL SUPPLIER 
 14-03-2022,Adults,Bluebird Care Havering,Home Care - Private Contractors Payment,666.16,0.00,COMMERCIAL SUPPLIER 
 28-03-2022,Adults,Bluebird Care Havering,Home Care - Private Contractors Payment,666.16,0.00,COMMERCIAL SUPPLIER 
 11-03-2022,Adults,GCH - Hillside Nursing Home,Nursing Homes - Private Contractors Payment,667.14,0.00,COMMERCIAL SUPPLIER 
 16-03-2022,Adults,Lodge Group Care UK Ltd,Home Care - Private Contractors Payment,667.50,0.00,COMMERCIAL SUPPLIER 
 11-03-2022,Adults,Home Sweet Home Care Ltd,Home Care - Private Contractors Payment,668.74,0.00,COMMERCIAL SUPPLIER 
 16-03-2022,Adults,Passion Tree Care Services Ltd,Home Care - Private Contractors Payment,668.74,0.00,COMMERCIAL SUPPLIER 
 16-03-2022,Adults,Lodge Group Care UK Ltd,Home Care - Private Contractors Payment,669.36,0.00,COMMERCIAL SUPPLIER 
 11-03-2022,Adults,Affinia Healthcare Ltd_a,Supported Other Accommodation - Private Contractors Payment,669.73,0.00,COMMERCIAL SUPPLIER 
 16-03-2022,Adults,Lodge Group Care UK Ltd,Home Care - Private Contractors Payment,670.28,0.00,COMMERCIAL SUPPLIER 
 09-03-2022,Adults,Home Support Services (Havering & Essex) Ltd,Home Care - Private Contractors Payment,671.21,0.00,COMMERCIAL SUPPLIER 
 16-03-2022,Adults,Lodge Group Care UK Ltd,Home Care - Private Contractors Payment,671.52,0.00,COMMERCIAL SUPPLIER 
 16-03-2022,Adults,Lodge Group Care UK Ltd,Home Care - Private Contractors Payment,671.52,0.00,COMMERCIAL SUPPLIER 
 16-03-2022,Adults,Matrix SCM Ltd,Agency Staff,671.56,0.00,COMMERCIAL SUPPLIER 
 02-03-2022,Adults,Prestige Care & Support Ltd,Home Care - Private Contractors Payment,672.76,0.00,COMMERCIAL SUPPLIER 
 23-03-2022,Adults,Prior Care Ltd_a,Home Care - Private Contractors Payment,673.07,0.00,COMMERCIAL SUPPLIER 
 02-03-2022,Adults,Matrix SCM Ltd,Agency Staff,673.20,0.00,COMMERCIAL SUPPLIER 
 16-03-2022,Adults,Lodge Group Care UK Ltd,Home Care - Private Contractors Payment,673.38,0.00,COMMERCIAL SUPPLIER 
 16-03-2022,Adults,Lodge Group Care UK Ltd,Home Care - Private Contractors Payment,673.52,0.00,COMMERCIAL SUPPLIER 
 11-03-2022,Adults,Home Sweet Home Care Ltd,Home Care - Private Contractors Payment,673.69,0.00,COMMERCIAL SUPPLIER 
 09-03-2022,Adults,Home Support Services (Havering & Essex) Ltd,Home Care - Private Contractors Payment,674.31,0.00,COMMERCIAL SUPPLIER 
 02-03-2022,Adults,Prestige Care & Support Ltd,Home Care - Private Contractors Payment,674.93,0.00,COMMERCIAL SUPPLIER 
 16-03-2022,Adults,Cera Care Operations Ltd,Home Care - Private Contractors Payment,675.07,0.00,COMMERCIAL SUPPLIER 
 16-03-2022,Adults,Matrix SCM Ltd,Agency Staff,675.36,0.00,COMMERCIAL SUPPLIER 
 02-03-2022,Adults,Prestige Care & Support Ltd,Home Care - Private Contractors Payment,675.86,0.00,COMMERCIAL SUPPLIER 
 16-03-2022,Adults,Matrix SCM Ltd,Agency Staff,676.42,0.00,COMMERCIAL SUPPLIER 
 16-03-2022,Adults,Lodge Group Care UK Ltd,Home Care - Private Contractors Payment,676.48,0.00,COMMERCIAL SUPPLIER 
 02-03-2022,Adults,Prestige Care & Support Ltd,Home Care - Private Contractors Payment,678.64,0.00,COMMERCIAL SUPPLIER 
 02-03-2022,Adults,Prestige Care & Support Ltd,Home Care - Private Contractors Payment,679.57,0.00,COMMERCIAL SUPPLIER 
 23-03-2022,Adults,Prior Care Ltd_a,Home Care - Private Contractors Payment,679.88,0.00,COMMERCIAL SUPPLIER 
 07-03-2022,Adults,London Borough of Barking & Dagenham_a,Daycare - Private Contractors Payment,680.00,0.00,LOCAL AUTHORITY SERVICES 
 02-03-2022,Adults,Prestige Care & Support Ltd,Home Care - Private Contractors Payment,680.19,0.00,COMMERCIAL SUPPLIER 
 23-03-2022,Adults,Prior Care Ltd_a,Home Care - Private Contractors Payment,681.74,0.00,COMMERCIAL SUPPLIER 
 23-03-2022,Adults,Matrix SCM Ltd,Agency Staff,682.08,0.00,COMMERCIAL SUPPLIER 
 09-03-2022,Adults,Home Support Services (Havering & Essex) Ltd,Home Care - Private Contractors Payment,682.36,0.00,COMMERCIAL SUPPLIER 
 02-03-2022,Adults,Prestige Care & Support Ltd,Home Care - Private Contractors Payment,683.60,0.00,COMMERCIAL SUPPLIER 
 23-03-2022,Adults,Prior Care Ltd_a,Home Care - Private Contractors Payment,685.14,0.00,COMMERCIAL SUPPLIER 
 11-03-2022,Adults,Home Sweet Home Care Ltd,Home Care - Private Contractors Payment,686.69,0.00,COMMERCIAL SUPPLIER 
 02-03-2022,Adults,Matrix SCM Ltd,Agency Staff,687.33,0.00,COMMERCIAL SUPPLIER 
 16-03-2022,Adults,Matrix SCM Ltd,Agency Staff,687.33,0.00,COMMERCIAL SUPPLIER 
 22-03-2022,Adults,Mayflower Travel,Client Transport,688.00,0.00,COMMERCIAL SUPPLIER 
 09-03-2022,Adults,Home Support Services (Havering & Essex) Ltd,Home Care - Private Contractors Payment,691.96,0.00,COMMERCIAL SUPPLIER 
 02-03-2022,Adults,Matrix SCM Ltd,Agency Staff,692.65,0.00,COMMERCIAL SUPPLIER 
 09-03-2022,Adults,Matrix SCM Ltd,Agency Staff,692.65,0.00,COMMERCIAL SUPPLIER 
 02-03-2022,Adults,Prestige Care & Support Ltd,Home Care - Private Contractors Payment,693.50,0.00,COMMERCIAL SUPPLIER 
 11-03-2022,Adults,Home Sweet Home Care Ltd,Home Care - Private Contractors Payment,693.50,0.00,COMMERCIAL SUPPLIER 
 16-03-2022,Adults,Lodge Group Care UK Ltd,Home Care - Private Contractors Payment,695.36,0.00,COMMERCIAL SUPPLIER 
 11-03-2022,Adults,Home Sweet Home Care Ltd,Home Care - Private Contractors Payment,695.67,0.00,COMMERCIAL SUPPLIER 
 11-03-2022,Adults,Home Sweet Home Care Ltd,Home Care - Private Contractors Payment,696.60,0.00,COMMERCIAL SUPPLIER 
 30-03-2022,Adults,Inna Care Ltd,Home Care - Private Contractors Payment,696.60,0.00,COMMERCIAL SUPPLIER 
 23-03-2022,Adults,Matrix SCM Ltd,Agency Staff,697.20,0.00,COMMERCIAL SUPPLIER 
 23-03-2022,Adults,Matrix SCM Ltd,Agency Staff,697.20,0.00,COMMERCIAL SUPPLIER 
 16-03-2022,Adults,Lodge Group Care UK Ltd,Home Care - Private Contractors Payment,697.22,0.00,COMMERCIAL SUPPLIER 
 02-03-2022,Adults,Care-Away Ltd T/A Care Support,Home Care - Private Contractors Payment,698.88,0.00,COMMERCIAL SUPPLIER 
 02-03-2022,Adults,Care-Away Ltd T/A Care Support,Home Care - Private Contractors Payment,698.88,0.00,COMMERCIAL SUPPLIER 
 02-03-2022,Adults,Care-Away Ltd T/A Care Support,Home Care - Private Contractors Payment,698.88,0.00,COMMERCIAL SUPPLIER 
 03-03-2022,Adults,Care-Away Ltd T/A Care Support,Home Care - Private Contractors Payment,698.88,0.00,COMMERCIAL SUPPLIER 
 07-03-2022,Adults,London Borough of Barking & Dagenham_a,Daycare - Private Contractors Payment,700.00,0.00,LOCAL AUTHORITY SERVICES 
 16-03-2022,Adults,Cera Care Operations Ltd,Home Care - Private Contractors Payment,701.08,0.00,COMMERCIAL SUPPLIER 
 11-03-2022,Adults,Home Sweet Home Care Ltd,Home Care - Private Contractors Payment,701.55,0.00,COMMERCIAL SUPPLIER 
 02-03-2022,Adults,Matrix SCM Ltd,Agency Staff,701.68,0.00,COMMERCIAL SUPPLIER 
 02-03-2022,Adults,Prestige Care & Support Ltd,Home Care - Private Contractors Payment,702.79,0.00,COMMERCIAL SUPPLIER 
 02-03-2022,Adults,Matrix SCM Ltd,Agency Staff,705.25,0.00,COMMERCIAL SUPPLIER 
 02-03-2022,Adults,Matrix SCM Ltd,Agency Staff,705.25,0.00,COMMERCIAL SUPPLIER 
 09-03-2022,Adults,Matrix SCM Ltd,Agency Staff,705.25,0.00,COMMERCIAL SUPPLIER 
 09-03-2022,Adults,Matrix SCM Ltd,Agency Staff,705.25,0.00,COMMERCIAL SUPPLIER 
 16-03-2022,Adults,Matrix SCM Ltd,Agency Staff,705.25,0.00,COMMERCIAL SUPPLIER 
 16-03-2022,Adults,Matrix SCM Ltd,Agency Staff,705.25,0.00,COMMERCIAL SUPPLIER 
 23-03-2022,Adults,Matrix SCM Ltd,Agency Staff,705.25,0.00,COMMERCIAL SUPPLIER 
 23-03-2022,Adults,Matrix SCM Ltd,Agency Staff,705.25,0.00,COMMERCIAL SUPPLIER 
 30-03-2022,Adults,Matrix SCM Ltd,Agency Staff,705.25,0.00,COMMERCIAL SUPPLIER 
 30-03-2022,Adults,Matrix SCM Ltd,Agency Staff,705.25,0.00,COMMERCIAL SUPPLIER 
 07-03-2022,Adults,John Stanleys Care Agency Ltd,Home Care - Private Contractors Payment,705.89,0.00,COMMERCIAL SUPPLIER 
 11-03-2022,Adults,Home Sweet Home Care Ltd,Home Care - Private Contractors Payment,705.89,0.00,COMMERCIAL SUPPLIER 
 30-03-2022,Adults,Inna Care Ltd,Home Care - Private Contractors Payment,705.89,0.00,COMMERCIAL SUPPLIER 
 16-03-2022,Adults,Matrix SCM Ltd,Agency Staff,706.44,0.00,COMMERCIAL SUPPLIER 
 11-03-2022,Adults,HC-One Oval Ltd - The Hornchurch Nursing Centre,Residential Care Income,708.24,0.00,COMMERCIAL SUPPLIER 
 11-03-2022,Adults,Home Sweet Home Care Ltd,Home Care - Private Contractors Payment,708.67,0.00,COMMERCIAL SUPPLIER 
 22-03-2022,Adults,Brand Healthcare Services Ltd,Other Short Term Support,709.00,0.00,COMMERCIAL SUPPLIER 
 09-03-2022,Adults,Matrix SCM Ltd,Agency Staff,709.15,0.00,COMMERCIAL SUPPLIER 
 16-03-2022,Adults,Cera Care Operations Ltd,Home Care - Private Contractors Payment,709.91,0.00,COMMERCIAL SUPPLIER 
 11-03-2022,Adults,Home Sweet Home Care Ltd,Home Care - Private Contractors Payment,710.22,0.00,COMMERCIAL SUPPLIER 
 11-03-2022,Adults,Infinite Healthcare Services Ltd.,Supported Other Accommodation - Private Contractors Payment,710.36,0.00,COMMERCIAL SUPPLIER 
 11-03-2022,Adults,Gemini Assisted Living Ltd,Supported Other Accommodation - Private Contractors Payment,710.91,0.00,COMMERCIAL SUPPLIER 
 16-03-2022,Adults,Cera Care Operations Ltd,Home Care - Private Contractors Payment,712.08,0.00,COMMERCIAL SUPPLIER 
 02-03-2022,Adults,Prestige Care & Support Ltd,Home Care - Private Contractors Payment,713.32,0.00,COMMERCIAL SUPPLIER 
 09-03-2022,Adults,Home Support Services (Havering & Essex) Ltd,Home Care - Private Contractors Payment,713.63,0.00,COMMERCIAL SUPPLIER 
 02-03-2022,Adults,Prestige Care & Support Ltd,Home Care - Private Contractors Payment,714.25,0.00,COMMERCIAL SUPPLIER 
 11-03-2022,Adults,Home Sweet Home Care Ltd,Home Care - Private Contractors Payment,714.25,0.00,COMMERCIAL SUPPLIER 
 16-03-2022,Adults,Lodge Group Care UK Ltd,Home Care - Private Contractors Payment,714.25,0.00,COMMERCIAL SUPPLIER 
 11-03-2022,Adults,Home Sweet Home Care Ltd,Home Care - Private Contractors Payment,714.87,0.00,COMMERCIAL SUPPLIER 
 02-03-2022,Adults,Care-Away Ltd T/A Care Support,Home Care - Private Contractors Payment,715.52,0.00,COMMERCIAL SUPPLIER 
 02-03-2022,Adults,Care-Away Ltd T/A Care Support,Home Care - Private Contractors Payment,715.52,0.00,COMMERCIAL SUPPLIER 
 02-03-2022,Adults,Prestige Care & Support Ltd,Home Care - Private Contractors Payment,715.63,0.00,COMMERCIAL SUPPLIER 
 24-03-2022,Adults,Morepower Ltd t/a Aqs Homecare,Home Care - Private Contractors Payment,716.72,0.00,COMMERCIAL SUPPLIER 
 09-03-2022,Adults,Home Support Services (Havering & Essex) Ltd,Home Care - Private Contractors Payment,718.12,0.00,COMMERCIAL SUPPLIER 
 02-03-2022,Adults,Prestige Care & Support Ltd,Home Care - Private Contractors Payment,718.58,0.00,COMMERCIAL SUPPLIER 
 11-03-2022,Adults,Home Sweet Home Care Ltd,Home Care - Private Contractors Payment,718.58,0.00,COMMERCIAL SUPPLIER 
 14-03-2022,Adults,All Therapy Solutions Ltd,Occupational Health,720.00,0.00,COMMERCIAL SUPPLIER 
 09-03-2022,Adults,Matrix SCM Ltd,Agency Staff,720.29,0.00,COMMERCIAL SUPPLIER 
 09-03-2022,Adults,Home Support Services (Havering & Essex) Ltd,Home Care - Private Contractors Payment,721.06,0.00,COMMERCIAL SUPPLIER 
 11-03-2022,Adults,Havering Care Homes Ltd t/a Abbscross Nursing Home,Nursing Care Income,722.89,0.00,COMMERCIAL SUPPLIER 
 11-03-2022,Adults,Home Sweet Home Care Ltd,Home Care - Private Contractors Payment,724.46,0.00,COMMERCIAL SUPPLIER 
 09-03-2022,Adults,Matrix SCM Ltd,Agency Staff,725.28,0.00,COMMERCIAL SUPPLIER 
 09-03-2022,Adults,Matrix SCM Ltd,Agency Staff,726.90,0.00,COMMERCIAL SUPPLIER 
 02-03-2022,Adults,Matrix SCM Ltd,Agency Staff,727.65,0.00,COMMERCIAL SUPPLIER 
 16-03-2022,Adults,Matrix SCM Ltd,Agency Staff,727.92,0.00,COMMERCIAL SUPPLIER 
 23-03-2022,Adults,Matrix SCM Ltd,Agency Staff,727.92,0.00,COMMERCIAL SUPPLIER 
 30-03-2022,Adults,Matrix SCM Ltd,Agency Staff,727.92,0.00,COMMERCIAL SUPPLIER 
 02-03-2022,Adults,Matrix SCM Ltd,Agency Staff,730.43,0.00,COMMERCIAL SUPPLIER 
 16-03-2022,Adults,Matrix SCM Ltd,Agency Staff,730.43,0.00,COMMERCIAL SUPPLIER 
 23-03-2022,Adults,Matrix SCM Ltd,Agency Staff,730.43,0.00,COMMERCIAL SUPPLIER 
 02-03-2022,Adults,Prestige Care & Support Ltd,Home Care - Private Contractors Payment,730.49,0.00,COMMERCIAL SUPPLIER 
 23-03-2022,Adults,Matrix SCM Ltd,Agency Staff,730.97,0.00,COMMERCIAL SUPPLIER 
 11-03-2022,Adults,Home Sweet Home Care Ltd,Home Care - Private Contractors Payment,731.58,0.00,COMMERCIAL SUPPLIER 
 02-03-2022,Adults,Prestige Care & Support Ltd,Home Care - Private Contractors Payment,731.74,0.00,COMMERCIAL SUPPLIER 
 09-03-2022,Adults,Home Support Services (Havering & Essex) Ltd,Home Care - Private Contractors Payment,731.89,0.00,COMMERCIAL SUPPLIER 
 16-03-2022,Adults,Lodge Group Care UK Ltd,Home Care - Private Contractors Payment,734.53,0.00,COMMERCIAL SUPPLIER 
 07-03-2022,Adults,Quality Healthcare Solutions Ltd t/a Kare Plus Romford,Home Care - Private Contractors Payment,734.99,0.00,COMMERCIAL SUPPLIER 
 16-03-2022,Adults,Anytime Care 2020_a,Home Care - Private Contractors Payment,735.45,0.00,COMMERCIAL SUPPLIER 
 02-03-2022,Adults,Prestige Care & Support Ltd,Home Care - Private Contractors Payment,736.23,0.00,COMMERCIAL SUPPLIER 
 11-03-2022,Adults,Home Sweet Home Care Ltd,Home Care - Private Contractors Payment,737.78,0.00,COMMERCIAL SUPPLIER 
 08-03-2022,Adults,Ashling House_a,Other Short Term Support,739.00,0.00,COMMERCIAL SUPPLIER 
 08-03-2022,Adults,Ashgate House Ltd_a,Other Short Term Support,739.00,0.00,COMMERCIAL SUPPLIER 
 16-03-2022,Adults,Cera Care Operations Ltd,Home Care - Private Contractors Payment,739.32,0.00,COMMERCIAL SUPPLIER 
 09-03-2022,Adults,Home Support Services (Havering & Essex) Ltd,Home Care - Private Contractors Payment,740.25,0.00,COMMERCIAL SUPPLIER 
 16-03-2022,Adults,Lodge Group Care UK Ltd,Home Care - Private Contractors Payment,742.27,0.00,COMMERCIAL SUPPLIER 
 02-03-2022,Adults,Carers Trust East Midlands,Home Care - Private Contractors Payment,743.04,0.00,COMMERCIAL SUPPLIER 
 11-03-2022,Adults,Home Sweet Home Care Ltd,Home Care - Private Contractors Payment,743.04,0.00,COMMERCIAL SUPPLIER 
 30-03-2022,Adults,Carers Trust East Midlands,Home Care - Private Contractors Payment,743.04,0.00,COMMERCIAL SUPPLIER 
 30-03-2022,Adults,Carers Trust East Midlands,Home Care - Private Contractors Payment,743.04,0.00,COMMERCIAL SUPPLIER 
 09-03-2022,Adults,Home Support Services (Havering & Essex) Ltd,Home Care - Private Contractors Payment,744.11,0.00,COMMERCIAL SUPPLIER 
 11-03-2022,Adults,Alexander Court Care Centre - Bondcare,Nursing Care Income,745.36,0.00,COMMERCIAL SUPPLIER 
 11-03-2022,Adults,Alexander Court Care Centre - Bondcare,Nursing Care Income,745.36,0.00,COMMERCIAL SUPPLIER 
 11-03-2022,Adults,Alexander Court Care Centre - Bondcare,Nursing Care Income,745.36,0.00,COMMERCIAL SUPPLIER 
 11-03-2022,Adults,Alexander Court Care Centre - Bondcare,Nursing Care Income,745.36,0.00,COMMERCIAL SUPPLIER 
 11-03-2022,Adults,Alexander Court Care Centre - Bondcare,Nursing Care Income,745.36,0.00,COMMERCIAL SUPPLIER 
 11-03-2022,Adults,Alexander Court Care Centre - Bondcare,Nursing Care Income,745.36,0.00,COMMERCIAL SUPPLIER 
 11-03-2022,Adults,Alexander Court Care Centre - Bondcare,Nursing Care Income,745.36,0.00,COMMERCIAL SUPPLIER 
 11-03-2022,Adults,Alexander Court Care Centre - Bondcare,Nursing Care Income,745.36,0.00,COMMERCIAL SUPPLIER 
 09-03-2022,Adults,Home Support Services (Havering & Essex) Ltd,Home Care - Private Contractors Payment,745.52,0.00,COMMERCIAL SUPPLIER 
 09-03-2022,Adults,Home Support Services (Havering & Essex) Ltd,Home Care - Private Contractors Payment,745.83,0.00,COMMERCIAL SUPPLIER 
 16-03-2022,Adults,Cera Care Operations Ltd,Home Care - Private Contractors Payment,746.30,0.00,COMMERCIAL SUPPLIER 
 30-03-2022,Adults,Matrix SCM Ltd,Agency Staff,746.77,0.00,COMMERCIAL SUPPLIER 
 16-03-2022,Adults,Matrix SCM Ltd,Agency Staff,748.45,0.00,COMMERCIAL SUPPLIER 
 11-03-2022,Adults,Home Sweet Home Care Ltd,Home Care - Private Contractors Payment,748.92,0.00,COMMERCIAL SUPPLIER 
 02-03-2022,Adults,Prestige Care & Support Ltd,Home Care - Private Contractors Payment,749.54,0.00,COMMERCIAL SUPPLIER 
 11-03-2022,Adults,Havering Care Homes Ltd t/a Upminster Nursing Home,Residential Placements - Private Contractors Payment,749.71,0.00,COMMERCIAL SUPPLIER 
 11-03-2022,Adults,Fountains Care Centre - Bondcare,Nursing Homes - Private Contractors Payment,750.00,0.00,COMMERCIAL SUPPLIER 
 14-03-2022,Adults,OCD - Daniel Tyler t/a,Agency Staff,750.00,0.00,COMMERCIAL SUPPLIER 
 09-03-2022,Adults,Home Support Services (Havering & Essex) Ltd,Home Care - Private Contractors Payment,751.87,0.00,COMMERCIAL SUPPLIER 
 02-03-2022,Adults,Eveshel Care Ltd,Home Care - Private Contractors Payment,752.33,0.00,COMMERCIAL SUPPLIER 
 02-03-2022,Adults,Eveshel Care Ltd,Home Care - Private Contractors Payment,752.33,0.00,COMMERCIAL SUPPLIER 
 07-03-2022,Adults,John Stanleys Care Agency Ltd,Home Care - Private Contractors Payment,752.64,0.00,COMMERCIAL SUPPLIER 
 16-03-2022,Adults,Lodge Group Care UK Ltd,Home Care - Private Contractors Payment,752.64,0.00,COMMERCIAL SUPPLIER 
 09-03-2022,Adults,Matrix SCM Ltd,Agency Staff,752.79,0.00,COMMERCIAL SUPPLIER 
 23-03-2022,Adults,Matrix SCM Ltd,Agency Staff,752.80,0.00,COMMERCIAL SUPPLIER 
 11-03-2022,Adults,Home Sweet Home Care Ltd,Home Care - Private Contractors Payment,753.57,0.00,COMMERCIAL SUPPLIER 
 11-03-2022,Adults,Home Sweet Home Care Ltd,Home Care - Private Contractors Payment,753.88,0.00,COMMERCIAL SUPPLIER 
 11-03-2022,Adults,Ashgate House Ltd_a,Residential Placements - Private Contractors Payment,753.96,0.00,COMMERCIAL SUPPLIER 
 11-03-2022,Adults,Home Sweet Home Care Ltd,Home Care - Private Contractors Payment,754.65,0.00,COMMERCIAL SUPPLIER 
 16-03-2022,Adults,Anytime Care 2020_a,Home Care - Private Contractors Payment,755.42,0.00,COMMERCIAL SUPPLIER 
 11-03-2022,Adults,Home Sweet Home Care Ltd,Home Care - Private Contractors Payment,756.04,0.00,COMMERCIAL SUPPLIER 
 11-03-2022,Adults,Home Sweet Home Care Ltd,Home Care - Private Contractors Payment,757.90,0.00,COMMERCIAL SUPPLIER 
 11-03-2022,Adults,Chosen Care Group Ltd,Supported Other Accommodation - Private Contractors Payment,762.08,0.00,COMMERCIAL SUPPLIER 
 23-03-2022,Adults,Matrix SCM Ltd,Agency Staff,762.89,0.00,COMMERCIAL SUPPLIER 
 24-03-2022,Adults,Morepower Ltd t/a Aqs Homecare,Home Care - Private Contractors Payment,763.16,0.00,COMMERCIAL SUPPLIER 
 16-03-2022,Adults,Matrix SCM Ltd,Agency Staff,763.70,0.00,COMMERCIAL SUPPLIER 
 02-03-2022,Adults,Matrix SCM Ltd,Agency Staff,764.29,0.00,COMMERCIAL SUPPLIER 
 09-03-2022,Adults,Matrix SCM Ltd,Agency Staff,764.29,0.00,COMMERCIAL SUPPLIER 
 16-03-2022,Adults,Matrix SCM Ltd,Agency Staff,764.29,0.00,COMMERCIAL SUPPLIER 
 24-03-2022,Adults,Morepower Ltd t/a Aqs Homecare,Home Care - Private Contractors Payment,764.71,0.00,COMMERCIAL SUPPLIER 
 16-03-2022,Adults,Lodge Group Care UK Ltd,Home Care - Private Contractors Payment,765.02,0.00,COMMERCIAL SUPPLIER 
 02-03-2022,Adults,Care-Away Ltd T/A Care Support,Home Care - Private Contractors Payment,765.44,0.00,COMMERCIAL SUPPLIER 
 11-03-2022,Adults,Home Sweet Home Care Ltd,Home Care - Private Contractors Payment,766.26,0.00,COMMERCIAL SUPPLIER 
 11-03-2022,Adults,Home Sweet Home Care Ltd,Home Care - Private Contractors Payment,766.26,0.00,COMMERCIAL SUPPLIER 
 02-03-2022,Adults,Matrix SCM Ltd,Agency Staff,766.50,0.00,COMMERCIAL SUPPLIER 
 09-03-2022,Adults,Matrix SCM Ltd,Agency Staff,766.50,0.00,COMMERCIAL SUPPLIER 
 16-03-2022,Adults,Matrix SCM Ltd,Agency Staff,766.50,0.00,COMMERCIAL SUPPLIER 
 23-03-2022,Adults,Matrix SCM Ltd,Agency Staff,766.50,0.00,COMMERCIAL SUPPLIER 
 02-03-2022,Adults,Prestige Care & Support Ltd,Home Care - Private Contractors Payment,767.19,0.00,COMMERCIAL SUPPLIER 
 16-03-2022,Adults,Matrix SCM Ltd,Agency Staff,768.26,0.00,COMMERCIAL SUPPLIER 
 24-03-2022,Adults,Morepower Ltd t/a Aqs Homecare,Home Care - Private Contractors Payment,769.05,0.00,COMMERCIAL SUPPLIER 
 02-03-2022,Adults,Matrix SCM Ltd,Agency Staff,769.16,0.00,COMMERCIAL SUPPLIER 
 16-03-2022,Adults,Cera Care Operations Ltd,Home Care - Private Contractors Payment,770.90,0.00,COMMERCIAL SUPPLIER 
 02-03-2022,Adults,Prestige Care & Support Ltd,Home Care - Private Contractors Payment,771.68,0.00,COMMERCIAL SUPPLIER 
 02-03-2022,Adults,Prestige Care & Support Ltd,Home Care - Private Contractors Payment,771.83,0.00,COMMERCIAL SUPPLIER 
 02-03-2022,Adults,Prestige Care & Support Ltd,Home Care - Private Contractors Payment,772.45,0.00,COMMERCIAL SUPPLIER 
 16-03-2022,Adults,Lodge Group Care UK Ltd,Home Care - Private Contractors Payment,773.38,0.00,COMMERCIAL SUPPLIER 
 02-03-2022,Adults,Matrix SCM Ltd,Agency Staff,774.61,0.00,COMMERCIAL SUPPLIER 
 30-03-2022,Adults,Matrix SCM Ltd,Agency Staff,774.62,0.00,COMMERCIAL SUPPLIER 
 09-03-2022,Adults,Matrix SCM Ltd,Agency Staff,775.80,0.00,COMMERCIAL SUPPLIER 
 16-03-2022,Adults,Matrix SCM Ltd,Agency Staff,777.09,0.00,COMMERCIAL SUPPLIER 
 11-03-2022,Adults,Home Sweet Home Care Ltd,Home Care - Private Contractors Payment,778.33,0.00,COMMERCIAL SUPPLIER 
 02-03-2022,Adults,Matrix SCM Ltd,Agency Staff,779.00,0.00,COMMERCIAL SUPPLIER 
 11-03-2022,Adults,Home Sweet Home Care Ltd,Home Care - Private Contractors Payment,779.26,0.00,COMMERCIAL SUPPLIER 
 02-03-2022,Adults,Matrix SCM Ltd,Agency Staff,780.08,0.00,COMMERCIAL SUPPLIER 
 02-03-2022,Adults,Matrix SCM Ltd,Agency Staff,780.08,0.00,COMMERCIAL SUPPLIER 
 23-03-2022,Adults,Matrix SCM Ltd,Agency Staff,780.08,0.00,COMMERCIAL SUPPLIER 
 11-03-2022,Adults,Home Sweet Home Care Ltd,Home Care - Private Contractors Payment,780.19,0.00,COMMERCIAL SUPPLIER 
 11-03-2022,Adults,Home Sweet Home Care Ltd,Home Care - Private Contractors Payment,780.19,0.00,COMMERCIAL SUPPLIER 
 11-03-2022,Adults,Home Sweet Home Care Ltd,Home Care - Private Contractors Payment,780.19,0.00,COMMERCIAL SUPPLIER 
 11-03-2022,Adults,Home Sweet Home Care Ltd,Home Care - Private Contractors Payment,780.19,0.00,COMMERCIAL SUPPLIER 
 11-03-2022,Adults,Rosemont Care Limited,Home Care - Private Contractors Payment,780.19,0.00,COMMERCIAL SUPPLIER 
 11-03-2022,Adults,Rosemont Care Limited,Home Care - Private Contractors Payment,780.19,0.00,COMMERCIAL SUPPLIER 
 22-03-2022,Adults,Guardian Home Care ,Home Care - Private Contractors Payment,780.19,0.00,COMMERCIAL SUPPLIER 
 25-03-2022,Adults,KJD Care Limited,Home Care - Private Contractors Payment,780.19,0.00,INDIVIDUALS 
 28-03-2022,Adults,Outreach Support Services Ltd,Home Care - Private Contractors Payment,780.19,0.00,COMMERCIAL SUPPLIER 
 28-03-2022,Adults,Outreach Support Services Ltd,Home Care - Private Contractors Payment,780.19,0.00,COMMERCIAL SUPPLIER 
 28-03-2022,Adults,Outreach Support Services Ltd,Home Care - Private Contractors Payment,780.19,0.00,COMMERCIAL SUPPLIER 
 29-03-2022,Adults,Inna Care Ltd,Home Care - Private Contractors Payment,780.19,0.00,COMMERCIAL SUPPLIER 
 29-03-2022,Adults,Inna Care Ltd,Home Care - Private Contractors Payment,780.19,0.00,COMMERCIAL SUPPLIER 
 30-03-2022,Adults,Inna Care Ltd,Home Care - Private Contractors Payment,780.19,0.00,COMMERCIAL SUPPLIER 
 23-03-2022,Adults,Matrix SCM Ltd,Agency Staff,781.57,0.00,COMMERCIAL SUPPLIER 
 02-03-2022,Adults,Matrix SCM Ltd,Agency Staff,782.56,0.00,COMMERCIAL SUPPLIER 
 23-03-2022,Adults,Matrix SCM Ltd,Agency Staff,782.56,0.00,COMMERCIAL SUPPLIER 
 11-03-2022,Adults,Home Sweet Home Care Ltd,Home Care - Private Contractors Payment,782.67,0.00,COMMERCIAL SUPPLIER 
 11-03-2022,Adults,Home Sweet Home Care Ltd,Home Care - Private Contractors Payment,782.98,0.00,COMMERCIAL SUPPLIER 
 28-03-2022,Adults,London Care Plc_a,Home Care - Private Contractors Payment,782.98,0.00,COMMERCIAL SUPPLIER 
 11-03-2022,Adults,Acorn Village_a,Residential Placements - Private Contractors Payment,783.00,0.00,COMMERCIAL SUPPLIER 
 24-03-2022,Adults,Morepower Ltd t/a Aqs Homecare,Home Care - Private Contractors Payment,783.60,0.00,COMMERCIAL SUPPLIER 
 16-03-2022,Adults,Lodge Group Care UK Ltd,Home Care - Private Contractors Payment,783.91,0.00,COMMERCIAL SUPPLIER 
 07-03-2022,Adults,John Stanleys Care Agency Ltd,Home Care - Private Contractors Payment,784.22,0.00,COMMERCIAL SUPPLIER 
 30-03-2022,Adults,Matrix SCM Ltd,Agency Staff,784.38,0.00,COMMERCIAL SUPPLIER 
 07-03-2022,Adults,Quality Healthcare Solutions Ltd t/a Kare Plus Romford,Home Care - Private Contractors Payment,784.53,0.00,COMMERCIAL SUPPLIER 
 16-03-2022,Adults,Matrix SCM Ltd,Agency Staff,785.54,0.00,COMMERCIAL SUPPLIER 
 16-03-2022,Adults,Matrix SCM Ltd,Agency Staff,785.54,0.00,COMMERCIAL SUPPLIER 
 23-03-2022,Adults,Matrix SCM Ltd,Agency Staff,785.54,0.00,COMMERCIAL SUPPLIER 
 30-03-2022,Adults,Matrix SCM Ltd,Agency Staff,785.54,0.00,COMMERCIAL SUPPLIER 
 30-03-2022,Adults,Matrix SCM Ltd,Agency Staff,785.54,0.00,COMMERCIAL SUPPLIER 
 11-03-2022,Adults,Outlook Care - 76 Neave Crescent,Supported Other Accommodation - Private Contractors Payment,786.11,0.00,COMMERCIAL SUPPLIER 
 22-03-2022,Adults,SMS Healthcare Services Ltd t/a Everycare Romford,Other Short Term Support,788.00,0.00,COMMERCIAL SUPPLIER 
 02-03-2022,Adults,Matrix SCM Ltd,Agency Staff,788.03,0.00,COMMERCIAL SUPPLIER 
 23-03-2022,Adults,Matrix SCM Ltd,Agency Staff,788.03,0.00,COMMERCIAL SUPPLIER 
 16-03-2022,Adults,Lodge Group Care UK Ltd,Home Care - Private Contractors Payment,789.04,0.00,COMMERCIAL SUPPLIER 
 07-03-2022,Adults,John Stanleys Care Agency Ltd,Home Care - Private Contractors Payment,789.17,0.00,COMMERCIAL SUPPLIER 
 16-03-2022,Adults,Lodge Group Care UK Ltd,Home Care - Private Contractors Payment,789.48,0.00,COMMERCIAL SUPPLIER 
 23-03-2022,Adults,Matrix SCM Ltd,Agency Staff,789.75,0.00,COMMERCIAL SUPPLIER 
 09-03-2022,Adults,Matrix SCM Ltd,Agency Staff,791.00,0.00,COMMERCIAL SUPPLIER 
 16-03-2022,Adults,Matrix SCM Ltd,Agency Staff,791.00,0.00,COMMERCIAL SUPPLIER 
 16-03-2022,Adults,Matrix SCM Ltd,Agency Staff,791.00,0.00,COMMERCIAL SUPPLIER 
 23-03-2022,Adults,Matrix SCM Ltd,Agency Staff,791.00,0.00,COMMERCIAL SUPPLIER 
 09-03-2022,Adults,Home Support Services (Havering & Essex) Ltd,Home Care - Private Contractors Payment,791.34,0.00,COMMERCIAL SUPPLIER 
 14-03-2022,Adults,Independent Living Agency (Non Direct Payments),Home Care - Private Contractors Payment,791.67,0.00,COMMERCIAL SUPPLIER 
 24-03-2022,Adults,Morepower Ltd t/a Aqs Homecare,Home Care - Private Contractors Payment,793.50,0.00,COMMERCIAL SUPPLIER 
 30-03-2022,Adults,Matrix SCM Ltd,Agency Staff,793.51,0.00,COMMERCIAL SUPPLIER 
 02-03-2022,Adults,Care-Away Ltd T/A Care Support,Home Care - Private Contractors Payment,794.56,0.00,COMMERCIAL SUPPLIER 
 09-03-2022,Adults,Home Support Services (Havering & Essex) Ltd,Home Care - Private Contractors Payment,795.67,0.00,COMMERCIAL SUPPLIER 
 02-03-2022,Adults,Matrix SCM Ltd,Agency Staff,796.43,0.00,COMMERCIAL SUPPLIER 
 09-03-2022,Adults,Matrix SCM Ltd,Agency Staff,796.43,0.00,COMMERCIAL SUPPLIER 
 02-03-2022,Adults,Prestige Care & Support Ltd,Home Care - Private Contractors Payment,797.40,0.00,COMMERCIAL SUPPLIER 
 02-03-2022,Adults,Prestige Care & Support Ltd,Home Care - Private Contractors Payment,799.70,0.00,COMMERCIAL SUPPLIER 
 02-03-2022,Adults,R G Care Ltd ,Daycare - Private Contractors Payment,800.00,0.00,COMMERCIAL SUPPLIER 
 16-03-2022,Adults,Lodge Group Care UK Ltd,Home Care - Private Contractors Payment,800.01,0.00,COMMERCIAL SUPPLIER 
 11-03-2022,Adults,Havering Care Homes Ltd t/a Abbscross Nursing Home,Nursing Homes - Private Contractors Payment,800.57,0.00,COMMERCIAL SUPPLIER 
 11-03-2022,Adults,Beechcourt Care Centre - Bondcare,Nursing Homes - Private Contractors Payment,800.57,0.00,COMMERCIAL SUPPLIER 
 09-03-2022,Adults,Home Support Services (Havering & Essex) Ltd,Home Care - Private Contractors Payment,802.34,0.00,COMMERCIAL SUPPLIER 
 07-03-2022,Adults,John Stanleys Care Agency Ltd,Home Care - Private Contractors Payment,802.79,0.00,COMMERCIAL SUPPLIER 
 16-03-2022,Adults,Lodge Group Care UK Ltd,Home Care - Private Contractors Payment,804.65,0.00,COMMERCIAL SUPPLIER 
 16-03-2022,Adults,Lodge Group Care UK Ltd,Home Care - Private Contractors Payment,804.65,0.00,COMMERCIAL SUPPLIER 
 11-03-2022,Adults,Home Sweet Home Care Ltd,Home Care - Private Contractors Payment,805.27,0.00,COMMERCIAL SUPPLIER 
 02-03-2022,Adults,Matrix SCM Ltd,Agency Staff,805.41,0.00,COMMERCIAL SUPPLIER 
 23-03-2022,Adults,Matrix SCM Ltd,Agency Staff,805.62,0.00,COMMERCIAL SUPPLIER 
 16-03-2022,Adults,Lodge Group Care UK Ltd,Home Care - Private Contractors Payment,807.30,0.00,COMMERCIAL SUPPLIER 
 16-03-2022,Adults,Lodge Group Care UK Ltd,Home Care - Private Contractors Payment,808.06,0.00,COMMERCIAL SUPPLIER 
 02-03-2022,Adults,Prestige Care & Support Ltd,Home Care - Private Contractors Payment,809.91,0.00,COMMERCIAL SUPPLIER 
 09-03-2022,Adults,Home Support Services (Havering & Essex) Ltd,Home Care - Private Contractors Payment,811.03,0.00,COMMERCIAL SUPPLIER 
 30-03-2022,Adults,Matrix SCM Ltd,Agency Staff,812.82,0.00,COMMERCIAL SUPPLIER 
 16-03-2022,Adults,Lodge Group Care UK Ltd,Home Care - Private Contractors Payment,814.25,0.00,COMMERCIAL SUPPLIER 
 11-03-2022,Adults,Home Sweet Home Care Ltd,Home Care - Private Contractors Payment,815.18,0.00,COMMERCIAL SUPPLIER 
 24-03-2022,Adults,Morepower Ltd t/a Aqs Homecare,Home Care - Private Contractors Payment,815.18,0.00,COMMERCIAL SUPPLIER 
 02-03-2022,Adults,Care-Away Ltd T/A Care Support,Home Care - Private Contractors Payment,815.36,0.00,COMMERCIAL SUPPLIER 
 09-03-2022,Adults,Matrix SCM Ltd,Agency Staff,815.60,0.00,COMMERCIAL SUPPLIER 
 02-03-2022,Adults,Prestige Care & Support Ltd,Home Care - Private Contractors Payment,816.72,0.00,COMMERCIAL SUPPLIER 
 02-03-2022,Adults,Carers Trust East Midlands,Home Care - Private Contractors Payment,817.34,0.00,COMMERCIAL SUPPLIER 
 16-03-2022,Adults,Cera Care Operations Ltd,Home Care - Private Contractors Payment,817.34,0.00,COMMERCIAL SUPPLIER 
 16-03-2022,Adults,Passion Tree Care Services Ltd,Home Care - Private Contractors Payment,817.34,0.00,COMMERCIAL SUPPLIER 
 28-03-2022,Adults,Outreach Support Services Ltd,Home Care - Private Contractors Payment,817.34,0.00,COMMERCIAL SUPPLIER 
 02-03-2022,Adults,Matrix SCM Ltd,Agency Staff,818.25,0.00,COMMERCIAL SUPPLIER 
 09-03-2022,Adults,Matrix SCM Ltd,Agency Staff,818.25,0.00,COMMERCIAL SUPPLIER 
 09-03-2022,Adults,Matrix SCM Ltd,Agency Staff,818.25,0.00,COMMERCIAL SUPPLIER 
 30-03-2022,Adults,Matrix SCM Ltd,Agency Staff,818.27,0.00,COMMERCIAL SUPPLIER 
 16-03-2022,Adults,Lodge Group Care UK Ltd,Home Care - Private Contractors Payment,819.20,0.00,COMMERCIAL SUPPLIER 
 16-03-2022,Adults,Lodge Group Care UK Ltd,Home Care - Private Contractors Payment,819.51,0.00,COMMERCIAL SUPPLIER 
 07-03-2022,Adults,Quality Healthcare Solutions Ltd t/a Kare Plus Romford,Home Care - Private Contractors Payment,819.82,0.00,COMMERCIAL SUPPLIER 
 16-03-2022,Adults,Lodge Group Care UK Ltd,Home Care - Private Contractors Payment,820.93,0.00,COMMERCIAL SUPPLIER 
 08-03-2022,Adults,Outlook Care - 86 Veronica Close,Other Short Term Support,821.00,0.00,COMMERCIAL SUPPLIER 
 08-03-2022,Adults,Ashchurch House,Other Short Term Support,821.00,0.00,COMMERCIAL SUPPLIER 
 08-03-2022,Adults,The Avenues Trust - 73A Neave Crescent,Other Short Term Support,821.00,0.00,COMMERCIAL SUPPLIER 
 22-03-2022,Adults,ACG CARE Ltd ,Other Short Term Support,821.00,0.00, 
 22-03-2022,Adults,Shiloz Services Ltd,Other Short Term Support,821.00,0.00,COMMERCIAL SUPPLIER 
 11-03-2022,Adults,Home Sweet Home Care Ltd,Home Care - Private Contractors Payment,821.68,0.00,COMMERCIAL SUPPLIER 
 07-03-2022,Adults,Quality Healthcare Solutions Ltd t/a Kare Plus Romford,Home Care - Private Contractors Payment,821.99,0.00,COMMERCIAL SUPPLIER 
 16-03-2022,Adults,Cera Care Operations Ltd,Home Care - Private Contractors Payment,822.17,0.00,COMMERCIAL SUPPLIER 
 24-03-2022,Adults,Morepower Ltd t/a Aqs Homecare,Home Care - Private Contractors Payment,822.92,0.00,COMMERCIAL SUPPLIER 
 16-03-2022,Adults,Lodge Group Care UK Ltd,Home Care - Private Contractors Payment,823.54,0.00,COMMERCIAL SUPPLIER 
 16-03-2022,Adults,Anytime Care 2020_a,Home Care - Private Contractors Payment,824.46,0.00,COMMERCIAL SUPPLIER 
 09-03-2022,Adults,Home Support Services (Havering & Essex) Ltd,Home Care - Private Contractors Payment,826.44,0.00,COMMERCIAL SUPPLIER 
 11-03-2022,Adults,Home Sweet Home Care Ltd,Home Care - Private Contractors Payment,826.63,0.00,COMMERCIAL SUPPLIER 
 11-03-2022,Adults,Home Sweet Home Care Ltd,Home Care - Private Contractors Payment,826.94,0.00,COMMERCIAL SUPPLIER 
 02-03-2022,Adults,Prestige Care & Support Ltd,Home Care - Private Contractors Payment,828.36,0.00,COMMERCIAL SUPPLIER 
 02-03-2022,Adults,Matrix SCM Ltd,Agency Staff,829.16,0.00,COMMERCIAL SUPPLIER 
 16-03-2022,Adults,Lodge Group Care UK Ltd,Home Care - Private Contractors Payment,829.28,0.00,COMMERCIAL SUPPLIER 
 02-03-2022,Adults,Prestige Care & Support Ltd,Home Care - Private Contractors Payment,829.73,0.00,COMMERCIAL SUPPLIER 
 11-03-2022,Adults,Home Sweet Home Care Ltd,Home Care - Private Contractors Payment,830.35,0.00,COMMERCIAL SUPPLIER 
 16-03-2022,Adults,Matrix SCM Ltd,Agency Staff,831.82,0.00,COMMERCIAL SUPPLIER 
 09-03-2022,Adults,Home Support Services (Havering & Essex) Ltd,Home Care - Private Contractors Payment,832.38,0.00,COMMERCIAL SUPPLIER 
 02-03-2022,Adults,Prestige Care & Support Ltd,Home Care - Private Contractors Payment,833.75,0.00,COMMERCIAL SUPPLIER 
 09-03-2022,Adults,Matrix SCM Ltd,Agency Staff,835.92,0.00,COMMERCIAL SUPPLIER 
 16-03-2022,Adults,Matrix SCM Ltd,Agency Staff,835.92,0.00,COMMERCIAL SUPPLIER 
 16-03-2022,Adults,Matrix SCM Ltd,Agency Staff,835.92,0.00,COMMERCIAL SUPPLIER 
 30-03-2022,Adults,Matrix SCM Ltd,Agency Staff,835.92,0.00,COMMERCIAL SUPPLIER 
 30-03-2022,Adults,Matrix SCM Ltd,Agency Staff,835.92,0.00,COMMERCIAL SUPPLIER 
 30-03-2022,Adults,Matrix SCM Ltd,Agency Staff,836.29,0.00,COMMERCIAL SUPPLIER 
 11-03-2022,Adults,Home Sweet Home Care Ltd,Home Care - Private Contractors Payment,838.71,0.00,COMMERCIAL SUPPLIER 
 11-03-2022,Adults,Havering Care Homes Ltd t/a Upminster Nursing Home,Nursing Care Income,838.96,0.00,COMMERCIAL SUPPLIER 
 23-03-2022,Adults,Prior Care Ltd_a,Home Care - Private Contractors Payment,839.83,0.00,COMMERCIAL SUPPLIER 
 24-03-2022,Adults,Morepower Ltd t/a Aqs Homecare,Home Care - Private Contractors Payment,839.94,0.00,COMMERCIAL SUPPLIER 
 23-03-2022,Adults,Matrix SCM Ltd,Agency Staff,840.07,0.00,COMMERCIAL SUPPLIER 
 30-03-2022,Adults,Matrix SCM Ltd,Agency Staff,840.07,0.00,COMMERCIAL SUPPLIER 
 16-03-2022,Adults,Anytime Care 2020_a,Home Care - Private Contractors Payment,841.49,0.00,COMMERCIAL SUPPLIER 
 02-03-2022,Adults,Prestige Care & Support Ltd,Home Care - Private Contractors Payment,841.66,0.00,COMMERCIAL SUPPLIER 
 11-03-2022,Adults,Home Sweet Home Care Ltd,Home Care - Private Contractors Payment,842.11,0.00,COMMERCIAL SUPPLIER 
 16-03-2022,Adults,Lodge Group Care UK Ltd,Home Care - Private Contractors Payment,842.11,0.00,COMMERCIAL SUPPLIER 
 24-03-2022,Adults,Morepower Ltd t/a Aqs Homecare,Home Care - Private Contractors Payment,842.11,0.00,COMMERCIAL SUPPLIER 
 24-03-2022,Adults,Morepower Ltd t/a Aqs Homecare,Home Care - Private Contractors Payment,842.42,0.00,COMMERCIAL SUPPLIER 
 11-03-2022,Adults,Topaz Care and Support Co Ltd,Supported Other Accommodation - Private Contractors Payment,842.57,0.00,COMMERCIAL SUPPLIER 
 11-03-2022,Adults,Ranc Care Homes Ltd - Romford Care Centre,Respite Care - Private Contractors Payment,843.43,0.00,COMMERCIAL SUPPLIER 
 02-03-2022,Adults,Prestige Care & Support Ltd,Home Care - Private Contractors Payment,844.28,0.00,COMMERCIAL SUPPLIER 
 23-03-2022,Adults,Prior Care Ltd_a,Home Care - Private Contractors Payment,846.14,0.00,COMMERCIAL SUPPLIER 
 16-03-2022,Adults,Cera Care Operations Ltd,Home Care - Private Contractors Payment,847.07,0.00,COMMERCIAL SUPPLIER 
 02-03-2022,Adults,Matrix SCM Ltd,Agency Staff,847.12,0.00,COMMERCIAL SUPPLIER 
 23-03-2022,Adults,Matrix SCM Ltd,Agency Staff,847.12,0.00,COMMERCIAL SUPPLIER 
 30-03-2022,Adults,Matrix SCM Ltd,Agency Staff,847.12,0.00,COMMERCIAL SUPPLIER 
 09-03-2022,Adults,Home Support Services (Havering & Essex) Ltd,Home Care - Private Contractors Payment,847.68,0.00,COMMERCIAL SUPPLIER 
 16-03-2022,Adults,Lodge Group Care UK Ltd,Home Care - Private Contractors Payment,849.72,0.00,COMMERCIAL SUPPLIER 
 02-03-2022,Adults,Matrix SCM Ltd,Agency Staff,850.98,0.00,COMMERCIAL SUPPLIER 
 23-03-2022,Adults,Matrix SCM Ltd,Agency Staff,850.98,0.00,COMMERCIAL SUPPLIER 
 30-03-2022,Adults,Matrix SCM Ltd,Agency Staff,850.98,0.00,COMMERCIAL SUPPLIER 
 16-03-2022,Adults,Cera Care Operations Ltd,Home Care - Private Contractors Payment,851.26,0.00,COMMERCIAL SUPPLIER 
 24-03-2022,Adults,Morepower Ltd t/a Aqs Homecare,Home Care - Private Contractors Payment,852.02,0.00,COMMERCIAL SUPPLIER 
 11-03-2022,Adults,North London Care (Havering) Ltd_a,Residential Placements - Private Contractors Payment,854.30,0.00,COMMERCIAL SUPPLIER 
 30-03-2022,Adults,Inna Care Ltd,Home Care - Private Contractors Payment,854.50,0.00,COMMERCIAL SUPPLIER 
 07-03-2022,Adults,Quality Healthcare Solutions Ltd t/a Kare Plus Romford,Home Care - Private Contractors Payment,855.12,0.00,COMMERCIAL SUPPLIER 
 16-03-2022,Adults,Matrix SCM Ltd,Agency Staff,856.35,0.00,COMMERCIAL SUPPLIER 
 23-03-2022,Adults,Matrix SCM Ltd,Agency Staff,856.35,0.00,COMMERCIAL SUPPLIER 
 02-03-2022,Adults,Matrix SCM Ltd,Agency Staff,858.42,0.00,COMMERCIAL SUPPLIER 
 16-03-2022,Adults,Lodge Group Care UK Ltd,Home Care - Private Contractors Payment,858.83,0.00,COMMERCIAL SUPPLIER 
 03-03-2022,Adults,Eastway Care Ltd_a,Daycare - Private Contractors Payment,860.00,0.00,COMMERCIAL SUPPLIER 
 18-03-2022,Adults,Eastway Care Ltd_a,Daycare - Private Contractors Payment,860.00,0.00,COMMERCIAL SUPPLIER 
 16-03-2022,Adults,Lodge Group Care UK Ltd,Home Care - Private Contractors Payment,861.93,0.00,COMMERCIAL SUPPLIER 
 09-03-2022,Adults,Thurrock Lifestyle Solutions CIC,Daycare - Private Contractors Payment,862.80,0.00,COMMERCIAL SUPPLIER 
 09-03-2022,Adults,Matrix SCM Ltd,Agency Staff,863.60,0.00,COMMERCIAL SUPPLIER 
 16-03-2022,Adults,Lodge Group Care UK Ltd,Home Care - Private Contractors Payment,865.02,0.00,COMMERCIAL SUPPLIER 
 02-03-2022,Adults,Care-Away Ltd T/A Care Support,Home Care - Private Contractors Payment,865.28,0.00,COMMERCIAL SUPPLIER 
 09-03-2022,Adults,Home Support Services (Havering & Essex) Ltd,Home Care - Private Contractors Payment,868.32,0.00,COMMERCIAL SUPPLIER 
 11-03-2022,Adults,Ebony Health Care Services Limited,Supported Other Accommodation - Private Contractors Payment,869.50,0.00,COMMERCIAL SUPPLIER 
 23-03-2022,Adults,Prior Care Ltd_a,Home Care - Private Contractors Payment,870.79,0.00,COMMERCIAL SUPPLIER 
 09-03-2022,Adults,Matrix SCM Ltd,Agency Staff,872.80,0.00,COMMERCIAL SUPPLIER 
 09-03-2022,Adults,Matrix SCM Ltd,Agency Staff,872.80,0.00,COMMERCIAL SUPPLIER 
 11-03-2022,Adults,Home Sweet Home Care Ltd,Home Care - Private Contractors Payment,873.07,0.00,COMMERCIAL SUPPLIER 
 11-03-2022,Adults,Home Sweet Home Care Ltd,Home Care - Private Contractors Payment,873.07,0.00,COMMERCIAL SUPPLIER 
 11-03-2022,Adults,Home Sweet Home Care Ltd,Home Care - Private Contractors Payment,873.07,0.00,COMMERCIAL SUPPLIER 
 11-03-2022,Adults,Home Sweet Home Care Ltd,Home Care - Private Contractors Payment,873.07,0.00,COMMERCIAL SUPPLIER 
 30-03-2022,Adults,Matrix SCM Ltd,Agency Staff,876.30,0.00,COMMERCIAL SUPPLIER 
 16-03-2022,Adults,Cera Care Operations Ltd,Home Care - Private Contractors Payment,876.35,0.00,COMMERCIAL SUPPLIER 
 07-03-2022,Adults,Quality Healthcare Solutions Ltd t/a Kare Plus Romford,Home Care - Private Contractors Payment,877.41,0.00,COMMERCIAL SUPPLIER 
 16-03-2022,Adults,Lodge Group Care UK Ltd,Home Care - Private Contractors Payment,879.15,0.00,COMMERCIAL SUPPLIER 
 11-03-2022,Adults,Chosen Care Group Ltd,Supported Other Accommodation - Private Contractors Payment,879.49,0.00,COMMERCIAL SUPPLIER 
 16-03-2022,Adults,Lodge Group Care UK Ltd,Home Care - Private Contractors Payment,879.57,0.00,COMMERCIAL SUPPLIER 
 28-03-2022,Adults,Tapestry_a.,Daycare - Private Contractors Payment,880.00,0.00,COMMERCIAL SUPPLIER 
 28-03-2022,Adults,Tapestry_a.,Daycare - Private Contractors Payment,880.00,0.00,COMMERCIAL SUPPLIER 
 28-03-2022,Adults,Tapestry_a.,Daycare - Private Contractors Payment,880.00,0.00,COMMERCIAL SUPPLIER 
 11-03-2022,Adults,Home Sweet Home Care Ltd,Home Care - Private Contractors Payment,880.50,0.00,COMMERCIAL SUPPLIER 
 16-03-2022,Adults,Anytime Care 2020_a,Home Care - Private Contractors Payment,881.12,0.00,COMMERCIAL SUPPLIER 
 11-03-2022,Adults,Home Sweet Home Care Ltd,Home Care - Private Contractors Payment,882.67,0.00,COMMERCIAL SUPPLIER 
 30-03-2022,Adults,Matrix SCM Ltd,Agency Staff,883.71,0.00,COMMERCIAL SUPPLIER 
 09-03-2022,Adults,Matrix SCM Ltd,Agency Staff,883.73,0.00,COMMERCIAL SUPPLIER 
 23-03-2022,Adults,Matrix SCM Ltd,Agency Staff,883.92,0.00,COMMERCIAL SUPPLIER 
 11-03-2022,Adults,Home Sweet Home Care Ltd,Home Care - Private Contractors Payment,886.08,0.00,COMMERCIAL SUPPLIER 
 16-03-2022,Adults,Lodge Group Care UK Ltd,Home Care - Private Contractors Payment,886.08,0.00,COMMERCIAL SUPPLIER 
 11-03-2022,Adults,Home Sweet Home Care Ltd,Home Care - Private Contractors Payment,886.58,0.00,COMMERCIAL SUPPLIER 
 11-03-2022,Adults,Home Sweet Home Care Ltd,Home Care - Private Contractors Payment,886.69,0.00,COMMERCIAL SUPPLIER 
 16-03-2022,Adults,Lodge Group Care UK Ltd,Home Care - Private Contractors Payment,887.00,0.00,COMMERCIAL SUPPLIER 
 11-03-2022,Adults,Home Sweet Home Care Ltd,Home Care - Private Contractors Payment,888.24,0.00,COMMERCIAL SUPPLIER 
 16-03-2022,Adults,Cera Care Operations Ltd,Home Care - Private Contractors Payment,891.34,0.00,COMMERCIAL SUPPLIER 
 16-03-2022,Adults,Lodge Group Care UK Ltd,Home Care - Private Contractors Payment,891.65,0.00,COMMERCIAL SUPPLIER 
 16-03-2022,Adults,Passion Tree Care Services Ltd,Home Care - Private Contractors Payment,891.65,0.00,COMMERCIAL SUPPLIER 
 23-03-2022,Adults,Prior Care Ltd_a,Home Care - Private Contractors Payment,892.17,0.00,COMMERCIAL SUPPLIER 
 28-03-2022,Adults,London Care Plc_a,Home Care - Private Contractors Payment,892.27,0.00,COMMERCIAL SUPPLIER 
 31-03-2022,Adults,Access UK Ltd,Private Contractors Payment - Other,892.50,0.00,COMMERCIAL SUPPLIER 
 08-03-2022,Adults,Quality Healthcare Solutions Ltd t/a Kare Plus Romford,Other Short Term Support,898.00,0.00,COMMERCIAL SUPPLIER 
 09-03-2022,Adults,Matrix SCM Ltd,Agency Staff,898.47,0.00,COMMERCIAL SUPPLIER 
 11-03-2022,Adults,Mundy House,Residential Placements - Private Contractors Payment,898.90,0.00,COMMERCIAL SUPPLIER 
 11-03-2022,Adults,Home Sweet Home Care Ltd,Home Care - Private Contractors Payment,899.08,0.00,COMMERCIAL SUPPLIER 
 11-03-2022,Adults,Ranc Care Homes Ltd - Romford Care Centre,Residential Placements - Private Contractors Payment,900.00,0.00,COMMERCIAL SUPPLIER 
 14-03-2022,Adults,All Therapy Solutions Ltd,Occupational Health,900.00,0.00,COMMERCIAL SUPPLIER 
 08-03-2022,Adults,Churchill House_a,Other Short Term Support,903.00,0.00,COMMERCIAL SUPPLIER 
 02-03-2022,Adults,Prestige Care & Support Ltd,Home Care - Private Contractors Payment,903.41,0.00,COMMERCIAL SUPPLIER 
 09-03-2022,Adults,Matrix SCM Ltd,Agency Staff,903.60,0.00,COMMERCIAL SUPPLIER 
 11-03-2022,Adults,Outlook Care - 4 Peel Way,Supported Other Accommodation - Private Contractors Payment,905.13,0.00,COMMERCIAL SUPPLIER 
 24-03-2022,Adults,Morepower Ltd t/a Aqs Homecare,Home Care - Private Contractors Payment,905.58,0.00,COMMERCIAL SUPPLIER 
 16-03-2022,Adults,Lodge Group Care UK Ltd,Home Care - Private Contractors Payment,906.20,0.00,COMMERCIAL SUPPLIER 
 28-03-2022,Adults,London Care Plc_a,Home Care - Private Contractors Payment,908.06,0.00,COMMERCIAL SUPPLIER 
 25-03-2022,Adults,KJD Care Limited,Home Care - Private Contractors Payment,910.22,0.00,INDIVIDUALS 
 28-03-2022,Adults,Outreach Support Services Ltd,Home Care - Private Contractors Payment,910.22,0.00,COMMERCIAL SUPPLIER 
 11-03-2022,Adults,Home Sweet Home Care Ltd,Home Care - Private Contractors Payment,911.15,0.00,COMMERCIAL SUPPLIER 
 11-03-2022,Adults,Outlook Care - 76 Neave Crescent,Supported Other Accommodation - Private Contractors Payment,913.14,0.00,COMMERCIAL SUPPLIER 
 11-03-2022,Adults,Pathways Care Group Ltd,Residential Placements - Private Contractors Payment,913.50,0.00,COMMERCIAL SUPPLIER 
 24-03-2022,Adults,Morepower Ltd t/a Aqs Homecare,Home Care - Private Contractors Payment,914.87,0.00,COMMERCIAL SUPPLIER 
 11-03-2022,Adults,Home Sweet Home Care Ltd,Home Care - Private Contractors Payment,915.18,0.00,COMMERCIAL SUPPLIER 
 03-03-2022,Adults,Care-Away Ltd T/A Care Support,Home Care - Private Contractors Payment,915.20,0.00,COMMERCIAL SUPPLIER 
 02-03-2022,Adults,Matrix SCM Ltd,Agency Staff,916.56,0.00,COMMERCIAL SUPPLIER 
 30-03-2022,Adults,Matrix SCM Ltd,Agency Staff,916.56,0.00,COMMERCIAL SUPPLIER 
 16-03-2022,Adults,Lodge Group Care UK Ltd,Home Care - Private Contractors Payment,918.15,0.00,COMMERCIAL SUPPLIER 
 09-03-2022,Adults,Home Support Services (Havering & Essex) Ltd,Home Care - Private Contractors Payment,918.47,0.00,COMMERCIAL SUPPLIER 
 23-03-2022,Adults,Prior Care Ltd_a,Home Care - Private Contractors Payment,918.58,0.00,COMMERCIAL SUPPLIER 
 07-03-2022,Adults,John Stanleys Care Agency Ltd,Home Care - Private Contractors Payment,918.89,0.00,COMMERCIAL SUPPLIER 
 24-03-2022,Adults,Morepower Ltd t/a Aqs Homecare,Home Care - Private Contractors Payment,920.44,0.00,COMMERCIAL SUPPLIER 
 28-03-2022,Adults,London Care Plc_a,Home Care - Private Contractors Payment,920.75,0.00,COMMERCIAL SUPPLIER 
 11-03-2022,Adults,Home Sweet Home Care Ltd,Home Care - Private Contractors Payment,921.68,0.00,COMMERCIAL SUPPLIER 
 09-03-2022,Adults,Home Support Services (Havering & Essex) Ltd,Home Care - Private Contractors Payment,922.81,0.00,COMMERCIAL SUPPLIER 
 23-03-2022,Adults,Prior Care Ltd_a,Home Care - Private Contractors Payment,922.92,0.00,COMMERCIAL SUPPLIER 
 11-03-2022,Adults,Home Sweet Home Care Ltd,Home Care - Private Contractors Payment,923.23,0.00,COMMERCIAL SUPPLIER 
 02-03-2022,Adults,Prestige Care & Support Ltd,Home Care - Private Contractors Payment,923.54,0.00,COMMERCIAL SUPPLIER 
 07-03-2022,Adults,John Stanleys Care Agency Ltd,Home Care - Private Contractors Payment,923.85,0.00,COMMERCIAL SUPPLIER 
 11-03-2022,Adults,Home Sweet Home Care Ltd,Home Care - Private Contractors Payment,924.78,0.00,COMMERCIAL SUPPLIER 
 11-03-2022,Adults,Home Sweet Home Care Ltd,Home Care - Private Contractors Payment,925.39,0.00,COMMERCIAL SUPPLIER 
 16-03-2022,Adults,Lodge Group Care UK Ltd,Home Care - Private Contractors Payment,925.60,0.00,COMMERCIAL SUPPLIER 
 11-03-2022,Adults,Omega Elifar Ltd,Residential Placements - Private Contractors Payment,928.00,0.00,COMMERCIAL SUPPLIER 
 06-03-2022,Adults,Pleasant Home Healthcare Ltd,Home Care - Private Contractors Payment,928.80,0.00,COMMERCIAL SUPPLIER 
 23-03-2022,Adults,Action First Assessments Ltd,Private Contractors Payment - Other,930.00,0.00,COMMERCIAL SUPPLIER 
 23-03-2022,Adults,Action First Assessments Ltd,Private Contractors Payment - Other,930.00,0.00,COMMERCIAL SUPPLIER 
 16-03-2022,Adults,Lodge Group Care UK Ltd,Home Care - Private Contractors Payment,930.66,0.00,COMMERCIAL SUPPLIER 
 24-03-2022,Adults,Morepower Ltd t/a Aqs Homecare,Home Care - Private Contractors Payment,930.97,0.00,COMMERCIAL SUPPLIER 
 11-03-2022,Adults,Priory Supporting Care Ltd,Residential Care Income,931.48,0.00,COMMERCIAL SUPPLIER 
 11-03-2022,Adults,Priory Supporting Care Ltd,Residential Care Income,931.48,0.00,COMMERCIAL SUPPLIER 
 02-03-2022,Adults,Care-Away Ltd T/A Care Support,Home Care - Private Contractors Payment,931.84,0.00,COMMERCIAL SUPPLIER 
 02-03-2022,Adults,Care-Away Ltd T/A Care Support,Home Care - Private Contractors Payment,931.84,0.00,COMMERCIAL SUPPLIER 
 03-03-2022,Adults,Care-Away Ltd T/A Care Support,Home Care - Private Contractors Payment,931.84,0.00,COMMERCIAL SUPPLIER 
 03-03-2022,Adults,Care-Away Ltd T/A Care Support,Home Care - Private Contractors Payment,931.84,0.00,COMMERCIAL SUPPLIER 
 03-03-2022,Adults,Care-Away Ltd T/A Care Support,Home Care - Private Contractors Payment,931.84,0.00,COMMERCIAL SUPPLIER 
 03-03-2022,Adults,Care-Away Ltd T/A Care Support,Home Care - Private Contractors Payment,931.84,0.00,COMMERCIAL SUPPLIER 
 11-03-2022,Adults,Home Sweet Home Care Ltd,Home Care - Private Contractors Payment,933.44,0.00,COMMERCIAL SUPPLIER 
 16-03-2022,Adults,Cera Care Operations Ltd,Home Care - Private Contractors Payment,933.75,0.00,COMMERCIAL SUPPLIER 
 16-03-2022,Adults,Lodge Group Care UK Ltd,Home Care - Private Contractors Payment,935.92,0.00,COMMERCIAL SUPPLIER 
 16-03-2022,Adults,Lodge Group Care UK Ltd,Home Care - Private Contractors Payment,935.92,0.00,COMMERCIAL SUPPLIER 
 23-03-2022,Adults,Prior Care Ltd_a,Home Care - Private Contractors Payment,937.07,0.00,COMMERCIAL SUPPLIER 
 11-03-2022,Adults,Nightingale Residential Care Home Ltd,Residential Placements - Private Contractors Payment,937.14,0.00,COMMERCIAL SUPPLIER 
 11-03-2022,Adults,Lodge Lane Care Home Limited,Residential Placements - Private Contractors Payment,937.14,0.00,COMMERCIAL SUPPLIER 
 11-03-2022,Adults,Lodge Lane Care Home Limited,Residential Placements - Private Contractors Payment,937.14,0.00,COMMERCIAL SUPPLIER 
 11-03-2022,Adults,Lodge Lane Care Home Limited,Residential Placements - Private Contractors Payment,937.14,0.00,COMMERCIAL SUPPLIER 
 16-03-2022,Adults,Matrix SCM Ltd,Agency Staff,938.26,0.00,COMMERCIAL SUPPLIER 
 16-03-2022,Adults,Cera Care Operations Ltd,Home Care - Private Contractors Payment,938.71,0.00,COMMERCIAL SUPPLIER 
 09-03-2022,Adults,Home Support Services (Havering & Essex) Ltd,Home Care - Private Contractors Payment,939.64,0.00,COMMERCIAL SUPPLIER 
 30-03-2022,Adults,Matrix SCM Ltd,Agency Staff,941.92,0.00,COMMERCIAL SUPPLIER 
 11-03-2022,Adults,HC-One Oval Ltd - The Hornchurch Nursing Centre,Residential Care Income,944.32,0.00,COMMERCIAL SUPPLIER 
 07-03-2022,Adults,John Stanleys Care Agency Ltd,Home Care - Private Contractors Payment,944.59,0.00,COMMERCIAL SUPPLIER 
 22-03-2022,Adults,Hospiva Care & Associates Agency Ltd_a,Other Short Term Support,945.00,0.00,COMMERCIAL SUPPLIER 
 22-03-2022,Adults,Allcare Agency Ltd,Other Short Term Support,945.00,0.00,COMMERCIAL SUPPLIER 
 22-03-2022,Adults,Altimate Care Services UK Ltd ,Other Short Term Support,945.00,0.00,COMMERCIAL SUPPLIER 
 02-03-2022,Adults,Matrix SCM Ltd,Agency Staff,945.56,0.00,COMMERCIAL SUPPLIER 
 25-03-2022,Adults,Fisk Group,Catering And Vending Supplies,950.00,0.00,COMMERCIAL SUPPLIER 
 11-03-2022,Adults,2 Peel Way - Outlook Care,Home Care - Private Contractors Payment,950.79,0.00,NON COMMERCIAL SUPPLIER 
 28-03-2022,Adults,London Care Plc_a,Home Care - Private Contractors Payment,951.09,0.00,COMMERCIAL SUPPLIER 
 11-03-2022,Adults,IECC Care,Supported Other Accommodation - Private Contractors Payment,951.20,0.00,COMMERCIAL SUPPLIER 
 02-03-2022,Adults,Prestige Care & Support Ltd,Home Care - Private Contractors Payment,951.27,0.00,COMMERCIAL SUPPLIER 
 02-03-2022,Adults,Prestige Care & Support Ltd,Home Care - Private Contractors Payment,951.31,0.00,COMMERCIAL SUPPLIER 
 11-03-2022,Adults,Christies Care Ltd_a,Home Care - Private Contractors Payment,956.60,0.00,COMMERCIAL SUPPLIER 
 21-03-2022,Adults,Harold Wood Funeral Services Ltd,Bereavement Services Equipment,957.00,0.00,COMMERCIAL SUPPLIER 
 16-03-2022,Adults,Lodge Group Care UK Ltd,Home Care - Private Contractors Payment,959.14,0.00,COMMERCIAL SUPPLIER 
 16-03-2022,Adults,Anytime Care 2020_a,Home Care - Private Contractors Payment,960.07,0.00,COMMERCIAL SUPPLIER 
 09-03-2022,Adults,Home Support Services (Havering & Essex) Ltd,Home Care - Private Contractors Payment,961.78,0.00,COMMERCIAL SUPPLIER 
 24-03-2022,Adults,Morepower Ltd t/a Aqs Homecare,Home Care - Private Contractors Payment,962.24,0.00,COMMERCIAL SUPPLIER 
 16-03-2022,Adults,Cera Care Operations Ltd,Home Care - Private Contractors Payment,964.71,0.00,COMMERCIAL SUPPLIER 
 09-03-2022,Adults,Matrix SCM Ltd,Agency Staff,964.80,0.00,COMMERCIAL SUPPLIER 
 16-03-2022,Adults,Matrix SCM Ltd,Agency Staff,964.80,0.00,COMMERCIAL SUPPLIER 
 23-03-2022,Adults,Matrix SCM Ltd,Agency Staff,964.80,0.00,COMMERCIAL SUPPLIER 
 23-03-2022,Adults,Matrix SCM Ltd,Agency Staff,964.80,0.00,COMMERCIAL SUPPLIER 
 02-03-2022,Adults,Care-Away Ltd T/A Care Support,Home Care - Private Contractors Payment,965.12,0.00,COMMERCIAL SUPPLIER 
 02-03-2022,Adults,Care-Away Ltd T/A Care Support,Home Care - Private Contractors Payment,965.12,0.00,COMMERCIAL SUPPLIER 
 11-03-2022,Adults,Home Sweet Home Care Ltd,Home Care - Private Contractors Payment,965.95,0.00,COMMERCIAL SUPPLIER 
 11-03-2022,Adults,Home Sweet Home Care Ltd,Home Care - Private Contractors Payment,965.95,0.00,COMMERCIAL SUPPLIER 
 25-03-2022,Adults,KJD Care Limited,Home Care - Private Contractors Payment,965.95,0.00,INDIVIDUALS 
 16-03-2022,Adults,Lodge Group Care UK Ltd,Home Care - Private Contractors Payment,969.56,0.00,COMMERCIAL SUPPLIER 
 30-03-2022,Adults,Matrix SCM Ltd,Agency Staff,970.92,0.00,COMMERCIAL SUPPLIER 
 28-03-2022,Adults,London Care Plc_a,Home Care - Private Contractors Payment,971.22,0.00,COMMERCIAL SUPPLIER 
 24-03-2022,Adults,Morepower Ltd t/a Aqs Homecare,Home Care - Private Contractors Payment,972.14,0.00,COMMERCIAL SUPPLIER 
 24-03-2022,Adults,Morepower Ltd t/a Aqs Homecare,Home Care - Private Contractors Payment,972.14,0.00,COMMERCIAL SUPPLIER 
 02-03-2022,Adults,Prestige Care & Support Ltd,Home Care - Private Contractors Payment,974.31,0.00,COMMERCIAL SUPPLIER 
 16-03-2022,Adults,Lodge Group Care UK Ltd,Home Care - Private Contractors Payment,975.14,0.00,COMMERCIAL SUPPLIER 
 11-03-2022,Adults,Ebony Health Care Services Limited,Supported Other Accommodation - Private Contractors Payment,978.75,0.00,COMMERCIAL SUPPLIER 
 11-03-2022,Adults,Home Sweet Home Care Ltd,Home Care - Private Contractors Payment,978.96,0.00,COMMERCIAL SUPPLIER 
 02-03-2022,Adults,Prestige Care & Support Ltd,Home Care - Private Contractors Payment,981.43,0.00,COMMERCIAL SUPPLIER 
 08-03-2022,Adults,The Avenues Trust Support Services Glebe House,Other Short Term Support,985.00,0.00,COMMERCIAL SUPPLIER 
 07-03-2022,Adults,John Stanleys Care Agency Ltd,Home Care - Private Contractors Payment,987.93,0.00,COMMERCIAL SUPPLIER 
 11-03-2022,Adults,Coastal Supported Living CIC,Supported Other Accommodation - Private Contractors Payment,988.90,0.00,COMMERCIAL SUPPLIER 
 24-03-2022,Adults,Morepower Ltd t/a Aqs Homecare,Home Care - Private Contractors Payment,989.17,0.00,COMMERCIAL SUPPLIER 
 24-03-2022,Adults,Morepower Ltd t/a Aqs Homecare,Home Care - Private Contractors Payment,989.17,0.00,COMMERCIAL SUPPLIER 
 09-03-2022,Adults,Home Support Services (Havering & Essex) Ltd,Home Care - Private Contractors Payment,990.32,0.00,COMMERCIAL SUPPLIER 
 07-03-2022,Adults,John Stanleys Care Agency Ltd,Home Care - Private Contractors Payment,994.13,0.00,COMMERCIAL SUPPLIER 
 11-03-2022,Adults,KJD Care Limited,Supported Other Accommodation - Private Contractors Payment,994.29,0.00,INDIVIDUALS 
 07-03-2022,Adults,John Stanleys Care Agency Ltd,Home Care - Private Contractors Payment,995.98,0.00,COMMERCIAL SUPPLIER 
 23-03-2022,Adults,Prior Care Ltd_a,Home Care - Private Contractors Payment,998.07,0.00,COMMERCIAL SUPPLIER 
 25-03-2022,Adults,KJD Care Limited,Home Care - Private Contractors Payment,999.72,0.00,INDIVIDUALS 
 18-03-2022,Adults,Star Mini Cabs.,Client Transport,1000.00,0.00,COMMERCIAL SUPPLIER 
 11-03-2022,Adults,Home Sweet Home Care Ltd,Home Care - Private Contractors Payment,1003.10,0.00,COMMERCIAL SUPPLIER 
 30-03-2022,Adults,Matrix SCM Ltd,Agency Staff,1003.13,0.00,COMMERCIAL SUPPLIER 
 16-03-2022,Adults,Lodge Group Care UK Ltd,Home Care - Private Contractors Payment,1004.57,0.00,COMMERCIAL SUPPLIER 
 16-03-2022,Adults,Lodge Group Care UK Ltd,Home Care - Private Contractors Payment,1005.18,0.00,COMMERCIAL SUPPLIER 
 16-03-2022,Adults,Lodge Group Care UK Ltd,Home Care - Private Contractors Payment,1005.58,0.00,COMMERCIAL SUPPLIER 
 30-03-2022,Adults,Matrix SCM Ltd,Agency Staff,1006.94,0.00,COMMERCIAL SUPPLIER 
 03-03-2022,Adults,Care-Away Ltd T/A Care Support,Home Care - Private Contractors Payment,1010.88,0.00,COMMERCIAL SUPPLIER 
 16-03-2022,Adults,Matrix SCM Ltd,Agency Staff,1012.12,0.00,COMMERCIAL SUPPLIER 
 11-03-2022,Adults,Home Sweet Home Care Ltd,Home Care - Private Contractors Payment,1012.39,0.00,COMMERCIAL SUPPLIER 
 16-03-2022,Adults,Lodge Group Care UK Ltd,Home Care - Private Contractors Payment,1012.61,0.00,COMMERCIAL SUPPLIER 
 02-03-2022,Adults,Prestige Care & Support Ltd,Home Care - Private Contractors Payment,1013.94,0.00,COMMERCIAL SUPPLIER 
 02-03-2022,Adults,Care-Away Ltd T/A Care Support,Home Care - Private Contractors Payment,1015.04,0.00,COMMERCIAL SUPPLIER 
 23-03-2022,Adults,Prior Care Ltd_a,Home Care - Private Contractors Payment,1019.75,0.00,COMMERCIAL SUPPLIER 
 11-03-2022,Adults,Outlook Care - 4 Peel Way,Supported Other Accommodation - Private Contractors Payment,1021.01,0.00,COMMERCIAL SUPPLIER 
 16-03-2022,Adults,Lodge Group Care UK Ltd,Home Care - Private Contractors Payment,1021.60,0.00,COMMERCIAL SUPPLIER 
 11-03-2022,Adults,Home Sweet Home Care Ltd,Home Care - Private Contractors Payment,1021.68,0.00,COMMERCIAL SUPPLIER 
 29-03-2022,Adults,Inna Care Ltd,Home Care - Private Contractors Payment,1021.68,0.00,COMMERCIAL SUPPLIER 
 16-03-2022,Adults,Lodge Group Care UK Ltd,Home Care - Private Contractors Payment,1023.13,0.00,COMMERCIAL SUPPLIER 
 22-03-2022,Adults,London Homecare Ltd,Other Short Term Support,1024.00,0.00,COMMERCIAL SUPPLIER 
 16-03-2022,Adults,Lodge Group Care UK Ltd,Home Care - Private Contractors Payment,1025.00,0.00,COMMERCIAL SUPPLIER 
 15-03-2022,Adults,Trinity London Care Ltd,Daycare - Private Contractors Payment,1025.20,0.00,COMMERCIAL SUPPLIER 
 15-03-2022,Adults,Trinity London Care Ltd,Daycare - Private Contractors Payment,1025.20,0.00,COMMERCIAL SUPPLIER 
 15-03-2022,Adults,Trinity London Care Ltd,Daycare - Private Contractors Payment,1025.20,0.00,COMMERCIAL SUPPLIER 
 16-03-2022,Adults,Cera Care Operations Ltd,Home Care - Private Contractors Payment,1025.40,0.00,COMMERCIAL SUPPLIER 
 07-03-2022,Adults,John Stanleys Care Agency Ltd,Home Care - Private Contractors Payment,1027.25,0.00,COMMERCIAL SUPPLIER 
 07-03-2022,Adults,John Stanleys Care Agency Ltd,Home Care - Private Contractors Payment,1029.42,0.00,COMMERCIAL SUPPLIER 
 11-03-2022,Adults,Langley House,Respite Care - Private Contractors Payment,1030.86,0.00,COMMERCIAL SUPPLIER 
 11-03-2022,Adults,Lodge Lane Care Home Limited,Residential Placements - Private Contractors Payment,1030.86,0.00,COMMERCIAL SUPPLIER 
 11-03-2022,Adults,Home Sweet Home Care Ltd,Home Care - Private Contractors Payment,1030.97,0.00,COMMERCIAL SUPPLIER 
 24-03-2022,Adults,Morepower Ltd t/a Aqs Homecare,Home Care - Private Contractors Payment,1030.97,0.00,COMMERCIAL SUPPLIER 
 07-03-2022,Adults,John Stanleys Care Agency Ltd,Home Care - Private Contractors Payment,1032.21,0.00,COMMERCIAL SUPPLIER 
 11-03-2022,Adults,Care Management Group Ltd - The Ridgeway,Supported Other Accommodation - Private Contractors Payment,1033.52,0.00,COMMERCIAL SUPPLIER 
 09-03-2022,Adults,Home Support Services (Havering & Essex) Ltd,Home Care - Private Contractors Payment,1034.28,0.00,COMMERCIAL SUPPLIER 
 30-03-2022,Adults,Matrix SCM Ltd,Agency Staff,1034.40,0.00,COMMERCIAL SUPPLIER 
 01-03-2022,Adults,Bluebird Care Havering,Home Care - Private Contractors Payment,1035.52,0.00,COMMERCIAL SUPPLIER 
 14-03-2022,Adults,Bluebird Care Havering,Home Care - Private Contractors Payment,1035.52,0.00,COMMERCIAL SUPPLIER 
 28-03-2022,Adults,Bluebird Care Havering,Home Care - Private Contractors Payment,1035.52,0.00,COMMERCIAL SUPPLIER 
 09-03-2022,Adults,Home Support Services (Havering & Essex) Ltd,Home Care - Private Contractors Payment,1036.76,0.00,COMMERCIAL SUPPLIER 
 16-03-2022,Adults,Lodge Group Care UK Ltd,Home Care - Private Contractors Payment,1036.77,0.00,COMMERCIAL SUPPLIER 
 16-03-2022,Adults,Lodge Group Care UK Ltd,Home Care - Private Contractors Payment,1037.38,0.00,COMMERCIAL SUPPLIER 
 02-03-2022,Adults,Matrix SCM Ltd,Agency Staff,1039.36,0.00,COMMERCIAL SUPPLIER 
 11-03-2022,Adults,Rosemont Care Limited,Home Care - Private Contractors Payment,1040.26,0.00,COMMERCIAL SUPPLIER 
 11-03-2022,Adults,Rosemont Care Limited,Home Care - Private Contractors Payment,1040.26,0.00,COMMERCIAL SUPPLIER 
 11-03-2022,Adults,Rosemont Care Limited,Home Care - Private Contractors Payment,1040.26,0.00,COMMERCIAL SUPPLIER 
 11-03-2022,Adults,Rosemont Care Limited,Home Care - Private Contractors Payment,1040.26,0.00,COMMERCIAL SUPPLIER 
 11-03-2022,Adults,Rosemont Care Limited,Home Care - Private Contractors Payment,1040.26,0.00,COMMERCIAL SUPPLIER 
 11-03-2022,Adults,Rosemont Care Limited,Home Care - Private Contractors Payment,1040.26,0.00,COMMERCIAL SUPPLIER 
 11-03-2022,Adults,Rosemont Care Limited,Home Care - Private Contractors Payment,1040.26,0.00,COMMERCIAL SUPPLIER 
 11-03-2022,Adults,Rosemont Care Limited,Home Care - Private Contractors Payment,1040.26,0.00,COMMERCIAL SUPPLIER 
 16-03-2022,Adults,Passion Tree Care Services Ltd,Home Care - Private Contractors Payment,1040.26,0.00,COMMERCIAL SUPPLIER 
 16-03-2022,Adults,Passion Tree Care Services Ltd,Home Care - Private Contractors Payment,1040.26,0.00,COMMERCIAL SUPPLIER 
 16-03-2022,Adults,Passion Tree Care Services Ltd,Home Care - Private Contractors Payment,1040.26,0.00,COMMERCIAL SUPPLIER 
 24-03-2022,Adults,Morepower Ltd t/a Aqs Homecare,Home Care - Private Contractors Payment,1040.26,0.00,COMMERCIAL SUPPLIER 
 25-03-2022,Adults,KJD Care Limited,Home Care - Private Contractors Payment,1040.26,0.00,INDIVIDUALS 
 28-03-2022,Adults,Outreach Support Services Ltd,Home Care - Private Contractors Payment,1040.26,0.00,COMMERCIAL SUPPLIER 
 28-03-2022,Adults,Outreach Support Services Ltd,Home Care - Private Contractors Payment,1040.26,0.00,COMMERCIAL SUPPLIER 
 28-03-2022,Adults,Outreach Support Services Ltd,Home Care - Private Contractors Payment,1040.26,0.00,COMMERCIAL SUPPLIER 
 28-03-2022,Adults,Outreach Support Services Ltd,Home Care - Private Contractors Payment,1040.26,0.00,COMMERCIAL SUPPLIER 
 28-03-2022,Adults,Outreach Support Services Ltd,Home Care - Private Contractors Payment,1040.26,0.00,COMMERCIAL SUPPLIER 
 28-03-2022,Adults,Outreach Support Services Ltd,Home Care - Private Contractors Payment,1040.26,0.00,COMMERCIAL SUPPLIER 
 28-03-2022,Adults,Outreach Support Services Ltd,Home Care - Private Contractors Payment,1040.26,0.00,COMMERCIAL SUPPLIER 
 29-03-2022,Adults,Inna Care Ltd,Home Care - Private Contractors Payment,1040.26,0.00,COMMERCIAL SUPPLIER 
 29-03-2022,Adults,London Homecare Ltd,Home Care - Private Contractors Payment,1040.26,0.00,COMMERCIAL SUPPLIER 
 29-03-2022,Adults,London Homecare Ltd,Home Care - Private Contractors Payment,1040.26,0.00,COMMERCIAL SUPPLIER 
 30-03-2022,Adults,Inna Care Ltd,Home Care - Private Contractors Payment,1040.26,0.00,COMMERCIAL SUPPLIER 
 30-03-2022,Adults,Inna Care Ltd,Home Care - Private Contractors Payment,1040.26,0.00,COMMERCIAL SUPPLIER 
 30-03-2022,Adults,Inna Care Ltd,Home Care - Private Contractors Payment,1040.26,0.00,COMMERCIAL SUPPLIER 
 30-03-2022,Adults,Inna Care Ltd,Home Care - Private Contractors Payment,1040.26,0.00,COMMERCIAL SUPPLIER 
 30-03-2022,Adults,Inna Care Ltd,Home Care - Private Contractors Payment,1040.26,0.00,COMMERCIAL SUPPLIER 
 30-03-2022,Adults,Inna Care Ltd,Home Care - Private Contractors Payment,1040.26,0.00,COMMERCIAL SUPPLIER 
 11-03-2022,Adults,Outreach Support Services Ltd,Supported Other Accommodation - Private Contractors Payment,1044.00,0.00,COMMERCIAL SUPPLIER 
 25-03-2022,Adults,Essex Cares Ltd,"Purchase - Equipment, Furniture And Materials",1044.24,0.00,COMMERCIAL SUPPLIER 
 11-03-2022,Adults,May Residential Homes Ltd,Residential Care Income,1046.13,0.00,COMMERCIAL SUPPLIER 
 03-03-2022,Adults,Care-Away Ltd T/A Care Support,Home Care - Private Contractors Payment,1048.32,0.00,COMMERCIAL SUPPLIER 
 03-03-2022,Adults,Care-Away Ltd T/A Care Support,Home Care - Private Contractors Payment,1048.32,0.00,COMMERCIAL SUPPLIER 
 09-03-2022,Adults,Treal Care Limited,Home Care - Private Contractors Payment,1050.00,0.00,COMMERCIAL SUPPLIER 
 11-03-2022,Adults,The Cottage Residential Care Home,Residential Placements - Private Contractors Payment,1051.17,0.00,COMMERCIAL SUPPLIER 
 22-03-2022,Adults,Toltal Care at Home Ltd ,Other Short Term Support,1057.00,0.00,COMMERCIAL SUPPLIER 
 23-03-2022,Adults,Matrix SCM Ltd,Agency Staff,1057.92,0.00,COMMERCIAL SUPPLIER 
 30-03-2022,Adults,Matrix SCM Ltd,Agency Staff,1057.92,0.00,COMMERCIAL SUPPLIER 
 29-03-2022,Adults,Inna Care Ltd,Home Care - Private Contractors Payment,1058.83,0.00,COMMERCIAL SUPPLIER 
 11-03-2022,Adults,Havering Care Homes Ltd t/a Abbscross Nursing Home,Nursing Care Income,1065.32,0.00,COMMERCIAL SUPPLIER 
 11-03-2022,Adults,Havering Care Homes Ltd t/a Abbscross Nursing Home,Nursing Care Income,1065.32,0.00,COMMERCIAL SUPPLIER 
 16-03-2022,Adults,Matrix SCM Ltd,Agency Staff,1066.80,0.00,COMMERCIAL SUPPLIER 
 11-03-2022,Adults,One Tree Estates Ltd t/a Ashbrook Nursing Home,Nursing Homes - Private Contractors Payment,1067.43,0.00,COMMERCIAL SUPPLIER 
 11-03-2022,Adults,One Tree Estates Ltd t/a Ashbrook Nursing Home,Nursing Homes - Private Contractors Payment,1067.43,0.00,COMMERCIAL SUPPLIER 
 11-03-2022,Adults,Havering Care Homes Ltd t/a Upminster Nursing Home,Nursing Homes - Private Contractors Payment,1067.43,0.00,COMMERCIAL SUPPLIER 
 11-03-2022,Adults,Lukka Care Homes Ltd - Ravenscourt,Nursing Homes - Private Contractors Payment,1067.43,0.00,COMMERCIAL SUPPLIER 
 09-03-2022,Adults,Matrix SCM Ltd,Agency Staff,1072.40,0.00,COMMERCIAL SUPPLIER 
 16-03-2022,Adults,Matrix SCM Ltd,Agency Staff,1072.40,0.00,COMMERCIAL SUPPLIER 
 23-03-2022,Adults,Matrix SCM Ltd,Agency Staff,1072.40,0.00,COMMERCIAL SUPPLIER 
 16-03-2022,Adults,Cera Care Operations Ltd,Home Care - Private Contractors Payment,1073.07,0.00,COMMERCIAL SUPPLIER 
 16-03-2022,Adults,Anytime Care 2020_a,Home Care - Private Contractors Payment,1073.69,0.00,COMMERCIAL SUPPLIER 
 16-03-2022,Adults,Lodge Group Care UK Ltd,Home Care - Private Contractors Payment,1076.40,0.00,COMMERCIAL SUPPLIER 
 16-03-2022,Adults,Matrix SCM Ltd,Agency Staff,1078.14,0.00,COMMERCIAL SUPPLIER 
 16-03-2022,Adults,Lodge Group Care UK Ltd,Home Care - Private Contractors Payment,1079.49,0.00,COMMERCIAL SUPPLIER 
 16-03-2022,Adults,Lodge Group Care UK Ltd,Home Care - Private Contractors Payment,1082.05,0.00,COMMERCIAL SUPPLIER 
 30-03-2022,Adults,Matrix SCM Ltd,Agency Staff,1085.37,0.00,COMMERCIAL SUPPLIER 
 02-03-2022,Adults,Matrix SCM Ltd,Agency Staff,1085.40,0.00,COMMERCIAL SUPPLIER 
 09-03-2022,Adults,Home Support Services (Havering & Essex) Ltd,Home Care - Private Contractors Payment,1089.72,0.00,COMMERCIAL SUPPLIER 
 09-03-2022,Adults,Home Support Services (Havering & Essex) Ltd,Home Care - Private Contractors Payment,1090.35,0.00,COMMERCIAL SUPPLIER 
 23-03-2022,Adults,Matrix SCM Ltd,Agency Staff,1092.71,0.00,COMMERCIAL SUPPLIER 
 22-03-2022,Adults,BeTo Solutions Ltd - Jolly House Julia Lamb,Other Short Term Support,1095.00,0.00,COMMERCIAL SUPPLIER 
 22-03-2022,Adults,Shalom Community Support Services,Other Short Term Support,1095.00,0.00,COMMERCIAL SUPPLIER 
 16-03-2022,Adults,Lodge Group Care UK Ltd,Home Care - Private Contractors Payment,1095.90,0.00,COMMERCIAL SUPPLIER 
 02-03-2022,Adults,Carers Trust East Midlands,Home Care - Private Contractors Payment,1095.98,0.00,COMMERCIAL SUPPLIER 
 02-03-2022,Adults,Matrix SCM Ltd,Agency Staff,1096.92,0.00,COMMERCIAL SUPPLIER 
 09-03-2022,Adults,Matrix SCM Ltd,Agency Staff,1096.92,0.00,COMMERCIAL SUPPLIER 
 02-03-2022,Adults,Matrix SCM Ltd,Agency Staff,1096.93,0.00,COMMERCIAL SUPPLIER 
 02-03-2022,Adults,Matrix SCM Ltd,Agency Staff,1096.93,0.00,COMMERCIAL SUPPLIER 
 16-03-2022,Adults,Matrix SCM Ltd,Agency Staff,1096.93,0.00,COMMERCIAL SUPPLIER 
 23-03-2022,Adults,Matrix SCM Ltd,Agency Staff,1096.93,0.00,COMMERCIAL SUPPLIER 
 30-03-2022,Adults,Matrix SCM Ltd,Agency Staff,1096.93,0.00,COMMERCIAL SUPPLIER 
 02-03-2022,Adults,Matrix SCM Ltd,Agency Staff,1097.28,0.00,COMMERCIAL SUPPLIER 
 02-03-2022,Adults,Matrix SCM Ltd,Agency Staff,1097.28,0.00,COMMERCIAL SUPPLIER 
 02-03-2022,Adults,Matrix SCM Ltd,Agency Staff,1097.28,0.00,COMMERCIAL SUPPLIER 
 02-03-2022,Adults,Matrix SCM Ltd,Agency Staff,1097.28,0.00,COMMERCIAL SUPPLIER 
 09-03-2022,Adults,Matrix SCM Ltd,Agency Staff,1097.28,0.00,COMMERCIAL SUPPLIER 
 09-03-2022,Adults,Matrix SCM Ltd,Agency Staff,1097.28,0.00,COMMERCIAL SUPPLIER 
 09-03-2022,Adults,Matrix SCM Ltd,Agency Staff,1097.28,0.00,COMMERCIAL SUPPLIER 
 16-03-2022,Adults,Matrix SCM Ltd,Agency Staff,1097.28,0.00,COMMERCIAL SUPPLIER 
 16-03-2022,Adults,Matrix SCM Ltd,Agency Staff,1097.28,0.00,COMMERCIAL SUPPLIER 
 16-03-2022,Adults,Matrix SCM Ltd,Agency Staff,1097.28,0.00,COMMERCIAL SUPPLIER 
 23-03-2022,Adults,Matrix SCM Ltd,Agency Staff,1097.28,0.00,COMMERCIAL SUPPLIER 
 23-03-2022,Adults,Matrix SCM Ltd,Agency Staff,1097.28,0.00,COMMERCIAL SUPPLIER 
 23-03-2022,Adults,Matrix SCM Ltd,Agency Staff,1097.28,0.00,COMMERCIAL SUPPLIER 
 30-03-2022,Adults,Matrix SCM Ltd,Agency Staff,1097.28,0.00,COMMERCIAL SUPPLIER 
 30-03-2022,Adults,Matrix SCM Ltd,Agency Staff,1097.28,0.00,COMMERCIAL SUPPLIER 
 30-03-2022,Adults,Matrix SCM Ltd,Agency Staff,1097.28,0.00,COMMERCIAL SUPPLIER 
 22-03-2022,Adults,Protecthand Care Ltd ,Other Short Term Support,1099.00,0.00,COMMERCIAL SUPPLIER 
 02-03-2022,Adults,Matrix SCM Ltd,Agency Staff,1099.22,0.00,COMMERCIAL SUPPLIER 
 11-03-2022,Adults,The Riverside Group,Supported Other Accommodation - Private Contractors Payment,1100.00,0.00, 
 11-03-2022,Adults,The Riverside Group,Supported Other Accommodation - Private Contractors Payment,1100.00,0.00, 
 11-03-2022,Adults,The Riverside Group,Supported Other Accommodation - Private Contractors Payment,1100.00,0.00, 
 11-03-2022,Adults,The Riverside Group,Supported Other Accommodation - Private Contractors Payment,1100.00,0.00, 
 11-03-2022,Adults,The Riverside Group,Supported Other Accommodation - Private Contractors Payment,1100.00,0.00, 
 11-03-2022,Adults,The Riverside Group,Supported Other Accommodation - Private Contractors Payment,1100.00,0.00, 
 11-03-2022,Adults,The Riverside Group,Supported Other Accommodation - Private Contractors Payment,1100.00,0.00, 
 11-03-2022,Adults,The Riverside Group,Supported Other Accommodation - Private Contractors Payment,1100.00,0.00, 
 14-03-2022,Adults,OCD - Daniel Tyler t/a,Agency Staff,1100.00,0.00,COMMERCIAL SUPPLIER 
 28-03-2022,Adults,Tapestry_a.,Daycare - Private Contractors Payment,1100.00,0.00,COMMERCIAL SUPPLIER 
 28-03-2022,Adults,Tapestry_a.,Daycare - Private Contractors Payment,1100.00,0.00,COMMERCIAL SUPPLIER 
 28-03-2022,Adults,Tapestry_a.,Daycare - Private Contractors Payment,1100.00,0.00,COMMERCIAL SUPPLIER 
 24-03-2022,Adults,Morepower Ltd t/a Aqs Homecare,Home Care - Private Contractors Payment,1101.56,0.00,COMMERCIAL SUPPLIER 
 24-03-2022,Adults,Morepower Ltd t/a Aqs Homecare,Home Care - Private Contractors Payment,1103.10,0.00,COMMERCIAL SUPPLIER 
 18-03-2022,Adults,Headway East London,Daycare - Private Contractors Payment,1108.80,0.00,COMMERCIAL SUPPLIER 
 16-03-2022,Adults,Lodge Group Care UK Ltd,Home Care - Private Contractors Payment,1111.37,0.00,COMMERCIAL SUPPLIER 
 23-03-2022,Adults,Prior Care Ltd_a,Home Care - Private Contractors Payment,1113.94,0.00,COMMERCIAL SUPPLIER 
 30-03-2022,Adults,Carers Trust East Midlands,Home Care - Private Contractors Payment,1114.56,0.00,COMMERCIAL SUPPLIER 
 03-03-2022,Adults,Care-Away Ltd T/A Care Support,Home Care - Private Contractors Payment,1114.88,0.00,COMMERCIAL SUPPLIER 
 09-03-2022,Adults,Matrix SCM Ltd,Agency Staff,1121.40,0.00,COMMERCIAL SUPPLIER 
 16-03-2022,Adults,Matrix SCM Ltd,Agency Staff,1121.40,0.00,COMMERCIAL SUPPLIER 
 23-03-2022,Adults,Matrix SCM Ltd,Agency Staff,1121.40,0.00,COMMERCIAL SUPPLIER 
 30-03-2022,Adults,Matrix SCM Ltd,Agency Staff,1121.40,0.00,COMMERCIAL SUPPLIER 
 11-03-2022,Adults,Fountains Care Centre - Bondcare,Residential Placements - Private Contractors Payment,1124.57,0.00,COMMERCIAL SUPPLIER 
 11-03-2022,Adults,Clover Cottage Ltd,Residential Placements - Private Contractors Payment,1124.57,0.00,COMMERCIAL SUPPLIER 
 11-03-2022,Adults,Lodge Lane Care Home Limited,Residential Placements - Private Contractors Payment,1124.57,0.00,COMMERCIAL SUPPLIER 
 11-03-2022,Adults,HC-One Oval Ltd - Admirals Reach Residential & Nursing Centre,Nursing Homes - Private Contractors Payment,1125.86,0.00,COMMERCIAL SUPPLIER 
 02-03-2022,Adults,Matrix SCM Ltd,Agency Staff,1133.28,0.00,COMMERCIAL SUPPLIER 
 30-03-2022,Adults,Matrix SCM Ltd,Agency Staff,1133.64,0.00,COMMERCIAL SUPPLIER 
 09-03-2022,Adults,Matrix SCM Ltd,Agency Staff,1135.07,0.00,COMMERCIAL SUPPLIER 
 23-03-2022,Adults,Matrix SCM Ltd,Agency Staff,1135.07,0.00,COMMERCIAL SUPPLIER 
 30-03-2022,Adults,Matrix SCM Ltd,Agency Staff,1135.07,0.00,COMMERCIAL SUPPLIER 
 09-03-2022,Adults,Matrix SCM Ltd,Agency Staff,1136.80,0.00,COMMERCIAL SUPPLIER 
 02-03-2022,Adults,Prestige Care & Support Ltd,Home Care - Private Contractors Payment,1139.95,0.00,COMMERCIAL SUPPLIER 
 14-03-2022,Adults,Ace Outreach Ltd,Home Care - Private Contractors Payment,1148.00,0.00,COMMERCIAL SUPPLIER 
 14-03-2022,Adults,Ace Outreach Ltd,Home Care - Private Contractors Payment,1148.00,0.00,COMMERCIAL SUPPLIER 
 14-03-2022,Adults,Ace Outreach Ltd,Home Care - Private Contractors Payment,1148.00,0.00,COMMERCIAL SUPPLIER 
 11-03-2022,Adults,GCH - Hillside Nursing Home,Nursing Homes - Private Contractors Payment,1152.00,0.00,COMMERCIAL SUPPLIER 
 09-03-2022,Adults,Treal Care Limited,Home Care - Private Contractors Payment,1155.00,0.00,COMMERCIAL SUPPLIER 
 09-03-2022,Adults,Matrix SCM Ltd,Agency Staff,1157.76,0.00,COMMERCIAL SUPPLIER 
 11-03-2022,Adults,Footsteps Support Ltd_a,Supported Other Accommodation - Private Contractors Payment,1160.00,0.00,COMMERCIAL SUPPLIER 
 28-03-2022,Adults,Outreach Support Services Ltd,Home Care - Private Contractors Payment,1161.00,0.00,COMMERCIAL SUPPLIER 
 28-03-2022,Adults,Outreach Support Services Ltd,Home Care - Private Contractors Payment,1161.00,0.00,COMMERCIAL SUPPLIER 
 02-03-2022,Adults,Care-Away Ltd T/A Care Support,Home Care - Private Contractors Payment,1164.80,0.00,COMMERCIAL SUPPLIER 
 03-03-2022,Adults,Care-Away Ltd T/A Care Support,Home Care - Private Contractors Payment,1164.80,0.00,COMMERCIAL SUPPLIER 
 03-03-2022,Adults,Care-Away Ltd T/A Care Support,Home Care - Private Contractors Payment,1164.80,0.00,COMMERCIAL SUPPLIER 
 03-03-2022,Adults,Care-Away Ltd T/A Care Support,Home Care - Private Contractors Payment,1164.80,0.00,COMMERCIAL SUPPLIER 
 11-03-2022,Adults,HC-One Oval Ltd - The Hornchurch Nursing Centre,Nursing Care Income,1166.46,0.00,COMMERCIAL SUPPLIER 
 11-03-2022,Adults,HC-One Oval Ltd - The Hornchurch Nursing Centre,Respite Care - Private Contractors Payment,1168.00,0.00,COMMERCIAL SUPPLIER 
 02-03-2022,Adults,Matrix SCM Ltd,Agency Staff,1169.28,0.00,COMMERCIAL SUPPLIER 
 02-03-2022,Adults,Matrix SCM Ltd,Agency Staff,1169.28,0.00,COMMERCIAL SUPPLIER 
 02-03-2022,Adults,Matrix SCM Ltd,Agency Staff,1169.28,0.00,COMMERCIAL SUPPLIER 
 02-03-2022,Adults,Matrix SCM Ltd,Agency Staff,1169.28,0.00,COMMERCIAL SUPPLIER 
 02-03-2022,Adults,Matrix SCM Ltd,Agency Staff,1169.28,0.00,COMMERCIAL SUPPLIER 
 02-03-2022,Adults,Matrix SCM Ltd,Agency Staff,1169.28,0.00,COMMERCIAL SUPPLIER 
 02-03-2022,Adults,Matrix SCM Ltd,Agency Staff,1169.28,0.00,COMMERCIAL SUPPLIER 
 02-03-2022,Adults,Matrix SCM Ltd,Agency Staff,1169.28,0.00,COMMERCIAL SUPPLIER 
 02-03-2022,Adults,Matrix SCM Ltd,Agency Staff,1169.28,0.00,COMMERCIAL SUPPLIER 
 09-03-2022,Adults,Matrix SCM Ltd,Agency Staff,1169.28,0.00,COMMERCIAL SUPPLIER 
 09-03-2022,Adults,Matrix SCM Ltd,Agency Staff,1169.28,0.00,COMMERCIAL SUPPLIER 
 09-03-2022,Adults,Matrix SCM Ltd,Agency Staff,1169.28,0.00,COMMERCIAL SUPPLIER 
 09-03-2022,Adults,Matrix SCM Ltd,Agency Staff,1169.28,0.00,COMMERCIAL SUPPLIER 
 09-03-2022,Adults,Matrix SCM Ltd,Agency Staff,1169.28,0.00,COMMERCIAL SUPPLIER 
 09-03-2022,Adults,Matrix SCM Ltd,Agency Staff,1169.28,0.00,COMMERCIAL SUPPLIER 
 09-03-2022,Adults,Matrix SCM Ltd,Agency Staff,1169.28,0.00,COMMERCIAL SUPPLIER 
 09-03-2022,Adults,Matrix SCM Ltd,Agency Staff,1169.28,0.00,COMMERCIAL SUPPLIER 
 16-03-2022,Adults,Matrix SCM Ltd,Agency Staff,1169.28,0.00,COMMERCIAL SUPPLIER 
 16-03-2022,Adults,Matrix SCM Ltd,Agency Staff,1169.28,0.00,COMMERCIAL SUPPLIER 
 16-03-2022,Adults,Matrix SCM Ltd,Agency Staff,1169.28,0.00,COMMERCIAL SUPPLIER 
 16-03-2022,Adults,Matrix SCM Ltd,Agency Staff,1169.28,0.00,COMMERCIAL SUPPLIER 
 16-03-2022,Adults,Matrix SCM Ltd,Agency Staff,1169.28,0.00,COMMERCIAL SUPPLIER 
 16-03-2022,Adults,Matrix SCM Ltd,Agency Staff,1169.28,0.00,COMMERCIAL SUPPLIER 
 16-03-2022,Adults,Matrix SCM Ltd,Agency Staff,1169.28,0.00,COMMERCIAL SUPPLIER 
 16-03-2022,Adults,Matrix SCM Ltd,Agency Staff,1169.28,0.00,COMMERCIAL SUPPLIER 
 16-03-2022,Adults,Matrix SCM Ltd,Agency Staff,1169.28,0.00,COMMERCIAL SUPPLIER 
 16-03-2022,Adults,Matrix SCM Ltd,Agency Staff,1169.28,0.00,COMMERCIAL SUPPLIER 
 23-03-2022,Adults,Matrix SCM Ltd,Agency Staff,1169.28,0.00,COMMERCIAL SUPPLIER 
 23-03-2022,Adults,Matrix SCM Ltd,Agency Staff,1169.28,0.00,COMMERCIAL SUPPLIER 
 23-03-2022,Adults,Matrix SCM Ltd,Agency Staff,1169.28,0.00,COMMERCIAL SUPPLIER 
 23-03-2022,Adults,Matrix SCM Ltd,Agency Staff,1169.28,0.00,COMMERCIAL SUPPLIER 
 23-03-2022,Adults,Matrix SCM Ltd,Agency Staff,1169.28,0.00,COMMERCIAL SUPPLIER 
 23-03-2022,Adults,Matrix SCM Ltd,Agency Staff,1169.28,0.00,COMMERCIAL SUPPLIER 
 23-03-2022,Adults,Matrix SCM Ltd,Agency Staff,1169.28,0.00,COMMERCIAL SUPPLIER 
 23-03-2022,Adults,Matrix SCM Ltd,Agency Staff,1169.28,0.00,COMMERCIAL SUPPLIER 
 30-03-2022,Adults,Matrix SCM Ltd,Agency Staff,1169.28,0.00,COMMERCIAL SUPPLIER 
 30-03-2022,Adults,Matrix SCM Ltd,Agency Staff,1169.28,0.00,COMMERCIAL SUPPLIER 
 30-03-2022,Adults,Matrix SCM Ltd,Agency Staff,1169.28,0.00,COMMERCIAL SUPPLIER 
 30-03-2022,Adults,Matrix SCM Ltd,Agency Staff,1169.28,0.00,COMMERCIAL SUPPLIER 
 30-03-2022,Adults,Matrix SCM Ltd,Agency Staff,1169.28,0.00,COMMERCIAL SUPPLIER 
 30-03-2022,Adults,Matrix SCM Ltd,Agency Staff,1169.28,0.00,COMMERCIAL SUPPLIER 
 30-03-2022,Adults,Matrix SCM Ltd,Agency Staff,1169.28,0.00,COMMERCIAL SUPPLIER 
 30-03-2022,Adults,Matrix SCM Ltd,Agency Staff,1169.28,0.00,COMMERCIAL SUPPLIER 
 30-03-2022,Adults,Matrix SCM Ltd,Agency Staff,1169.28,0.00,COMMERCIAL SUPPLIER 
 30-03-2022,Adults,Matrix SCM Ltd,Agency Staff,1169.28,0.00,COMMERCIAL SUPPLIER 
 30-03-2022,Adults,Matrix SCM Ltd,Agency Staff,1169.28,0.00,COMMERCIAL SUPPLIER 
 16-03-2022,Adults,Passion Tree Care Services Ltd,Home Care - Private Contractors Payment,1170.29,0.00,COMMERCIAL SUPPLIER 
 16-03-2022,Adults,Passion Tree Care Services Ltd,Home Care - Private Contractors Payment,1170.29,0.00,COMMERCIAL SUPPLIER 
 16-03-2022,Adults,Passion Tree Care Services Ltd,Home Care - Private Contractors Payment,1170.29,0.00,COMMERCIAL SUPPLIER 
 25-03-2022,Adults,KJD Care Limited,Home Care - Private Contractors Payment,1170.29,0.00,INDIVIDUALS 
 28-03-2022,Adults,Outreach Support Services Ltd,Home Care - Private Contractors Payment,1170.29,0.00,COMMERCIAL SUPPLIER 
 28-03-2022,Adults,Outreach Support Services Ltd,Home Care - Private Contractors Payment,1170.29,0.00,COMMERCIAL SUPPLIER 
 28-03-2022,Adults,Outreach Support Services Ltd,Home Care - Private Contractors Payment,1170.29,0.00,COMMERCIAL SUPPLIER 
 28-03-2022,Adults,Outreach Support Services Ltd,Home Care - Private Contractors Payment,1170.29,0.00,COMMERCIAL SUPPLIER 
 29-03-2022,Adults,London Homecare Ltd,Home Care - Private Contractors Payment,1170.29,0.00,COMMERCIAL SUPPLIER 
 29-03-2022,Adults,London Homecare Ltd,Home Care - Private Contractors Payment,1170.29,0.00,COMMERCIAL SUPPLIER 
 29-03-2022,Adults,London Homecare Ltd,Home Care - Private Contractors Payment,1170.29,0.00,COMMERCIAL SUPPLIER 
 29-03-2022,Adults,London Homecare Ltd,Home Care - Private Contractors Payment,1170.29,0.00,COMMERCIAL SUPPLIER 
 29-03-2022,Adults,London Homecare Ltd,Home Care - Private Contractors Payment,1170.29,0.00,COMMERCIAL SUPPLIER 
 16-03-2022,Adults,Lodge Group Care UK Ltd,Home Care - Private Contractors Payment,1170.91,0.00,COMMERCIAL SUPPLIER 
 02-03-2022,Adults,Matrix SCM Ltd,Agency Staff,1171.13,0.00,COMMERCIAL SUPPLIER 
 30-03-2022,Adults,Matrix SCM Ltd,Agency Staff,1179.64,0.00,COMMERCIAL SUPPLIER 
 02-03-2022,Adults,Matrix SCM Ltd,Agency Staff,1187.91,0.00,COMMERCIAL SUPPLIER 
 11-03-2022,Adults,DMP Healthcare (Heatherbrook) Ltd,Nursing Homes - Private Contractors Payment,1188.57,0.00,NON COMMERCIAL SUPPLIER 
 09-03-2022,Adults,Home Support Services (Havering & Essex) Ltd,Home Care - Private Contractors Payment,1191.91,0.00,COMMERCIAL SUPPLIER 
 16-03-2022,Adults,Matrix SCM Ltd,Agency Staff,1195.20,0.00,COMMERCIAL SUPPLIER 
 23-03-2022,Adults,Matrix SCM Ltd,Agency Staff,1195.20,0.00,COMMERCIAL SUPPLIER 
 30-03-2022,Adults,Matrix SCM Ltd,Agency Staff,1195.20,0.00,COMMERCIAL SUPPLIER 
 09-03-2022,Adults,Home Support Services (Havering & Essex) Ltd,Home Care - Private Contractors Payment,1200.60,0.00,COMMERCIAL SUPPLIER 
 11-03-2022,Adults,Fountains Care Centre - Bondcare,Residential Placements - Private Contractors Payment,1200.86,0.00,COMMERCIAL SUPPLIER 
 11-03-2022,Adults,Havering Care Homes Ltd t/a Abbscross Nursing Home,Nursing Homes - Private Contractors Payment,1200.86,0.00,COMMERCIAL SUPPLIER 
 11-03-2022,Adults,Beechcourt Care Centre - Bondcare,Nursing Homes - Private Contractors Payment,1200.86,0.00,COMMERCIAL SUPPLIER 
 08-03-2022,Adults,Anytime Care 2020_a,Other Short Term Support,1205.00,0.00,COMMERCIAL SUPPLIER 
 02-03-2022,Adults,Matrix SCM Ltd,Agency Staff,1205.28,0.00,COMMERCIAL SUPPLIER 
 02-03-2022,Adults,Matrix SCM Ltd,Agency Staff,1205.28,0.00,COMMERCIAL SUPPLIER 
 09-03-2022,Adults,Matrix SCM Ltd,Agency Staff,1205.28,0.00,COMMERCIAL SUPPLIER 
 09-03-2022,Adults,Matrix SCM Ltd,Agency Staff,1205.28,0.00,COMMERCIAL SUPPLIER 
 16-03-2022,Adults,Matrix SCM Ltd,Agency Staff,1205.28,0.00,COMMERCIAL SUPPLIER 
 16-03-2022,Adults,Matrix SCM Ltd,Agency Staff,1205.28,0.00,COMMERCIAL SUPPLIER 
 23-03-2022,Adults,Matrix SCM Ltd,Agency Staff,1205.28,0.00,COMMERCIAL SUPPLIER 
 23-03-2022,Adults,Matrix SCM Ltd,Agency Staff,1205.28,0.00,COMMERCIAL SUPPLIER 
 30-03-2022,Adults,Matrix SCM Ltd,Agency Staff,1205.28,0.00,COMMERCIAL SUPPLIER 
 29-03-2022,Adults,London Homecare Ltd,Home Care - Private Contractors Payment,1207.44,0.00,COMMERCIAL SUPPLIER 
 16-03-2022,Adults,Lodge Group Care UK Ltd,Home Care - Private Contractors Payment,1208.63,0.00,COMMERCIAL SUPPLIER 
 11-03-2022,Adults,Black Swan International Ltd - Drummonds,Residential Placements - Private Contractors Payment,1210.74,0.00,COMMERCIAL SUPPLIER 
 16-03-2022,Adults,Lodge Group Care UK Ltd,Home Care - Private Contractors Payment,1212.08,0.00,COMMERCIAL SUPPLIER 
 11-03-2022,Adults,Lodge Lane Care Home Limited,Residential Placements - Private Contractors Payment,1218.29,0.00,COMMERCIAL SUPPLIER 
 16-03-2022,Adults,Lodge Group Care UK Ltd,Home Care - Private Contractors Payment,1222.56,0.00,COMMERCIAL SUPPLIER 
 08-03-2022,Adults,Prior Care Ltd_a,Other Short Term Support,1229.00,0.00,COMMERCIAL SUPPLIER 
 11-03-2022,Adults,May Residential Homes Ltd,Residential Care Income,1229.60,0.00,COMMERCIAL SUPPLIER 
 02-03-2022,Adults,Matrix SCM Ltd,Agency Staff,1233.40,0.00,COMMERCIAL SUPPLIER 
 09-03-2022,Adults,Matrix SCM Ltd,Agency Staff,1233.40,0.00,COMMERCIAL SUPPLIER 
 16-03-2022,Adults,Matrix SCM Ltd,Agency Staff,1233.40,0.00,COMMERCIAL SUPPLIER 
 24-03-2022,Adults,Morepower Ltd t/a Aqs Homecare,Home Care - Private Contractors Payment,1237.47,0.00,COMMERCIAL SUPPLIER 
 24-03-2022,Adults,Morepower Ltd t/a Aqs Homecare,Home Care - Private Contractors Payment,1237.47,0.00,COMMERCIAL SUPPLIER 
 02-03-2022,Adults,Matrix SCM Ltd,Agency Staff,1239.84,0.00,COMMERCIAL SUPPLIER 
 02-03-2022,Adults,Matrix SCM Ltd,Agency Staff,1239.84,0.00,COMMERCIAL SUPPLIER 
 09-03-2022,Adults,Matrix SCM Ltd,Agency Staff,1239.84,0.00,COMMERCIAL SUPPLIER 
 09-03-2022,Adults,Matrix SCM Ltd,Agency Staff,1239.84,0.00,COMMERCIAL SUPPLIER 
 16-03-2022,Adults,Matrix SCM Ltd,Agency Staff,1239.84,0.00,COMMERCIAL SUPPLIER 
 16-03-2022,Adults,Matrix SCM Ltd,Agency Staff,1239.84,0.00,COMMERCIAL SUPPLIER 
 23-03-2022,Adults,Matrix SCM Ltd,Agency Staff,1239.84,0.00,COMMERCIAL SUPPLIER 
 23-03-2022,Adults,Matrix SCM Ltd,Agency Staff,1239.84,0.00,COMMERCIAL SUPPLIER 
 30-03-2022,Adults,Matrix SCM Ltd,Agency Staff,1239.84,0.00,COMMERCIAL SUPPLIER 
 30-03-2022,Adults,Matrix SCM Ltd,Agency Staff,1239.84,0.00,COMMERCIAL SUPPLIER 
 23-03-2022,Adults,Action First Assessments Ltd,Private Contractors Payment - Other,1240.00,0.00,COMMERCIAL SUPPLIER 
 09-03-2022,Adults,Matrix SCM Ltd,Agency Staff,1241.28,0.00,COMMERCIAL SUPPLIER 
 09-03-2022,Adults,Matrix SCM Ltd,Agency Staff,1241.28,0.00,COMMERCIAL SUPPLIER 
 16-03-2022,Adults,Matrix SCM Ltd,Agency Staff,1241.28,0.00,COMMERCIAL SUPPLIER 
 23-03-2022,Adults,Matrix SCM Ltd,Agency Staff,1241.28,0.00,COMMERCIAL SUPPLIER 
 23-03-2022,Adults,Matrix SCM Ltd,Agency Staff,1241.28,0.00,COMMERCIAL SUPPLIER 
 02-03-2022,Adults,Matrix SCM Ltd,Agency Staff,1246.34,0.00,COMMERCIAL SUPPLIER 
 09-03-2022,Adults,Matrix SCM Ltd,Agency Staff,1246.34,0.00,COMMERCIAL SUPPLIER 
 16-03-2022,Adults,Matrix SCM Ltd,Agency Staff,1246.34,0.00,COMMERCIAL SUPPLIER 
 03-03-2022,Adults,Care-Away Ltd T/A Care Support,Home Care - Private Contractors Payment,1248.00,0.00,COMMERCIAL SUPPLIER 
 02-03-2022,Adults,Matrix SCM Ltd,Agency Staff,1256.42,0.00,COMMERCIAL SUPPLIER 
 03-03-2022,Adults,Care-Away Ltd T/A Care Support,Home Care - Private Contractors Payment,1260.48,0.00,COMMERCIAL SUPPLIER 
 07-03-2022,Adults,Gims Care Solution Ltd_a,Home Care - Private Contractors Payment,1263.17,0.00,NON COMMERCIAL SUPPLIER 
 09-03-2022,Adults,Home Support Services (Havering & Essex) Ltd,Home Care - Private Contractors Payment,1265.30,0.00,COMMERCIAL SUPPLIER 
 11-03-2022,Adults,Home Sweet Home Care Ltd,Home Care - Private Contractors Payment,1265.95,0.00,COMMERCIAL SUPPLIER 
 02-03-2022,Adults,Matrix SCM Ltd,Agency Staff,1270.68,0.00,COMMERCIAL SUPPLIER 
 23-03-2022,Adults,Matrix SCM Ltd,Agency Staff,1270.82,0.00,COMMERCIAL SUPPLIER 
 30-03-2022,Adults,Matrix SCM Ltd,Agency Staff,1270.82,0.00,COMMERCIAL SUPPLIER 
 02-03-2022,Adults,Prestige Care & Support Ltd,Home Care - Private Contractors Payment,1274.31,0.00,COMMERCIAL SUPPLIER 
 23-03-2022,Adults,Matrix SCM Ltd,Agency Staff,1276.80,0.00,COMMERCIAL SUPPLIER 
 30-03-2022,Adults,Matrix SCM Ltd,Agency Staff,1276.80,0.00,COMMERCIAL SUPPLIER 
 23-03-2022,Adults,Matrix SCM Ltd,Agency Staff,1277.28,0.00,COMMERCIAL SUPPLIER 
 30-03-2022,Adults,Matrix SCM Ltd,Agency Staff,1277.28,0.00,COMMERCIAL SUPPLIER 
 11-03-2022,Adults,St Georges Supported Living Ltd,Supported Other Accommodation - Private Contractors Payment,1277.57,0.00,COMMERCIAL SUPPLIER 
 16-03-2022,Adults,Lodge Group Care UK Ltd,Home Care - Private Contractors Payment,1279.58,0.00,COMMERCIAL SUPPLIER 
 11-03-2022,Adults,DMP Healthcare (Heatherbrook) Ltd,Nursing Homes - Private Contractors Payment,1280.00,0.00,NON COMMERCIAL SUPPLIER 
 28-03-2022,Adults,Outreach Support Services Ltd,Home Care - Private Contractors Payment,1281.74,0.00,COMMERCIAL SUPPLIER 
 02-03-2022,Adults,Matrix SCM Ltd,Agency Staff,1288.32,0.00,COMMERCIAL SUPPLIER 
 03-03-2022,Adults,Harrich Builders Ltd,"Maintenance - Equipment, Furniture And Materials",1293.00,0.00,CIS 
 09-03-2022,Adults,Thurrock Lifestyle Solutions CIC,Daycare - Private Contractors Payment,1294.20,0.00,COMMERCIAL SUPPLIER 
 15-03-2022,Adults,Crystalize Care Services,Home Care - Private Contractors Payment,1300.32,0.00,COMMERCIAL SUPPLIER 
 15-03-2022,Adults,Crystalize Care Services,Home Care - Private Contractors Payment,1300.32,0.00,COMMERCIAL SUPPLIER 
 15-03-2022,Adults,Crystalize Care Services,Home Care - Private Contractors Payment,1300.32,0.00,COMMERCIAL SUPPLIER 
 16-03-2022,Adults,Passion Tree Care Services Ltd,Home Care - Private Contractors Payment,1300.32,0.00,COMMERCIAL SUPPLIER 
 30-03-2022,Adults,Crystalize Care Services,Home Care - Private Contractors Payment,1300.32,0.00,COMMERCIAL SUPPLIER 
 11-03-2022,Adults,L & Q Living (SWIFT Payments),Supported Other Accommodation - Private Contractors Payment,1300.77,0.00,COMMERCIAL SUPPLIER 
 16-03-2022,Adults,Matrix SCM Ltd,Agency Staff,1301.74,0.00,COMMERCIAL SUPPLIER 
 11-03-2022,Adults,HC-One Oval Ltd - The Hornchurch Nursing Centre,Nursing Care Income,1306.44,0.00,COMMERCIAL SUPPLIER 
 23-03-2022,Adults,Prior Care Ltd_a,Home Care - Private Contractors Payment,1310.23,0.00,COMMERCIAL SUPPLIER 
 11-03-2022,Adults,Lodge Lane Care Home Limited,Respite Care - Private Contractors Payment,1312.00,0.00,COMMERCIAL SUPPLIER 
 11-03-2022,Adults,Lodge Lane Care Home Limited,Respite Care - Private Contractors Payment,1312.00,0.00,COMMERCIAL SUPPLIER 
 11-03-2022,Adults,Lodge Lane Care Home Limited,Respite Care - Private Contractors Payment,1312.00,0.00,COMMERCIAL SUPPLIER 
 08-03-2022,Adults,Clover Cottage Ltd,Other Short Term Support,1313.00,0.00,COMMERCIAL SUPPLIER 
 09-03-2022,Adults,Matrix SCM Ltd,Agency Staff,1313.28,0.00,COMMERCIAL SUPPLIER 
 16-03-2022,Adults,Matrix SCM Ltd,Agency Staff,1313.28,0.00,COMMERCIAL SUPPLIER 
 11-03-2022,Adults,Ashgate House Ltd_a,Residential Placements - Private Contractors Payment,1317.43,0.00,COMMERCIAL SUPPLIER 
 29-03-2022,Adults,London Homecare Ltd,Home Care - Private Contractors Payment,1318.90,0.00,COMMERCIAL SUPPLIER 
 11-03-2022,Adults,2 Peel Way - Outlook Care,Supported Other Accommodation - Private Contractors Payment,1331.10,0.00,NON COMMERCIAL SUPPLIER 
 11-03-2022,Adults,Lukka Care Homes Ltd - Ravenscourt,Nursing Homes - Private Contractors Payment,1334.29,0.00,COMMERCIAL SUPPLIER 
 16-03-2022,Adults,Lodge Group Care UK Ltd,Home Care - Private Contractors Payment,1347.67,0.00,COMMERCIAL SUPPLIER 
 01-03-2022,Adults,Familycare Homes,Other Short Term Support,1355.80,0.00,COMMERCIAL SUPPLIER 
 22-03-2022,Adults,Independant Community Support Ltd T/A Heaton Lodge,Other Short Term Support,1368.00,0.00,COMMERCIAL SUPPLIER 
 22-03-2022,Adults,Blessday Services Ltd,Other Short Term Support,1368.00,0.00,COMMERCIAL SUPPLIER 
 24-03-2022,Adults,Morepower Ltd t/a Aqs Homecare,Home Care - Private Contractors Payment,1372.15,0.00,COMMERCIAL SUPPLIER 
 02-03-2022,Adults,Matrix SCM Ltd,Agency Staff,1379.17,0.00,COMMERCIAL SUPPLIER 
 09-03-2022,Adults,Matrix SCM Ltd,Agency Staff,1379.17,0.00,COMMERCIAL SUPPLIER 
 16-03-2022,Adults,Matrix SCM Ltd,Agency Staff,1379.17,0.00,COMMERCIAL SUPPLIER 
 23-03-2022,Adults,Matrix SCM Ltd,Agency Staff,1379.17,0.00,COMMERCIAL SUPPLIER 
 30-03-2022,Adults,Matrix SCM Ltd,Agency Staff,1379.17,0.00,COMMERCIAL SUPPLIER 
 03-03-2022,Adults,Eastway Care Ltd_a,Daycare - Private Contractors Payment,1380.00,0.00,COMMERCIAL SUPPLIER 
 18-03-2022,Adults,Eastway Care Ltd_a,Daycare - Private Contractors Payment,1380.00,0.00,COMMERCIAL SUPPLIER 
 11-03-2022,Adults,Havering Care Homes Ltd t/a Upminster Nursing Home,Nursing Care Income,1383.72,0.00,COMMERCIAL SUPPLIER 
 02-03-2022,Adults,Matrix SCM Ltd,Agency Staff,1385.28,0.00,COMMERCIAL SUPPLIER 
 02-03-2022,Adults,Matrix SCM Ltd,Agency Staff,1385.28,0.00,COMMERCIAL SUPPLIER 
 09-03-2022,Adults,Matrix SCM Ltd,Agency Staff,1385.28,0.00,COMMERCIAL SUPPLIER 
 16-03-2022,Adults,Matrix SCM Ltd,Agency Staff,1385.28,0.00,COMMERCIAL SUPPLIER 
 23-03-2022,Adults,Matrix SCM Ltd,Agency Staff,1385.28,0.00,COMMERCIAL SUPPLIER 
 30-03-2022,Adults,Matrix SCM Ltd,Agency Staff,1385.28,0.00,COMMERCIAL SUPPLIER 
 23-03-2022,Adults,Matrix SCM Ltd,Agency Staff,1390.00,0.00,COMMERCIAL SUPPLIER 
 03-03-2022,Adults,Opus Energy Ltd(Electricity),Electricity,1390.89,0.00,COMMERCIAL SUPPLIER 
 08-03-2022,Adults,Genesis Residential Homes Ltd - Dothan House,Other Short Term Support,1396.00,0.00,COMMERCIAL SUPPLIER 
 08-03-2022,Adults,Little Gaynes,Other Short Term Support,1396.00,0.00,COMMERCIAL SUPPLIER 
 23-03-2022,Adults,Matrix SCM Ltd,Agency Staff,1396.64,0.00,COMMERCIAL SUPPLIER 
 02-03-2022,Adults,Care-Away Ltd T/A Care Support,Home Care - Private Contractors Payment,1397.76,0.00,COMMERCIAL SUPPLIER 
 11-03-2022,Adults,Lodge Lane Care Home Limited,Residential Placements - Private Contractors Payment,1405.71,0.00,COMMERCIAL SUPPLIER 
 11-03-2022,Adults,Lodge Lane Care Home Limited,Residential Placements - Private Contractors Payment,1405.71,0.00,COMMERCIAL SUPPLIER 
 02-03-2022,Adults,Matrix SCM Ltd,Agency Staff,1411.41,0.00,COMMERCIAL SUPPLIER 
 09-03-2022,Adults,Matrix SCM Ltd,Agency Staff,1421.28,0.00,COMMERCIAL SUPPLIER 
 16-03-2022,Adults,Matrix SCM Ltd,Agency Staff,1421.28,0.00,COMMERCIAL SUPPLIER 
 23-03-2022,Adults,Matrix SCM Ltd,Agency Staff,1421.28,0.00,COMMERCIAL SUPPLIER 
 30-03-2022,Adults,Matrix SCM Ltd,Agency Staff,1421.28,0.00,COMMERCIAL SUPPLIER 
 02-03-2022,Adults,Care-Away Ltd T/A Care Support,Home Care - Private Contractors Payment,1431.04,0.00,COMMERCIAL SUPPLIER 
 01-03-2022,Adults,Osborne Partnership,Daycare - Private Contractors Payment,1440.00,0.00,COMMERCIAL SUPPLIER 
 11-03-2022,Adults,Bettertogether Limited,Supported Other Accommodation - Private Contractors Payment,1440.00,0.00,NON COMMERCIAL SUPPLIER 
 29-03-2022,Adults,Osborne Partnership,Daycare - Private Contractors Payment,1440.00,0.00,COMMERCIAL SUPPLIER 
 09-03-2022,Adults,Matrix SCM Ltd,Agency Staff,1456.72,0.00,COMMERCIAL SUPPLIER 
 02-03-2022,Adults,Matrix SCM Ltd,Agency Staff,1457.28,0.00,COMMERCIAL SUPPLIER 
 09-03-2022,Adults,Matrix SCM Ltd,Agency Staff,1457.28,0.00,COMMERCIAL SUPPLIER 
 16-03-2022,Adults,Matrix SCM Ltd,Agency Staff,1457.28,0.00,COMMERCIAL SUPPLIER 
 23-03-2022,Adults,Matrix SCM Ltd,Agency Staff,1457.28,0.00,COMMERCIAL SUPPLIER 
 30-03-2022,Adults,Matrix SCM Ltd,Agency Staff,1457.28,0.00,COMMERCIAL SUPPLIER 
 11-03-2022,Adults,Blueboard Care Services Ltd,Supported Other Accommodation - Private Contractors Payment,1458.29,0.00,COMMERCIAL SUPPLIER 
 11-03-2022,Adults,Blueboard Care Services Ltd,Supported Other Accommodation - Private Contractors Payment,1458.29,0.00,COMMERCIAL SUPPLIER 
 11-03-2022,Adults,The Cedars,Supported Other Accommodation - Private Contractors Payment,1459.11,0.00,COMMERCIAL SUPPLIER 
 09-03-2022,Adults,Matrix SCM Ltd,Agency Staff,1462.78,0.00,COMMERCIAL SUPPLIER 
 16-03-2022,Adults,Passion Tree Care Services Ltd,Home Care - Private Contractors Payment,1467.50,0.00,COMMERCIAL SUPPLIER 
 11-03-2022,Adults,Fountains Care Centre - Bondcare,Nursing Homes - Private Contractors Payment,1467.71,0.00,COMMERCIAL SUPPLIER 
 11-03-2022,Adults,Ebony Health Care Services Limited,Supported Other Accommodation - Private Contractors Payment,1475.89,0.00,COMMERCIAL SUPPLIER 
 08-03-2022,Adults,Emerson Court_a,Other Short Term Support,1478.00,0.00,COMMERCIAL SUPPLIER 
 09-03-2022,Adults,Matrix SCM Ltd,Agency Staff,1478.96,0.00,COMMERCIAL SUPPLIER 
 11-03-2022,Adults,Havering Care Homes Ltd t/a Upminster Nursing Home,Nursing Care Income,1481.64,0.00,COMMERCIAL SUPPLIER 
 24-03-2022,Adults,Bloomscare Ltd,Home Care - Private Contractors Payment,1486.08,0.00,COMMERCIAL SUPPLIER 
 11-03-2022,Adults,Outlook Care - 76 Neave Crescent,Supported Other Accommodation - Private Contractors Payment,1492.00,0.00,COMMERCIAL SUPPLIER 
 11-03-2022,Adults,Outlook Care - 76 Neave Crescent,Supported Other Accommodation - Private Contractors Payment,1492.00,0.00,COMMERCIAL SUPPLIER 
 11-03-2022,Adults,Outlook Care - 76 Neave Crescent,Supported Other Accommodation - Private Contractors Payment,1492.00,0.00,COMMERCIAL SUPPLIER 
 11-03-2022,Adults,Outlook Care - 76 Neave Crescent,Supported Other Accommodation - Private Contractors Payment,1492.00,0.00,COMMERCIAL SUPPLIER 
 11-03-2022,Adults,Outlook Care - 76 Neave Crescent,Supported Other Accommodation - Private Contractors Payment,1492.00,0.00,COMMERCIAL SUPPLIER 
 11-03-2022,Adults,Outlook Care - 76 Neave Crescent,Supported Other Accommodation - Private Contractors Payment,1492.00,0.00,COMMERCIAL SUPPLIER 
 11-03-2022,Adults,Outlook Care - 76 Neave Crescent,Supported Other Accommodation - Private Contractors Payment,1492.00,0.00,COMMERCIAL SUPPLIER 
 11-03-2022,Adults,Outlook Care - 76 Neave Crescent,Supported Other Accommodation - Private Contractors Payment,1492.00,0.00,COMMERCIAL SUPPLIER 
 03-03-2022,Adults,Care-Away Ltd T/A Care Support,Home Care - Private Contractors Payment,1493.44,0.00,COMMERCIAL SUPPLIER 
 02-03-2022,Adults,Matrix SCM Ltd,Agency Staff,1495.52,0.00,COMMERCIAL SUPPLIER 
 09-03-2022,Adults,Matrix SCM Ltd,Agency Staff,1495.52,0.00,COMMERCIAL SUPPLIER 
 16-03-2022,Adults,Matrix SCM Ltd,Agency Staff,1495.52,0.00,COMMERCIAL SUPPLIER 
 23-03-2022,Adults,Matrix SCM Ltd,Agency Staff,1495.52,0.00,COMMERCIAL SUPPLIER 
 30-03-2022,Adults,Matrix SCM Ltd,Agency Staff,1495.52,0.00,COMMERCIAL SUPPLIER 
 22-03-2022,Adults,Dignified Homecare,Other Short Term Support,1497.00,0.00,COMMERCIAL SUPPLIER 
 22-03-2022,Adults,Passion Tree Care Services Ltd,Other Short Term Support,1497.00,0.00,COMMERCIAL SUPPLIER 
 22-03-2022,Adults,Bluelight Healthcare Recruitment Limited,Other Short Term Support,1497.00,0.00,COMMERCIAL SUPPLIER 
 11-03-2022,Adults,Lodge Lane Care Home Limited,Residential Placements - Private Contractors Payment,1499.43,0.00,COMMERCIAL SUPPLIER 
 11-03-2022,Adults,Fountains Care Centre - Bondcare,Nursing Homes - Private Contractors Payment,1500.00,0.00,COMMERCIAL SUPPLIER 
 09-03-2022,Adults,Matrix SCM Ltd,Agency Staff,1500.72,0.00,COMMERCIAL SUPPLIER 
 24-03-2022,Adults,Harrich Builders Ltd,"Maintenance - Equipment, Furniture And Materials",1505.00,0.00,CIS 
 11-03-2022,Adults,The Cedars,Supported Other Accommodation - Private Contractors Payment,1510.15,0.00,COMMERCIAL SUPPLIER 
 18-03-2022,Adults,One Tree Estates Ltd t/a Ashbrook Nursing Home,Nursing Homes - Private Contractors Payment,1512.00,0.00,COMMERCIAL SUPPLIER 
 02-03-2022,Adults,Matrix SCM Ltd,Agency Staff,1512.32,0.00,COMMERCIAL SUPPLIER 
 11-03-2022,Adults,Affinia Healthcare Ltd_a,Supported Other Accommodation - Private Contractors Payment,1517.53,0.00,COMMERCIAL SUPPLIER 
 09-03-2022,Adults,Home Support Services (Havering & Essex) Ltd,Home Care - Private Contractors Payment,1519.54,0.00,COMMERCIAL SUPPLIER 
 11-03-2022,Adults,DMP Healthcare (Heatherbrook) Ltd,Respite Care - Private Contractors Payment,1532.57,0.00,NON COMMERCIAL SUPPLIER 
 28-03-2022,Adults,Outreach Support Services Ltd,Home Care - Private Contractors Payment,1540.00,0.00,COMMERCIAL SUPPLIER 
 28-03-2022,Adults,Outreach Support Services Ltd,Home Care - Private Contractors Payment,1540.00,0.00,COMMERCIAL SUPPLIER 
 11-03-2022,Adults,Outlook Care - 76 Neave Crescent,Supported Other Accommodation - Private Contractors Payment,1540.73,0.00,COMMERCIAL SUPPLIER 
 11-03-2022,Adults,Outlook Care - 76 Neave Crescent,Supported Other Accommodation - Private Contractors Payment,1540.73,0.00,COMMERCIAL SUPPLIER 
 11-03-2022,Adults,Outlook Care - 76 Neave Crescent,Supported Other Accommodation - Private Contractors Payment,1540.73,0.00,COMMERCIAL SUPPLIER 
 11-03-2022,Adults,Outlook Care - 76 Neave Crescent,Supported Other Accommodation - Private Contractors Payment,1540.73,0.00,COMMERCIAL SUPPLIER 
 11-03-2022,Adults,Outlook Care - 76 Neave Crescent,Supported Other Accommodation - Private Contractors Payment,1540.73,0.00,COMMERCIAL SUPPLIER 
 11-03-2022,Adults,Outlook Care - 76 Neave Crescent,Supported Other Accommodation - Private Contractors Payment,1540.73,0.00,COMMERCIAL SUPPLIER 
 11-03-2022,Adults,Outlook Care - 76 Neave Crescent,Supported Other Accommodation - Private Contractors Payment,1540.73,0.00,COMMERCIAL SUPPLIER 
 11-03-2022,Adults,Outlook Care - 76 Neave Crescent,Supported Other Accommodation - Private Contractors Payment,1540.73,0.00,COMMERCIAL SUPPLIER 
 11-03-2022,Adults,Outlook Care - 76 Neave Crescent,Supported Other Accommodation - Private Contractors Payment,1540.73,0.00,COMMERCIAL SUPPLIER 
 11-03-2022,Adults,Outlook Care - 76 Neave Crescent,Supported Other Accommodation - Private Contractors Payment,1540.73,0.00,COMMERCIAL SUPPLIER 
 28-03-2022,Adults,Outreach Support Services Ltd,Home Care - Private Contractors Payment,1541.81,0.00,COMMERCIAL SUPPLIER 
 28-03-2022,Adults,Outreach Support Services Ltd,Home Care - Private Contractors Payment,1541.81,0.00,COMMERCIAL SUPPLIER 
 28-03-2022,Adults,Outreach Support Services Ltd,Home Care - Private Contractors Payment,1541.81,0.00,COMMERCIAL SUPPLIER 
 11-03-2022,Adults,GCH - Hillside Nursing Home,Nursing Homes - Private Contractors Payment,1542.86,0.00,COMMERCIAL SUPPLIER 
 11-03-2022,Adults,The Riverside Group,Supported Other Accommodation - Private Contractors Payment,1544.24,0.00, 
 11-03-2022,Adults,Outlook Care - 76 Neave Crescent,Supported Other Accommodation - Private Contractors Payment,1545.29,0.00,COMMERCIAL SUPPLIER 
 11-03-2022,Adults,Outlook Care - 76 Neave Crescent,Supported Other Accommodation - Private Contractors Payment,1545.29,0.00,COMMERCIAL SUPPLIER 
 24-03-2022,Adults,Morepower Ltd t/a Aqs Homecare,Home Care - Private Contractors Payment,1546.14,0.00,COMMERCIAL SUPPLIER 
 23-03-2022,Adults,Action First Assessments Ltd,Private Contractors Payment - Other,1550.00,0.00,COMMERCIAL SUPPLIER 
 16-03-2022,Adults,Cera Care Operations Ltd,Home Care - Private Contractors Payment,1559.18,0.00,COMMERCIAL SUPPLIER 
 30-03-2022,Adults,De Vere Care Partnership Ltd,Home Care - Private Contractors Payment,1560.38,0.00,COMMERCIAL SUPPLIER 
 30-03-2022,Adults,De Vere Care Partnership Ltd,Home Care - Private Contractors Payment,1560.38,0.00,COMMERCIAL SUPPLIER 
 11-03-2022,Adults,Bettertogether Limited,Supported Other Accommodation - Private Contractors Payment,1570.29,0.00,NON COMMERCIAL SUPPLIER 
 22-03-2022,Adults,Caremark,Other Short Term Support,1576.00,0.00,COMMERCIAL SUPPLIER 
 22-03-2022,Adults,Phoenix Care Havering Ltd,Other Short Term Support,1576.00,0.00,COMMERCIAL SUPPLIER 
 22-03-2022,Adults,Pleasant Home Healthcare Ltd,Other Short Term Support,1576.00,0.00,COMMERCIAL SUPPLIER 
 11-03-2022,Adults,Outlook Care - 76 Neave Crescent,Supported Other Accommodation - Private Contractors Payment,1576.19,0.00,COMMERCIAL SUPPLIER 
 11-03-2022,Adults,Outlook Care - 76 Neave Crescent,Supported Other Accommodation - Private Contractors Payment,1576.19,0.00,COMMERCIAL SUPPLIER 
 11-03-2022,Adults,Outlook Care - 76 Neave Crescent,Supported Other Accommodation - Private Contractors Payment,1576.19,0.00,COMMERCIAL SUPPLIER 
 11-03-2022,Adults,Outlook Care - 76 Neave Crescent,Supported Other Accommodation - Private Contractors Payment,1576.19,0.00,COMMERCIAL SUPPLIER 
 11-03-2022,Adults,Outlook Care - 86 Veronica Close,Residential Placements - Private Contractors Payment,1581.91,0.00,COMMERCIAL SUPPLIER 
 15-03-2022,Adults,GCH - Hillside Nursing Home,Nursing Homes - Private Contractors Payment,1584.00,0.00,COMMERCIAL SUPPLIER 
 02-03-2022,Adults,Prestige Care & Support Ltd,Home Care - Private Contractors Payment,1585.15,0.00,COMMERCIAL SUPPLIER 
 11-03-2022,Adults,Home Sweet Home Care Ltd,Home Care - Private Contractors Payment,1590.11,0.00,COMMERCIAL SUPPLIER 
 11-03-2022,Adults,Langley House,Respite Care - Private Contractors Payment,1593.14,0.00,COMMERCIAL SUPPLIER 
 30-03-2022,Adults,IJB Healthcare Ltd,Home Care - Private Contractors Payment,1597.54,0.00,COMMERCIAL SUPPLIER 
 11-03-2022,Adults,Home Sweet Home Care Ltd,Home Care - Private Contractors Payment,1598.16,0.00,COMMERCIAL SUPPLIER 
 16-03-2022,Adults,Matrix SCM Ltd,Agency Staff,1601.28,0.00,COMMERCIAL SUPPLIER 
 11-03-2022,Adults,Bettertogether Limited,Supported Other Accommodation - Private Contractors Payment,1612.00,0.00,NON COMMERCIAL SUPPLIER 
 11-03-2022,Adults,Bettertogether Limited,Supported Other Accommodation - Private Contractors Payment,1612.00,0.00,NON COMMERCIAL SUPPLIER 
 11-03-2022,Adults,Home Sweet Home Care Ltd,Home Care - Private Contractors Payment,1626.64,0.00,COMMERCIAL SUPPLIER 
 11-03-2022,Adults,Affinia Healthcare Ltd_a,Supported Other Accommodation - Private Contractors Payment,1628.31,0.00,COMMERCIAL SUPPLIER 
 02-03-2022,Adults,Care-Away Ltd T/A Care Support,Home Care - Private Contractors Payment,1630.72,0.00,COMMERCIAL SUPPLIER 
 11-03-2022,Adults,Ashking House Ltd,Residential Placements - Private Contractors Payment,1633.74,0.00,COMMERCIAL SUPPLIER 
 11-03-2022,Adults,Home Sweet Home Care Ltd,Home Care - Private Contractors Payment,1635.31,0.00,COMMERCIAL SUPPLIER 
 21-03-2022,Adults,Toltal Care at Home Ltd ,Other Short Term Support,1639.70,0.00,COMMERCIAL SUPPLIER 
 30-03-2022,Adults,Matrix SCM Ltd,Agency Staff,1640.20,0.00,COMMERCIAL SUPPLIER 
 08-03-2022,Adults,Priory Supporting Care Ltd,Other Short Term Support,1642.00,0.00,COMMERCIAL SUPPLIER 
 08-03-2022,Adults,Ash Grove Residential Care Home,Other Short Term Support,1642.00,0.00,COMMERCIAL SUPPLIER 
 22-03-2022,Adults,Coastal Supported Living CIC,Other Short Term Support,1642.00,0.00,COMMERCIAL SUPPLIER 
 22-03-2022,Adults,Pathways Care and Support Services Ltd,Other Short Term Support,1642.00,0.00,COMMERCIAL SUPPLIER 
 11-03-2022,Adults,Alpine Resources UK Ltd,Supported Other Accommodation - Private Contractors Payment,1642.86,0.00,COMMERCIAL SUPPLIER 
 11-03-2022,Adults,Outlook Care - 76 Neave Crescent,Supported Other Accommodation - Private Contractors Payment,1655.07,0.00,COMMERCIAL SUPPLIER 
 11-03-2022,Adults,2 Peel Way - Outlook Care,Supported Other Accommodation - Private Contractors Payment,1664.31,0.00,NON COMMERCIAL SUPPLIER 
 07-03-2022,Adults,John Stanleys Care Agency Ltd,Home Care - Private Contractors Payment,1671.84,0.00,COMMERCIAL SUPPLIER 
 11-03-2022,Adults,Affinia Healthcare Ltd_a,Supported Other Accommodation - Private Contractors Payment,1681.01,0.00,COMMERCIAL SUPPLIER 
 11-03-2022,Adults,HC-One Oval Ltd - The Hornchurch Nursing Centre,Residential Placements - Private Contractors Payment,1686.86,0.00,COMMERCIAL SUPPLIER 
 11-03-2022,Adults,Lodge Lane Care Home Limited,Residential Placements - Private Contractors Payment,1686.86,0.00,COMMERCIAL SUPPLIER 
 11-03-2022,Adults,Outlook Care - 4 Peel Way,Supported Other Accommodation - Private Contractors Payment,1696.42,0.00,COMMERCIAL SUPPLIER 
 11-03-2022,Adults,2 Peel Way - Outlook Care,Supported Other Accommodation - Private Contractors Payment,1697.58,0.00,NON COMMERCIAL SUPPLIER 
 11-03-2022,Adults,One Tree Estates Ltd t/a Ashbrook Nursing Home,Respite Care - Private Contractors Payment,1700.00,0.00,COMMERCIAL SUPPLIER 
 11-03-2022,Adults,Affinia Healthcare Ltd_a,Supported Other Accommodation - Private Contractors Payment,1707.73,0.00,COMMERCIAL SUPPLIER 
 08-03-2022,Adults,Arran Manor,Other Short Term Support,1724.00,0.00,COMMERCIAL SUPPLIER 
 11-03-2022,Adults,Affinia Healthcare Ltd_a,Supported Other Accommodation - Private Contractors Payment,1727.28,0.00,COMMERCIAL SUPPLIER 
 11-03-2022,Adults,Affinia Healthcare Ltd_a,Supported Other Accommodation - Private Contractors Payment,1727.28,0.00,COMMERCIAL SUPPLIER 
 11-03-2022,Adults,Affinia Healthcare Ltd_a,Supported Other Accommodation - Private Contractors Payment,1727.28,0.00,COMMERCIAL SUPPLIER 
 11-03-2022,Adults,GCH - Hillside Nursing Home,Nursing Homes - Private Contractors Payment,1728.00,0.00,COMMERCIAL SUPPLIER 
 11-03-2022,Adults,Affinia Healthcare Ltd_a,Supported Other Accommodation - Private Contractors Payment,1728.65,0.00,COMMERCIAL SUPPLIER 
 11-03-2022,Adults,Coastal Supported Living CIC,Supported Other Accommodation - Private Contractors Payment,1729.06,0.00,COMMERCIAL SUPPLIER 
 22-03-2022,Adults,Excelle Home Care,Other Short Term Support,1733.00,0.00,COMMERCIAL SUPPLIER 
 11-03-2022,Adults,One Tree Estates Ltd t/a Ashbrook Nursing Home,Nursing Homes - Private Contractors Payment,1734.57,0.00,COMMERCIAL SUPPLIER 
 11-03-2022,Adults,Fountains Care Centre - Bondcare,Nursing Homes - Private Contractors Payment,1737.14,0.00,COMMERCIAL SUPPLIER 
 11-03-2022,Adults,DMP Healthcare (Heatherbrook) Ltd,Respite Care - Private Contractors Payment,1737.14,0.00,NON COMMERCIAL SUPPLIER 
 11-03-2022,Adults,Vibrance ,Residential Placements - Private Contractors Payment,1738.76,0.00,COMMERCIAL SUPPLIER 
 22-03-2022,Adults,Raynet Recruitment Agency Ltd,Other Short Term Support,1770.00,0.00,COMMERCIAL SUPPLIER 
 11-03-2022,Adults,Outlook Care - 4 Peel Way,Supported Other Accommodation - Private Contractors Payment,1771.65,0.00,COMMERCIAL SUPPLIER 
 11-03-2022,Adults,Bondcare (London) Ltd ,Nursing Homes - Private Contractors Payment,1776.00,0.00,COMMERCIAL SUPPLIER 
 11-03-2022,Adults,Bettertogether Limited,Supported Other Accommodation - Private Contractors Payment,1776.00,0.00,NON COMMERCIAL SUPPLIER 
 11-03-2022,Adults,Ashling House_a,Residential Placements - Private Contractors Payment,1780.57,0.00,COMMERCIAL SUPPLIER 
 11-03-2022,Adults,Arran Manor,Residential Placements - Private Contractors Payment,1780.57,0.00,COMMERCIAL SUPPLIER 
 11-03-2022,Adults,Arran Manor,Residential Placements - Private Contractors Payment,1780.57,0.00,COMMERCIAL SUPPLIER 
 11-03-2022,Adults,Abbottswood Lodge,Residential Placements - Private Contractors Payment,1782.22,0.00,COMMERCIAL SUPPLIER 
 02-03-2022,Adults,Romford Private Hire Ltd,Client Transport,1782.50,0.00,COMMERCIAL SUPPLIER 
 11-03-2022,Adults,Masumin Ltd t/s Abbeleigh House,Residential Placements - Private Contractors Payment,1785.00,0.00,COMMERCIAL SUPPLIER 
 11-03-2022,Adults,Affinia Healthcare Ltd_a,Supported Other Accommodation - Private Contractors Payment,1793.07,0.00,COMMERCIAL SUPPLIER 
 02-03-2022,Adults,Matrix SCM Ltd,Agency Staff,1796.90,0.00,COMMERCIAL SUPPLIER 
 23-03-2022,Adults,Matrix SCM Ltd,Agency Staff,1796.90,0.00,COMMERCIAL SUPPLIER 
 30-03-2022,Adults,Matrix SCM Ltd,Agency Staff,1796.90,0.00,COMMERCIAL SUPPLIER 
 03-03-2022,Adults,DBD Steven Field,Home Care - Private Contractors Payment,1800.00,0.00,INDIVIDUALS 
 08-03-2022,Adults,Havering Care Homes Ltd t/a Abbscross Nursing Home,Other Short Term Support,1806.00,0.00,COMMERCIAL SUPPLIER 
 17-03-2022,Adults,Fisk Group,Catering And Vending Supplies,1806.00,0.00,COMMERCIAL SUPPLIER 
 22-03-2022,Adults,Chosen Services UK Ltd,Other Short Term Support,1812.00,0.00,COMMERCIAL SUPPLIER 
 15-03-2022,Adults,Passion Tree Care Services Ltd,Other Short Term Support,1814.80,0.00,COMMERCIAL SUPPLIER 
 28-03-2022,Adults,Outreach Support Services Ltd,Home Care - Private Contractors Payment,1820.45,0.00,COMMERCIAL SUPPLIER 
 11-03-2022,Adults,Bettertogether Limited,Supported Other Accommodation - Private Contractors Payment,1832.00,0.00,NON COMMERCIAL SUPPLIER 
 11-03-2022,Adults,Bettertogether Limited,Supported Other Accommodation - Private Contractors Payment,1832.00,0.00,NON COMMERCIAL SUPPLIER 
 11-03-2022,Adults,Bettertogether Limited,Supported Other Accommodation - Private Contractors Payment,1832.00,0.00,NON COMMERCIAL SUPPLIER 
 11-03-2022,Adults,Bettertogether Limited,Supported Other Accommodation - Private Contractors Payment,1832.00,0.00,NON COMMERCIAL SUPPLIER 
 11-03-2022,Adults,Bettertogether Limited,Supported Other Accommodation - Private Contractors Payment,1832.00,0.00,NON COMMERCIAL SUPPLIER 
 11-03-2022,Adults,Bettertogether Limited,Supported Other Accommodation - Private Contractors Payment,1832.00,0.00,NON COMMERCIAL SUPPLIER 
 11-03-2022,Adults,Willows Care Home - Churchgate Healthcare (Willows) Ltd,Nursing Homes - Private Contractors Payment,1856.91,0.00,COMMERCIAL SUPPLIER 
 02-03-2022,Adults,Care-Away Ltd T/A Care Support,Home Care - Private Contractors Payment,1863.68,0.00,COMMERCIAL SUPPLIER 
 11-03-2022,Adults,Maison Moti Ltd,Supported Other Accommodation - Private Contractors Payment,1864.29,0.00,COMMERCIAL SUPPLIER 
 11-03-2022,Adults,Heath Care Services Ltd ,Supported Other Accommodation - Private Contractors Payment,1864.29,0.00,COMMERCIAL SUPPLIER 
 11-03-2022,Adults,Havering Care Homes Ltd t/a Upminster Nursing Home,Nursing Homes - Private Contractors Payment,1868.00,0.00,COMMERCIAL SUPPLIER 
 11-03-2022,Adults,Havering Care Homes Ltd t/a Upminster Nursing Home,Nursing Homes - Private Contractors Payment,1868.00,0.00,COMMERCIAL SUPPLIER 
 11-03-2022,Adults,Lukka Care Homes Ltd - Ravenscourt,Nursing Homes - Private Contractors Payment,1868.00,0.00,COMMERCIAL SUPPLIER 
 11-03-2022,Adults,Affinia Healthcare Ltd_a,Supported Other Accommodation - Private Contractors Payment,1875.18,0.00,COMMERCIAL SUPPLIER 
 08-03-2022,Adults,Oaks Residential Home,Other Short Term Support,1888.00,0.00,COMMERCIAL SUPPLIER 
 22-03-2022,Adults,Sharing Healthcare Ltd,Other Short Term Support,1891.00,0.00,COMMERCIAL SUPPLIER 
 22-03-2022,Adults,Three Angel Healthcare Ltd,Other Short Term Support,1891.00,0.00,COMMERCIAL SUPPLIER 
 11-03-2022,Adults,MNS Care Plc_a,Respite Care - Private Contractors Payment,1902.00,0.00,COMMERCIAL SUPPLIER 
 28-03-2022,Adults,Outreach Support Services Ltd,Home Care - Private Contractors Payment,1931.90,0.00,COMMERCIAL SUPPLIER 
 28-03-2022,Adults,Outreach Support Services Ltd,Home Care - Private Contractors Payment,1931.90,0.00,COMMERCIAL SUPPLIER 
 28-03-2022,Adults,Outreach Support Services Ltd,Home Care - Private Contractors Payment,1931.90,0.00,COMMERCIAL SUPPLIER 
 28-03-2022,Adults,Outreach Support Services Ltd,Home Care - Private Contractors Payment,1931.90,0.00,COMMERCIAL SUPPLIER 
 11-03-2022,Adults,Ashgate House Ltd_a,Residential Placements - Private Contractors Payment,1953.15,0.00,COMMERCIAL SUPPLIER 
 11-03-2022,Adults,Endsleigh Care Ltd,Residential Placements - Private Contractors Payment,1961.15,0.00,COMMERCIAL SUPPLIER 
 01-03-2022,Adults,Marlow,Residential Placements - Private Contractors Payment,1969.24,0.00,COMMERCIAL SUPPLIER 
 08-03-2022,Adults,Langley House,Other Short Term Support,1970.00,0.00,COMMERCIAL SUPPLIER 
 11-03-2022,Adults,Blueboard Care Services Ltd,Supported Other Accommodation - Private Contractors Payment,1972.00,0.00,COMMERCIAL SUPPLIER 
 21-03-2022,Adults,All Therapy Solutions Ltd,Occupational Health,1980.00,0.00,COMMERCIAL SUPPLIER 
 11-03-2022,Adults,DMP Healthcare (Heatherbrook) Ltd,Nursing Homes - Private Contractors Payment,1988.57,0.00,NON COMMERCIAL SUPPLIER 
 11-03-2022,Adults,Black Swan International Ltd - Drummonds,Residential Placements - Private Contractors Payment,1994.16,0.00,COMMERCIAL SUPPLIER 
 11-03-2022,Adults,Black Swan International Ltd - Drummonds,Residential Placements - Private Contractors Payment,1994.16,0.00,COMMERCIAL SUPPLIER 
 11-03-2022,Adults,Black Swan International Ltd - Drummonds,Residential Placements - Private Contractors Payment,1994.16,0.00,COMMERCIAL SUPPLIER 
 11-03-2022,Adults,Black Swan International Ltd - Drummonds,Residential Placements - Private Contractors Payment,1994.16,0.00,COMMERCIAL SUPPLIER 
 11-03-2022,Adults,Black Swan International Ltd - Drummonds,Residential Placements - Private Contractors Payment,1994.16,0.00,COMMERCIAL SUPPLIER 
 11-03-2022,Adults,Black Swan International Ltd - Drummonds,Residential Placements - Private Contractors Payment,1994.16,0.00,COMMERCIAL SUPPLIER 
 11-03-2022,Adults,Black Swan International Ltd - Drummonds,Residential Placements - Private Contractors Payment,1994.16,0.00,COMMERCIAL SUPPLIER 
 11-03-2022,Adults,Havering Care Homes Ltd t/a Upminster Nursing Home,Nursing Homes - Private Contractors Payment,2001.43,0.00,COMMERCIAL SUPPLIER 
 23-03-2022,Adults,Matrix SCM Ltd,Agency Staff,2006.00,0.00,COMMERCIAL SUPPLIER 
 11-03-2022,Adults,Adjuvo Care Essex Ltd ,Supported Other Accommodation - Private Contractors Payment,2006.05,0.00,COMMERCIAL SUPPLIER 
 11-03-2022,Adults,Affinia Healthcare Ltd_a,Supported Other Accommodation - Private Contractors Payment,2025.73,0.00,COMMERCIAL SUPPLIER 
 01-03-2022,Adults,Bluebird Care Havering,Home Care - Private Contractors Payment,2028.78,0.00,COMMERCIAL SUPPLIER 
 14-03-2022,Adults,Bluebird Care Havering,Home Care - Private Contractors Payment,2028.78,0.00,COMMERCIAL SUPPLIER 
 28-03-2022,Adults,Bluebird Care Havering,Home Care - Private Contractors Payment,2028.78,0.00,COMMERCIAL SUPPLIER 
 22-03-2022,Adults,Inna Care Ltd,Other Short Term Support,2048.00,0.00,COMMERCIAL SUPPLIER 
 15-03-2022,Adults,Trinity London Care Ltd,Daycare - Private Contractors Payment,2050.00,0.00,COMMERCIAL SUPPLIER 
 15-03-2022,Adults,Trinity London Care Ltd,Daycare - Private Contractors Payment,2050.00,0.00,COMMERCIAL SUPPLIER 
 15-03-2022,Adults,Trinity London Care Ltd,Daycare - Private Contractors Payment,2050.00,0.00,COMMERCIAL SUPPLIER 
 08-03-2022,Adults,Prestige Care & Support Ltd,Other Short Term Support,2056.00,0.00,COMMERCIAL SUPPLIER 
 11-03-2022,Adults,Bettertogether Limited,Supported Other Accommodation - Private Contractors Payment,2056.00,0.00,NON COMMERCIAL SUPPLIER 
 11-03-2022,Adults,Bettertogether Limited,Supported Other Accommodation - Private Contractors Payment,2056.00,0.00,NON COMMERCIAL SUPPLIER 
 11-03-2022,Adults,Bettertogether Limited,Supported Other Accommodation - Private Contractors Payment,2056.00,0.00,NON COMMERCIAL SUPPLIER 
 11-03-2022,Adults,Oaks Residential Home,Residential Placements - Private Contractors Payment,2064.60,0.00,COMMERCIAL SUPPLIER 
 11-03-2022,Adults,Black Swan International Ltd - Drummonds,Residential Placements - Private Contractors Payment,2065.38,0.00,COMMERCIAL SUPPLIER 
 11-03-2022,Adults,Alpine Resources UK Ltd,Supported Other Accommodation - Private Contractors Payment,2071.43,0.00,COMMERCIAL SUPPLIER 
 07-03-2022,Adults,Gims Care Solution Ltd_a,Home Care - Private Contractors Payment,2080.51,0.00,NON COMMERCIAL SUPPLIER 
 25-03-2022,Adults,KJD Care Limited,Home Care - Private Contractors Payment,2080.51,0.00,INDIVIDUALS 
 11-03-2022,Adults,Outreach Support Services Ltd,Supported Other Accommodation - Private Contractors Payment,2092.14,0.00,COMMERCIAL SUPPLIER 
 03-03-2022,Adults,Care-Away Ltd T/A Care Support,Home Care - Private Contractors Payment,2096.64,0.00,COMMERCIAL SUPPLIER 
 24-03-2022,Adults,Essex Cares Ltd,"Purchase - Equipment, Furniture And Materials",2099.01,0.00,COMMERCIAL SUPPLIER 
 07-03-2022,Adults,London Borough of Barking & Dagenham_a,Daycare - Private Contractors Payment,2100.00,0.00,LOCAL AUTHORITY SERVICES 
 07-03-2022,Adults,London Borough of Barking & Dagenham_a,Daycare - Private Contractors Payment,2100.00,0.00,LOCAL AUTHORITY SERVICES 
 11-03-2022,Adults,Manor Lodge Care Home,Residential Placements - Private Contractors Payment,2100.00,0.00,COMMERCIAL SUPPLIER 
 11-03-2022,Adults,Crowstone Care Home Ltd - The Grange,Residential Placements - Private Contractors Payment,2100.18,0.00,COMMERCIAL SUPPLIER 
 11-03-2022,Adults,One Tree Estates Ltd t/a Ashbrook Nursing Home,Nursing Homes - Private Contractors Payment,2112.00,0.00,COMMERCIAL SUPPLIER 
 11-03-2022,Adults,Inclusive Care Support Limited,Supported Other Accommodation - Private Contractors Payment,2113.56,0.00,COMMERCIAL SUPPLIER 
 09-03-2022,Adults,Matrix SCM Ltd,Agency Staff,2117.80,0.00,COMMERCIAL SUPPLIER 
 11-03-2022,Adults,Havering Care Homes Ltd t/a Abbscross Nursing Home,Nursing Homes - Private Contractors Payment,2128.57,0.00,COMMERCIAL SUPPLIER 
 11-03-2022,Adults,One Tree Estates Ltd t/a Ashbrook Nursing Home,Nursing Homes - Private Contractors Payment,2134.86,0.00,COMMERCIAL SUPPLIER 
 11-03-2022,Adults,Home Sweet Home Care Ltd,Home Care - Private Contractors Payment,2135.93,0.00,COMMERCIAL SUPPLIER 
 11-03-2022,Adults,Runwood Homes Plc - Woodbury Court,Residential Placements - Private Contractors Payment,2154.29,0.00,COMMERCIAL SUPPLIER 
 29-03-2022,Adults,London Homecare Ltd,Home Care - Private Contractors Payment,2154.82,0.00,COMMERCIAL SUPPLIER 
 11-03-2022,Adults,HC-One Oval Ltd - Chaseview,Residential Placements - Private Contractors Payment,2155.43,0.00,COMMERCIAL SUPPLIER 
 09-03-2022,Adults,Matrix SCM Ltd,Agency Staff,2192.40,0.00,COMMERCIAL SUPPLIER 
 23-03-2022,Adults,Matrix SCM Ltd,Agency Staff,2192.40,0.00,COMMERCIAL SUPPLIER 
 11-03-2022,Adults,Beechcourt Care Centre - Bondcare,Nursing Homes - Private Contractors Payment,2194.29,0.00,COMMERCIAL SUPPLIER 
 11-03-2022,Adults,Bondcare (London) Ltd ,Nursing Homes - Private Contractors Payment,2220.00,0.00,COMMERCIAL SUPPLIER 
 11-03-2022,Adults,Outlook Care_a,Supported Other Accommodation - Private Contractors Payment,2222.77,0.00,COMMERCIAL SUPPLIER 
 11-03-2022,Adults,Bettertogether Limited,Supported Other Accommodation - Private Contractors Payment,2236.00,0.00,NON COMMERCIAL SUPPLIER 
 11-03-2022,Adults,Faris Lodge,Supported Other Accommodation - Private Contractors Payment,2236.85,0.00,COMMERCIAL SUPPLIER 
 11-03-2022,Adults,Langley House,Residential Placements - Private Contractors Payment,2249.14,0.00,COMMERCIAL SUPPLIER 
 01-03-2022,Adults,Bluebird Care Havering,Home Care - Private Contractors Payment,2250.00,0.00,COMMERCIAL SUPPLIER 
 14-03-2022,Adults,Bluebird Care Havering,Home Care - Private Contractors Payment,2250.00,0.00,COMMERCIAL SUPPLIER 
 28-03-2022,Adults,Bluebird Care Havering,Home Care - Private Contractors Payment,2250.00,0.00,COMMERCIAL SUPPLIER 
 11-03-2022,Adults,May Residential Homes Ltd,Residential Care Income,2253.20,0.00,COMMERCIAL SUPPLIER 
 16-03-2022,Adults,Matrix SCM Ltd,Agency Staff,2253.80,0.00,COMMERCIAL SUPPLIER 
 11-03-2022,Adults,Fountains Care Centre - Bondcare,Residential Placements - Private Contractors Payment,2268.29,0.00,COMMERCIAL SUPPLIER 
 08-03-2022,Adults,Morepower Ltd t/a Aqs Homecare,Other Short Term Support,2269.00,0.00,COMMERCIAL SUPPLIER 
 11-03-2022,Adults,Ashgate House Ltd_a,Residential Placements - Private Contractors Payment,2272.81,0.00,COMMERCIAL SUPPLIER 
 11-03-2022,Adults,The Maltings Care Home,Residential Placements - Private Contractors Payment,2274.18,0.00,COMMERCIAL SUPPLIER 
 02-03-2022,Adults,Matrix SCM Ltd,Agency Staff,2277.40,0.00,COMMERCIAL SUPPLIER 
 09-03-2022,Adults,Matrix SCM Ltd,Agency Staff,2289.20,0.00,COMMERCIAL SUPPLIER 
 08-03-2022,Adults,Moreland House_a,Other Short Term Support,2299.00,0.00,COMMERCIAL SUPPLIER 
 11-03-2022,Adults,Pathways Care Group Ltd,Residential Placements - Private Contractors Payment,2309.44,0.00,COMMERCIAL SUPPLIER 
 31-03-2022,Adults,Lorablooms Care Services Ltd,Home Care - Private Contractors Payment,2310.00,0.00,NON COMMERCIAL SUPPLIER 
 31-03-2022,Adults,Lorablooms Care Services Ltd,Home Care - Private Contractors Payment,2310.00,0.00,NON COMMERCIAL SUPPLIER 
 11-03-2022,Adults,2 Peel Way - Outlook Care,Supported Other Accommodation - Private Contractors Payment,2313.04,0.00,NON COMMERCIAL SUPPLIER 
 11-03-2022,Adults,Park Riding,Residential Placements - Private Contractors Payment,2319.13,0.00,COMMERCIAL SUPPLIER 
 11-03-2022,Adults,DMP Healthcare (Cherry Orchard) Ltd,Residential Placements - Private Contractors Payment,2324.14,0.00,COMMERCIAL SUPPLIER 
 03-03-2022,Adults,Care-Away Ltd T/A Care Support,Home Care - Private Contractors Payment,2329.60,0.00,COMMERCIAL SUPPLIER 
 11-03-2022,Adults,Livability - John Grooms Court,Residential Placements - Private Contractors Payment,2335.45,0.00,COMMERCIAL SUPPLIER 
 11-03-2022,Adults,Livability - John Grooms Court,Residential Placements - Private Contractors Payment,2335.45,0.00,COMMERCIAL SUPPLIER 
 11-03-2022,Adults,Fountains Care Centre - Bondcare,Residential Placements - Private Contractors Payment,2338.44,0.00,COMMERCIAL SUPPLIER 
 11-03-2022,Adults,Lodge Lane Care Home Limited,Respite Care - Private Contractors Payment,2342.86,0.00,COMMERCIAL SUPPLIER 
 11-03-2022,Adults,Bluebell Residential & Nursing Home,Residential Placements - Private Contractors Payment,2342.86,0.00,COMMERCIAL SUPPLIER 
 11-03-2022,Adults,Bupa Care Homes - Hutton Village,Nursing Homes - Private Contractors Payment,2346.80,0.00,COMMERCIAL SUPPLIER 
 22-03-2022,Adults,Cornerstone Care Services,Other Short Term Support,2363.00,0.00,COMMERCIAL SUPPLIER 
 11-03-2022,Adults,Clearwater Care (Hackney) Ltd - Craigdale,Supported Other Accommodation - Private Contractors Payment,2380.20,0.00,COMMERCIAL SUPPLIER 
 11-03-2022,Adults,Beechcourt Care Centre - Bondcare,Nursing Homes - Private Contractors Payment,2384.00,0.00,COMMERCIAL SUPPLIER 
 11-03-2022,Adults,Ebony Health Care Services Limited,Supported Other Accommodation - Private Contractors Payment,2384.79,0.00,COMMERCIAL SUPPLIER 
 11-03-2022,Adults,Alpine Resources UK Ltd,Supported Other Accommodation - Private Contractors Payment,2385.00,0.00,COMMERCIAL SUPPLIER 
 11-03-2022,Adults,Clearwater Care (Hackney) Ltd - Craigdale,Supported Other Accommodation - Private Contractors Payment,2392.50,0.00,COMMERCIAL SUPPLIER 
 25-03-2022,Adults,KJD Care Limited,Home Care - Private Contractors Payment,2399.30,0.00,INDIVIDUALS 
 11-03-2022,Adults,Manor Lodge Care Home,Residential Placements - Private Contractors Payment,2400.00,0.00,COMMERCIAL SUPPLIER 
 02-03-2022,Adults,Matrix SCM Ltd,Agency Staff,2404.20,0.00,COMMERCIAL SUPPLIER 
 09-03-2022,Adults,Matrix SCM Ltd,Agency Staff,2404.20,0.00,COMMERCIAL SUPPLIER 
 16-03-2022,Adults,Matrix SCM Ltd,Agency Staff,2404.20,0.00,COMMERCIAL SUPPLIER 
 23-03-2022,Adults,Matrix SCM Ltd,Agency Staff,2404.20,0.00,COMMERCIAL SUPPLIER 
 30-03-2022,Adults,Matrix SCM Ltd,Agency Staff,2404.20,0.00,COMMERCIAL SUPPLIER 
 11-03-2022,Adults,Alpine Resources UK Ltd,Supported Other Accommodation - Private Contractors Payment,2415.00,0.00,COMMERCIAL SUPPLIER 
 11-03-2022,Adults,Highfield Care Homes Ltd t/a Romford Grange Care Home,Nursing Homes - Private Contractors Payment,2415.29,0.00,COMMERCIAL SUPPLIER 
 11-03-2022,Adults,Arran Manor,Residential Placements - Private Contractors Payment,2415.55,0.00,COMMERCIAL SUPPLIER 
 11-03-2022,Adults,Fountains Care Centre - Bondcare,Residential Placements - Private Contractors Payment,2419.43,0.00,COMMERCIAL SUPPLIER 
 11-03-2022,Adults,Fountains Care Centre - Bondcare,Residential Placements - Private Contractors Payment,2419.43,0.00,COMMERCIAL SUPPLIER 
 11-03-2022,Adults,Fountains Care Centre - Bondcare,Residential Placements - Private Contractors Payment,2419.43,0.00,COMMERCIAL SUPPLIER 
 11-03-2022,Adults,Fountains Care Centre - Bondcare,Residential Placements - Private Contractors Payment,2419.43,0.00,COMMERCIAL SUPPLIER 
 11-03-2022,Adults,Highfield Care Homes Ltd t/a Romford Grange Care Home,Residential Placements - Private Contractors Payment,2419.43,0.00,COMMERCIAL SUPPLIER 
 11-03-2022,Adults,Highfield Care Homes Ltd t/a Romford Grange Care Home,Residential Placements - Private Contractors Payment,2419.43,0.00,COMMERCIAL SUPPLIER 
 11-03-2022,Adults,Beechcourt Care Centre - Bondcare,Residential Placements - Private Contractors Payment,2419.43,0.00,COMMERCIAL SUPPLIER 
 11-03-2022,Adults,Oakley Carehomes Ltd t/a Abbey Care Home,Residential Placements - Private Contractors Payment,2419.43,0.00,COMMERCIAL SUPPLIER 
 11-03-2022,Adults,Masumin Ltd t/s Abbeleigh House,Residential Placements - Private Contractors Payment,2419.43,0.00,COMMERCIAL SUPPLIER 
 11-03-2022,Adults,Clover Cottage Ltd,Residential Placements - Private Contractors Payment,2419.43,0.00,COMMERCIAL SUPPLIER 
 11-03-2022,Adults,Clover Cottage Ltd,Residential Placements - Private Contractors Payment,2419.43,0.00,COMMERCIAL SUPPLIER 
 11-03-2022,Adults,Clover Cottage Ltd,Residential Placements - Private Contractors Payment,2419.43,0.00,COMMERCIAL SUPPLIER 
 11-03-2022,Adults,Clover Cottage Ltd,Residential Placements - Private Contractors Payment,2419.43,0.00,COMMERCIAL SUPPLIER 
 11-03-2022,Adults,Clover Cottage Ltd,Residential Placements - Private Contractors Payment,2419.43,0.00,COMMERCIAL SUPPLIER 
 11-03-2022,Adults,Langley House,Residential Placements - Private Contractors Payment,2419.43,0.00,COMMERCIAL SUPPLIER 
 11-03-2022,Adults,Langley House,Residential Placements - Private Contractors Payment,2419.43,0.00,COMMERCIAL SUPPLIER 
 11-03-2022,Adults,Langley House,Residential Placements - Private Contractors Payment,2419.43,0.00,COMMERCIAL SUPPLIER 
 11-03-2022,Adults,Oaks Residential Home,Residential Placements - Private Contractors Payment,2419.43,0.00,COMMERCIAL SUPPLIER 
 11-03-2022,Adults,Priory Supporting Care Ltd,Residential Placements - Private Contractors Payment,2419.43,0.00,COMMERCIAL SUPPLIER 
 11-03-2022,Adults,Ash Grove Residential Care Home,Residential Placements - Private Contractors Payment,2419.43,0.00,COMMERCIAL SUPPLIER 
 11-03-2022,Adults,Ash Grove Residential Care Home,Residential Placements - Private Contractors Payment,2419.43,0.00,COMMERCIAL SUPPLIER 
 11-03-2022,Adults,Ash Grove Residential Care Home,Residential Placements - Private Contractors Payment,2419.43,0.00,COMMERCIAL SUPPLIER 
 11-03-2022,Adults,Ash Grove Residential Care Home,Residential Placements - Private Contractors Payment,2419.43,0.00,COMMERCIAL SUPPLIER 
 11-03-2022,Adults,GCH - Hillside Nursing Home,Residential Placements - Private Contractors Payment,2419.43,0.00,COMMERCIAL SUPPLIER 
 11-03-2022,Adults,Genesis Residential Homes Ltd - Dothan House,Residential Placements - Private Contractors Payment,2419.43,0.00,COMMERCIAL SUPPLIER 
 11-03-2022,Adults,Barleycroft Care Home Ltd,Residential Placements - Private Contractors Payment,2419.43,0.00,COMMERCIAL SUPPLIER 
 11-03-2022,Adults,Barleycroft Care Home Ltd,Residential Placements - Private Contractors Payment,2419.43,0.00,COMMERCIAL SUPPLIER 
 11-03-2022,Adults,One Tree Estates Ltd t/a Ashbrook Nursing Home,Nursing Homes - Private Contractors Payment,2428.57,0.00,COMMERCIAL SUPPLIER 
 11-03-2022,Adults,Adjuvo Care and Support Ltd,Supported Other Accommodation - Private Contractors Payment,2430.16,0.00,COMMERCIAL SUPPLIER 
 11-03-2022,Adults,St Mary's House,Residential Placements - Private Contractors Payment,2452.65,0.00,COMMERCIAL SUPPLIER 
 08-03-2022,Adults,Parkside_a,Other Short Term Support,2463.00,0.00,COMMERCIAL SUPPLIER 
 22-03-2022,Adults,Familycare Homes,Other Short Term Support,2463.00,0.00,COMMERCIAL SUPPLIER 
 11-03-2022,Adults,Priory Supporting Care Ltd,Residential Placements - Private Contractors Payment,2463.34,0.00,COMMERCIAL SUPPLIER 
 11-03-2022,Adults,Sandstone Care Liverpool Ltd,Residential Placements - Private Contractors Payment,2464.25,0.00,COMMERCIAL SUPPLIER 
 11-03-2022,Adults,Manor Lodge Care Home,Residential Placements - Private Contractors Payment,2465.92,0.00,COMMERCIAL SUPPLIER 
 11-03-2022,Adults,Manor Lodge Care Home,Residential Placements - Private Contractors Payment,2465.92,0.00,COMMERCIAL SUPPLIER 
 11-03-2022,Adults,DMP Healthcare (Heatherbrook) Ltd,Respite Care - Private Contractors Payment,2468.57,0.00,NON COMMERCIAL SUPPLIER 
 11-03-2022,Adults,Havering Care Homes Ltd t/a Abbscross Nursing Home,Nursing Homes - Private Contractors Payment,2469.14,0.00,COMMERCIAL SUPPLIER 
 11-03-2022,Adults,Havering Care Homes Ltd t/a Abbscross Nursing Home,Nursing Homes - Private Contractors Payment,2469.14,0.00,COMMERCIAL SUPPLIER 
 11-03-2022,Adults,Havering Care Homes Ltd t/a Abbscross Nursing Home,Nursing Homes - Private Contractors Payment,2469.14,0.00,COMMERCIAL SUPPLIER 
 11-03-2022,Adults,One Tree Estates Ltd t/a Ashbrook Nursing Home,Nursing Homes - Private Contractors Payment,2469.14,0.00,COMMERCIAL SUPPLIER 
 11-03-2022,Adults,One Tree Estates Ltd t/a Ashbrook Nursing Home,Nursing Homes - Private Contractors Payment,2469.14,0.00,COMMERCIAL SUPPLIER 
 11-03-2022,Adults,Highfield Care Homes Ltd t/a Romford Grange Care Home,Nursing Homes - Private Contractors Payment,2469.14,0.00,COMMERCIAL SUPPLIER 
 11-03-2022,Adults,Highfield Care Homes Ltd t/a Romford Grange Care Home,Nursing Homes - Private Contractors Payment,2469.14,0.00,COMMERCIAL SUPPLIER 
 11-03-2022,Adults,Highfield Care Homes Ltd t/a Romford Grange Care Home,Residential Placements - Private Contractors Payment,2469.14,0.00,COMMERCIAL SUPPLIER 
 11-03-2022,Adults,Highfield Care Homes Ltd t/a Romford Grange Care Home,Nursing Homes - Private Contractors Payment,2469.14,0.00,COMMERCIAL SUPPLIER 
 11-03-2022,Adults,Highfield Care Homes Ltd t/a Romford Grange Care Home,Nursing Homes - Private Contractors Payment,2469.14,0.00,COMMERCIAL SUPPLIER 
 11-03-2022,Adults,MNS Care Plc_a,Nursing Homes - Private Contractors Payment,2469.14,0.00,COMMERCIAL SUPPLIER 
 11-03-2022,Adults,Havering Care Homes Ltd t/a Upminster Nursing Home,Nursing Homes - Private Contractors Payment,2469.14,0.00,COMMERCIAL SUPPLIER 
 11-03-2022,Adults,Havering Care Homes Ltd t/a Upminster Nursing Home,Nursing Homes - Private Contractors Payment,2469.14,0.00,COMMERCIAL SUPPLIER 
 11-03-2022,Adults,Havering Care Homes Ltd t/a Upminster Nursing Home,Nursing Homes - Private Contractors Payment,2469.14,0.00,COMMERCIAL SUPPLIER 
 11-03-2022,Adults,Havering Care Homes Ltd t/a Upminster Nursing Home,Nursing Homes - Private Contractors Payment,2469.14,0.00,COMMERCIAL SUPPLIER 
 11-03-2022,Adults,Lukka Care Homes Ltd - Ravenscourt,Nursing Homes - Private Contractors Payment,2469.14,0.00,COMMERCIAL SUPPLIER 
 11-03-2022,Adults,HC-One Oval Ltd - The Hornchurch Nursing Centre,Nursing Homes - Private Contractors Payment,2469.14,0.00,COMMERCIAL SUPPLIER 
 11-03-2022,Adults,HC-One Oval Ltd - The Hornchurch Nursing Centre,Nursing Homes - Private Contractors Payment,2469.14,0.00,COMMERCIAL SUPPLIER 
 11-03-2022,Adults,HC-One Oval Ltd - The Hornchurch Nursing Centre,Nursing Homes - Private Contractors Payment,2469.14,0.00,COMMERCIAL SUPPLIER 
 11-03-2022,Adults,HC-One Oval Ltd - The Hornchurch Nursing Centre,Nursing Homes - Private Contractors Payment,2469.14,0.00,COMMERCIAL SUPPLIER 
 11-03-2022,Adults,Beechcourt Care Centre - Bondcare,Nursing Homes - Private Contractors Payment,2469.14,0.00,COMMERCIAL SUPPLIER 
 11-03-2022,Adults,Beechcourt Care Centre - Bondcare,Nursing Homes - Private Contractors Payment,2469.14,0.00,COMMERCIAL SUPPLIER 
 11-03-2022,Adults,Beechcourt Care Centre - Bondcare,Nursing Homes - Private Contractors Payment,2469.14,0.00,COMMERCIAL SUPPLIER 
 11-03-2022,Adults,Beechcourt Care Centre - Bondcare,Nursing Homes - Private Contractors Payment,2469.14,0.00,COMMERCIAL SUPPLIER 
 11-03-2022,Adults,Beechcourt Care Centre - Bondcare,Nursing Homes - Private Contractors Payment,2469.14,0.00,COMMERCIAL SUPPLIER 
 11-03-2022,Adults,Beechcourt Care Centre - Bondcare,Nursing Homes - Private Contractors Payment,2469.14,0.00,COMMERCIAL SUPPLIER 
 11-03-2022,Adults,Beechcourt Care Centre - Bondcare,Nursing Homes - Private Contractors Payment,2469.14,0.00,COMMERCIAL SUPPLIER 
 11-03-2022,Adults,Ladyville Lodge_a,Nursing Homes - Private Contractors Payment,2469.14,0.00,COMMERCIAL SUPPLIER 
 11-03-2022,Adults,Ladyville Lodge_a,Nursing Homes - Private Contractors Payment,2469.14,0.00,COMMERCIAL SUPPLIER 
 11-03-2022,Adults,Barleycroft Care Home Ltd,Nursing Homes - Private Contractors Payment,2469.14,0.00,COMMERCIAL SUPPLIER 
 11-03-2022,Adults,Ranc Care Homes Ltd - Romford Care Centre,Nursing Homes - Private Contractors Payment,2469.14,0.00,COMMERCIAL SUPPLIER 
 11-03-2022,Adults,Alpine Resources UK Ltd,Supported Other Accommodation - Private Contractors Payment,2470.18,0.00,COMMERCIAL SUPPLIER 
 11-03-2022,Adults,Gable Court Nursing Home Ltd,Nursing Homes - Private Contractors Payment,2478.38,0.00,COMMERCIAL SUPPLIER 
 02-03-2022,Adults,Action First Assessments Ltd,Private Contractors Payment - Other,2480.00,0.00,COMMERCIAL SUPPLIER 
 23-03-2022,Adults,Action First Assessments Ltd,Private Contractors Payment - Other,2480.00,0.00,COMMERCIAL SUPPLIER 
 11-03-2022,Adults,Ebony Health Care Services Limited,Supported Other Accommodation - Private Contractors Payment,2485.71,0.00,COMMERCIAL SUPPLIER 
 11-03-2022,Adults,Black Swan International Ltd - Drummonds,Residential Placements - Private Contractors Payment,2494.62,0.00,COMMERCIAL SUPPLIER 
 11-03-2022,Adults,Black Swan International Ltd - Drummonds,Residential Placements - Private Contractors Payment,2494.62,0.00,COMMERCIAL SUPPLIER 
 11-03-2022,Adults,Barchester Healthcare Ltd - Park View Care Home,Residential Placements - Private Contractors Payment,2499.92,0.00,COMMERCIAL SUPPLIER 
 11-03-2022,Adults,Alexander Court Care Centre - Bondcare,Residential Placements - Private Contractors Payment,2499.92,0.00,COMMERCIAL SUPPLIER 
 01-03-2022,Adults,Ladyville Lodge_a,Nursing Homes - Private Contractors Payment,2500.00,0.00,COMMERCIAL SUPPLIER 
 11-03-2022,Adults,Fountains Care Centre - Bondcare,Nursing Homes - Private Contractors Payment,2500.00,0.00,COMMERCIAL SUPPLIER 
 11-03-2022,Adults,Pathways Care Group Ltd,Residential Placements - Private Contractors Payment,2512.15,0.00,COMMERCIAL SUPPLIER 
 11-03-2022,Adults,Ashling House_a,Residential Placements - Private Contractors Payment,2518.86,0.00,COMMERCIAL SUPPLIER 
 11-03-2022,Adults,Alexander Court Care Centre - Bondcare,Nursing Homes - Private Contractors Payment,2520.00,0.00,COMMERCIAL SUPPLIER 
 11-03-2022,Adults,Black Swan International Ltd - Drummonds,Residential Placements - Private Contractors Payment,2523.99,0.00,COMMERCIAL SUPPLIER 
 25-03-2022,Adults,Essex Cares Ltd,Private Contractors Payment - Other,2526.57,0.00,COMMERCIAL SUPPLIER 
 11-03-2022,Adults,One Tree Estates Ltd t/a Ashbrook Nursing Home,Nursing Homes - Private Contractors Payment,2535.14,0.00,COMMERCIAL SUPPLIER 
 11-03-2022,Adults,HC-One Oval Ltd - Chaseview,Nursing Homes - Private Contractors Payment,2543.05,0.00,COMMERCIAL SUPPLIER 
 11-03-2022,Adults,Alexander Court Care Centre - Bondcare,Nursing Homes - Private Contractors Payment,2543.05,0.00,COMMERCIAL SUPPLIER 
 11-03-2022,Adults,Acer Healthcare Operation Ltd,Nursing Homes - Private Contractors Payment,2543.05,0.00,COMMERCIAL SUPPLIER 
 08-03-2022,Adults,Ladyville Lodge_a,Other Short Term Support,2545.00,0.00,COMMERCIAL SUPPLIER 
 11-03-2022,Adults,Westminster Health Care Ltd Derham House,Nursing Homes - Private Contractors Payment,2547.86,0.00,COMMERCIAL SUPPLIER 
 11-03-2022,Adults,Barleycroft Care Home Ltd,Nursing Homes - Private Contractors Payment,2547.86,0.00,COMMERCIAL SUPPLIER 
 11-03-2022,Adults,Barleycroft Care Home Ltd,Nursing Homes - Private Contractors Payment,2547.86,0.00,COMMERCIAL SUPPLIER 
 11-03-2022,Adults,Ladyville Lodge_a,Nursing Homes - Private Contractors Payment,2552.33,0.00,COMMERCIAL SUPPLIER 
 11-03-2022,Adults,Manor Lodge Care Home,Residential Placements - Private Contractors Payment,2553.99,0.00,COMMERCIAL SUPPLIER 
 11-03-2022,Adults,Fountains Care Centre - Bondcare,Nursing Homes - Private Contractors Payment,2560.00,0.00,COMMERCIAL SUPPLIER 
 11-03-2022,Adults,Havering Care Homes Ltd t/a Upminster Nursing Home,Nursing Homes - Private Contractors Payment,2560.00,0.00,COMMERCIAL SUPPLIER 
 11-03-2022,Adults,HC-One Oval Ltd - The Hornchurch Nursing Centre,Nursing Homes - Private Contractors Payment,2560.00,0.00,COMMERCIAL SUPPLIER 
 11-03-2022,Adults,Bondcare (London) Ltd ,Nursing Homes - Private Contractors Payment,2560.00,0.00,COMMERCIAL SUPPLIER 
 11-03-2022,Adults,DMP Healthcare (Heatherbrook) Ltd,Nursing Homes - Private Contractors Payment,2560.00,0.00,NON COMMERCIAL SUPPLIER 
 11-03-2022,Adults,DMP Healthcare (Heatherbrook) Ltd,Nursing Homes - Private Contractors Payment,2560.00,0.00,NON COMMERCIAL SUPPLIER 
 11-03-2022,Adults,GCH - Hillside Nursing Home,Nursing Homes - Private Contractors Payment,2560.00,0.00,COMMERCIAL SUPPLIER 
 03-03-2022,Adults,Care-Away Ltd T/A Care Support,Home Care - Private Contractors Payment,2562.56,0.00,COMMERCIAL SUPPLIER 
 11-03-2022,Adults,Runwood Homes - Windle Court,Residential Placements - Private Contractors Payment,2568.61,0.00,COMMERCIAL SUPPLIER 
 11-03-2022,Adults,St Giles Homes Ltd T/A Forest Home,Residential Placements - Private Contractors Payment,2571.43,0.00,COMMERCIAL SUPPLIER 
 03-03-2022,Adults,Eastway Care Ltd_a,Daycare - Private Contractors Payment,2580.00,0.00,COMMERCIAL SUPPLIER 
 03-03-2022,Adults,Eastway Care Ltd_a,Daycare - Private Contractors Payment,2580.00,0.00,COMMERCIAL SUPPLIER 
 18-03-2022,Adults,Eastway Care Ltd_a,Daycare - Private Contractors Payment,2580.00,0.00,COMMERCIAL SUPPLIER 
 18-03-2022,Adults,Eastway Care Ltd_a,Daycare - Private Contractors Payment,2580.00,0.00,COMMERCIAL SUPPLIER 
 11-03-2022,Adults,Mundy House,Residential Placements - Private Contractors Payment,2586.14,0.00,COMMERCIAL SUPPLIER 
 11-03-2022,Adults,Priory Supporting Care Ltd,Residential Placements - Private Contractors Payment,2586.14,0.00,COMMERCIAL SUPPLIER 
 11-03-2022,Adults,Ebony Health Care Services Limited,Supported Other Accommodation - Private Contractors Payment,2586.14,0.00,COMMERCIAL SUPPLIER 
 11-03-2022,Adults,North Court Care Home,Residential Placements - Private Contractors Payment,2603.50,0.00,COMMERCIAL SUPPLIER 
 11-03-2022,Adults,St Georges Supported Living Ltd,Supported Other Accommodation - Private Contractors Payment,2604.41,0.00,COMMERCIAL SUPPLIER 
 11-03-2022,Adults,Mundy House,Residential Placements - Private Contractors Payment,2606.81,0.00,COMMERCIAL SUPPLIER 
 11-03-2022,Adults,Ranc Care Homes Ltd - Romford Care Centre,Nursing Homes - Private Contractors Payment,2606.86,0.00,COMMERCIAL SUPPLIER 
 11-03-2022,Adults,Beechcourt Care Centre - Bondcare,Residential Placements - Private Contractors Payment,2614.14,0.00,COMMERCIAL SUPPLIER 
 11-03-2022,Adults,May Residential Homes Ltd,Residential Placements - Private Contractors Payment,2614.14,0.00,COMMERCIAL SUPPLIER 
 11-03-2022,Adults,Ebony Health Care Services Limited,Supported Other Accommodation - Private Contractors Payment,2619.32,0.00,COMMERCIAL SUPPLIER 
 11-03-2022,Adults,Black Swan International Ltd - Belamacanda,Residential Placements - Private Contractors Payment,2623.63,0.00,COMMERCIAL SUPPLIER 
 11-03-2022,Adults,HC-One Oval Ltd - The Hornchurch Nursing Centre,Residential Placements - Private Contractors Payment,2624.00,0.00,COMMERCIAL SUPPLIER 
 11-03-2022,Adults,HC-One Oval Ltd - The Hornchurch Nursing Centre,Residential Placements - Private Contractors Payment,2624.00,0.00,COMMERCIAL SUPPLIER 
 11-03-2022,Adults,HC-One Oval Ltd - The Hornchurch Nursing Centre,Residential Placements - Private Contractors Payment,2624.00,0.00,COMMERCIAL SUPPLIER 
 11-03-2022,Adults,Priory Supporting Care Ltd,Residential Placements - Private Contractors Payment,2624.00,0.00,COMMERCIAL SUPPLIER 
 11-03-2022,Adults,Lodge Lane Care Home Limited,Respite Care - Private Contractors Payment,2624.00,0.00,COMMERCIAL SUPPLIER 
 11-03-2022,Adults,Manor Lodge Care Home,Residential Placements - Private Contractors Payment,2624.00,0.00,COMMERCIAL SUPPLIER 
 11-03-2022,Adults,Manor Lodge Care Home,Residential Placements - Private Contractors Payment,2624.00,0.00,COMMERCIAL SUPPLIER 
 21-03-2022,Adults,Romford Private Hire Ltd,Client Transport,2635.00,0.00,COMMERCIAL SUPPLIER 
 15-03-2022,Adults,GCH - Hillside Nursing Home,Nursing Homes - Private Contractors Payment,2640.00,0.00,COMMERCIAL SUPPLIER 
 11-03-2022,Adults,St Georges Supported Living Ltd,Supported Other Accommodation - Private Contractors Payment,2644.76,0.00,COMMERCIAL SUPPLIER 
 11-03-2022,Adults,Fountains Care Centre - Bondcare,Nursing Homes - Private Contractors Payment,2651.43,0.00,COMMERCIAL SUPPLIER 
 11-03-2022,Adults,Fountains Care Centre - Bondcare,Nursing Homes - Private Contractors Payment,2651.43,0.00,COMMERCIAL SUPPLIER 
 11-03-2022,Adults,Fountains Care Centre - Bondcare,Nursing Homes - Private Contractors Payment,2651.43,0.00,COMMERCIAL SUPPLIER 
 11-03-2022,Adults,Fountains Care Centre - Bondcare,Nursing Homes - Private Contractors Payment,2651.43,0.00,COMMERCIAL SUPPLIER 
 11-03-2022,Adults,Fountains Care Centre - Bondcare,Nursing Homes - Private Contractors Payment,2651.43,0.00,COMMERCIAL SUPPLIER 
 11-03-2022,Adults,Fountains Care Centre - Bondcare,Nursing Homes - Private Contractors Payment,2651.43,0.00,COMMERCIAL SUPPLIER 
 11-03-2022,Adults,Fountains Care Centre - Bondcare,Nursing Homes - Private Contractors Payment,2651.43,0.00,COMMERCIAL SUPPLIER 
 11-03-2022,Adults,Fountains Care Centre - Bondcare,Nursing Homes - Private Contractors Payment,2651.43,0.00,COMMERCIAL SUPPLIER 
 11-03-2022,Adults,Fountains Care Centre - Bondcare,Nursing Homes - Private Contractors Payment,2651.43,0.00,COMMERCIAL SUPPLIER 
 11-03-2022,Adults,Fountains Care Centre - Bondcare,Nursing Homes - Private Contractors Payment,2651.43,0.00,COMMERCIAL SUPPLIER 
 11-03-2022,Adults,Fountains Care Centre - Bondcare,Nursing Homes - Private Contractors Payment,2651.43,0.00,COMMERCIAL SUPPLIER 
 11-03-2022,Adults,Havering Care Homes Ltd t/a Abbscross Nursing Home,Nursing Homes - Private Contractors Payment,2651.43,0.00,COMMERCIAL SUPPLIER 
 11-03-2022,Adults,Havering Care Homes Ltd t/a Abbscross Nursing Home,Nursing Homes - Private Contractors Payment,2651.43,0.00,COMMERCIAL SUPPLIER 
 11-03-2022,Adults,Havering Care Homes Ltd t/a Abbscross Nursing Home,Nursing Homes - Private Contractors Payment,2651.43,0.00,COMMERCIAL SUPPLIER 
 11-03-2022,Adults,Havering Care Homes Ltd t/a Abbscross Nursing Home,Nursing Homes - Private Contractors Payment,2651.43,0.00,COMMERCIAL SUPPLIER 
 11-03-2022,Adults,One Tree Estates Ltd t/a Ashbrook Nursing Home,Nursing Homes - Private Contractors Payment,2651.43,0.00,COMMERCIAL SUPPLIER 
 11-03-2022,Adults,One Tree Estates Ltd t/a Ashbrook Nursing Home,Nursing Homes - Private Contractors Payment,2651.43,0.00,COMMERCIAL SUPPLIER 
 11-03-2022,Adults,One Tree Estates Ltd t/a Ashbrook Nursing Home,Nursing Homes - Private Contractors Payment,2651.43,0.00,COMMERCIAL SUPPLIER 
 11-03-2022,Adults,One Tree Estates Ltd t/a Ashbrook Nursing Home,Nursing Homes - Private Contractors Payment,2651.43,0.00,COMMERCIAL SUPPLIER 
 11-03-2022,Adults,One Tree Estates Ltd t/a Ashbrook Nursing Home,Nursing Homes - Private Contractors Payment,2651.43,0.00,COMMERCIAL SUPPLIER 
 11-03-2022,Adults,One Tree Estates Ltd t/a Ashbrook Nursing Home,Nursing Homes - Private Contractors Payment,2651.43,0.00,COMMERCIAL SUPPLIER 
 11-03-2022,Adults,One Tree Estates Ltd t/a Ashbrook Nursing Home,Nursing Homes - Private Contractors Payment,2651.43,0.00,COMMERCIAL SUPPLIER 
 11-03-2022,Adults,One Tree Estates Ltd t/a Ashbrook Nursing Home,Nursing Homes - Private Contractors Payment,2651.43,0.00,COMMERCIAL SUPPLIER 
 11-03-2022,Adults,Highfield Care Homes Ltd t/a Romford Grange Care Home,Nursing Homes - Private Contractors Payment,2651.43,0.00,COMMERCIAL SUPPLIER 
 11-03-2022,Adults,Highfield Care Homes Ltd t/a Romford Grange Care Home,Nursing Homes - Private Contractors Payment,2651.43,0.00,COMMERCIAL SUPPLIER 
 11-03-2022,Adults,Highfield Care Homes Ltd t/a Romford Grange Care Home,Nursing Homes - Private Contractors Payment,2651.43,0.00,COMMERCIAL SUPPLIER 
 11-03-2022,Adults,Highfield Care Homes Ltd t/a Romford Grange Care Home,Nursing Homes - Private Contractors Payment,2651.43,0.00,COMMERCIAL SUPPLIER 
 11-03-2022,Adults,Highfield Care Homes Ltd t/a Romford Grange Care Home,Nursing Homes - Private Contractors Payment,2651.43,0.00,COMMERCIAL SUPPLIER 
 11-03-2022,Adults,Highfield Care Homes Ltd t/a Romford Grange Care Home,Nursing Homes - Private Contractors Payment,2651.43,0.00,COMMERCIAL SUPPLIER 
 11-03-2022,Adults,Bupa Care Homes (HVC) - Havering Court,Nursing Homes - Private Contractors Payment,2651.43,0.00,COMMERCIAL SUPPLIER 
 11-03-2022,Adults,Havering Care Homes Ltd t/a Upminster Nursing Home,Nursing Homes - Private Contractors Payment,2651.43,0.00,COMMERCIAL SUPPLIER 
 11-03-2022,Adults,Havering Care Homes Ltd t/a Upminster Nursing Home,Nursing Homes - Private Contractors Payment,2651.43,0.00,COMMERCIAL SUPPLIER 
 11-03-2022,Adults,Havering Care Homes Ltd t/a Upminster Nursing Home,Nursing Homes - Private Contractors Payment,2651.43,0.00,COMMERCIAL SUPPLIER 
 11-03-2022,Adults,Havering Care Homes Ltd t/a Upminster Nursing Home,Nursing Homes - Private Contractors Payment,2651.43,0.00,COMMERCIAL SUPPLIER 
 11-03-2022,Adults,Havering Care Homes Ltd t/a Upminster Nursing Home,Nursing Homes - Private Contractors Payment,2651.43,0.00,COMMERCIAL SUPPLIER 
 11-03-2022,Adults,Lukka Care Homes Ltd - Ravenscourt,Nursing Homes - Private Contractors Payment,2651.43,0.00,COMMERCIAL SUPPLIER 
 11-03-2022,Adults,Lukka Care Homes Ltd - Ravenscourt,Nursing Homes - Private Contractors Payment,2651.43,0.00,COMMERCIAL SUPPLIER 
 11-03-2022,Adults,HC-One Oval Ltd - The Hornchurch Nursing Centre,Nursing Homes - Private Contractors Payment,2651.43,0.00,COMMERCIAL SUPPLIER 
 11-03-2022,Adults,HC-One Oval Ltd - The Hornchurch Nursing Centre,Nursing Homes - Private Contractors Payment,2651.43,0.00,COMMERCIAL SUPPLIER 
 11-03-2022,Adults,HC-One Oval Ltd - The Hornchurch Nursing Centre,Nursing Homes - Private Contractors Payment,2651.43,0.00,COMMERCIAL SUPPLIER 
 11-03-2022,Adults,HC-One Oval Ltd - The Hornchurch Nursing Centre,Nursing Homes - Private Contractors Payment,2651.43,0.00,COMMERCIAL SUPPLIER 
 11-03-2022,Adults,HC-One Oval Ltd - The Hornchurch Nursing Centre,Nursing Homes - Private Contractors Payment,2651.43,0.00,COMMERCIAL SUPPLIER 
 11-03-2022,Adults,HC-One Oval Ltd - The Hornchurch Nursing Centre,Nursing Homes - Private Contractors Payment,2651.43,0.00,COMMERCIAL SUPPLIER 
 11-03-2022,Adults,HC-One Oval Ltd - The Hornchurch Nursing Centre,Nursing Homes - Private Contractors Payment,2651.43,0.00,COMMERCIAL SUPPLIER 
 11-03-2022,Adults,HC-One Oval Ltd - The Hornchurch Nursing Centre,Nursing Homes - Private Contractors Payment,2651.43,0.00,COMMERCIAL SUPPLIER 
 11-03-2022,Adults,Beechcourt Care Centre - Bondcare,Nursing Homes - Private Contractors Payment,2651.43,0.00,COMMERCIAL SUPPLIER 
 11-03-2022,Adults,Beechcourt Care Centre - Bondcare,Nursing Homes - Private Contractors Payment,2651.43,0.00,COMMERCIAL SUPPLIER 
 11-03-2022,Adults,Beechcourt Care Centre - Bondcare,Nursing Homes - Private Contractors Payment,2651.43,0.00,COMMERCIAL SUPPLIER 
 11-03-2022,Adults,Beechcourt Care Centre - Bondcare,Nursing Homes - Private Contractors Payment,2651.43,0.00,COMMERCIAL SUPPLIER 
 11-03-2022,Adults,Beechcourt Care Centre - Bondcare,Nursing Homes - Private Contractors Payment,2651.43,0.00,COMMERCIAL SUPPLIER 
 11-03-2022,Adults,Beechcourt Care Centre - Bondcare,Nursing Homes - Private Contractors Payment,2651.43,0.00,COMMERCIAL SUPPLIER 
 11-03-2022,Adults,Beechcourt Care Centre - Bondcare,Nursing Homes - Private Contractors Payment,2651.43,0.00,COMMERCIAL SUPPLIER 
 11-03-2022,Adults,Beechcourt Care Centre - Bondcare,Nursing Homes - Private Contractors Payment,2651.43,0.00,COMMERCIAL SUPPLIER 
 11-03-2022,Adults,Beechcourt Care Centre - Bondcare,Nursing Homes - Private Contractors Payment,2651.43,0.00,COMMERCIAL SUPPLIER 
 11-03-2022,Adults,Beechcourt Care Centre - Bondcare,Nursing Homes - Private Contractors Payment,2651.43,0.00,COMMERCIAL SUPPLIER 
 11-03-2022,Adults,Beechcourt Care Centre - Bondcare,Nursing Homes - Private Contractors Payment,2651.43,0.00,COMMERCIAL SUPPLIER 
 11-03-2022,Adults,Beechcourt Care Centre - Bondcare,Nursing Homes - Private Contractors Payment,2651.43,0.00,COMMERCIAL SUPPLIER 
 11-03-2022,Adults,Beechcourt Care Centre - Bondcare,Nursing Homes - Private Contractors Payment,2651.43,0.00,COMMERCIAL SUPPLIER 
 11-03-2022,Adults,Beechcourt Care Centre - Bondcare,Nursing Homes - Private Contractors Payment,2651.43,0.00,COMMERCIAL SUPPLIER 
 11-03-2022,Adults,Beechcourt Care Centre - Bondcare,Nursing Homes - Private Contractors Payment,2651.43,0.00,COMMERCIAL SUPPLIER 
 11-03-2022,Adults,Beechcourt Care Centre - Bondcare,Nursing Homes - Private Contractors Payment,2651.43,0.00,COMMERCIAL SUPPLIER 
 11-03-2022,Adults,Bondcare (London) Ltd ,Nursing Homes - Private Contractors Payment,2651.43,0.00,COMMERCIAL SUPPLIER 
 11-03-2022,Adults,Bondcare (London) Ltd ,Nursing Homes - Private Contractors Payment,2651.43,0.00,COMMERCIAL SUPPLIER 
 11-03-2022,Adults,Alexander Court Care Centre - Bondcare,Nursing Homes - Private Contractors Payment,2651.43,0.00,COMMERCIAL SUPPLIER 
 11-03-2022,Adults,Alexander Court Care Centre - Bondcare,Nursing Homes - Private Contractors Payment,2651.43,0.00,COMMERCIAL SUPPLIER 
 11-03-2022,Adults,DMP Healthcare (Heatherbrook) Ltd,Nursing Homes - Private Contractors Payment,2651.43,0.00,NON COMMERCIAL SUPPLIER 
 11-03-2022,Adults,DMP Healthcare (Heatherbrook) Ltd,Nursing Homes - Private Contractors Payment,2651.43,0.00,NON COMMERCIAL SUPPLIER 
 11-03-2022,Adults,DMP Healthcare (Heatherbrook) Ltd,Nursing Homes - Private Contractors Payment,2651.43,0.00,NON COMMERCIAL SUPPLIER 
 11-03-2022,Adults,DMP Healthcare (Heatherbrook) Ltd,Nursing Homes - Private Contractors Payment,2651.43,0.00,NON COMMERCIAL SUPPLIER 
 11-03-2022,Adults,DMP Healthcare (Heatherbrook) Ltd,Nursing Homes - Private Contractors Payment,2651.43,0.00,NON COMMERCIAL SUPPLIER 
 11-03-2022,Adults,DMP Healthcare (Heatherbrook) Ltd,Nursing Homes - Private Contractors Payment,2651.43,0.00,NON COMMERCIAL SUPPLIER 
 11-03-2022,Adults,DMP Healthcare (Heatherbrook) Ltd,Nursing Homes - Private Contractors Payment,2651.43,0.00,NON COMMERCIAL SUPPLIER 
 11-03-2022,Adults,DMP Healthcare (Heatherbrook) Ltd,Nursing Homes - Private Contractors Payment,2651.43,0.00,NON COMMERCIAL SUPPLIER 
 11-03-2022,Adults,Moreland House_a,Nursing Homes - Private Contractors Payment,2651.43,0.00,COMMERCIAL SUPPLIER 
 11-03-2022,Adults,Moreland House_a,Nursing Homes - Private Contractors Payment,2651.43,0.00,COMMERCIAL SUPPLIER 
 11-03-2022,Adults,Moreland House_a,Nursing Homes - Private Contractors Payment,2651.43,0.00,COMMERCIAL SUPPLIER 
 11-03-2022,Adults,GCH - Hillside Nursing Home,Nursing Homes - Private Contractors Payment,2651.43,0.00,COMMERCIAL SUPPLIER 
 11-03-2022,Adults,GCH - Hillside Nursing Home,Nursing Homes - Private Contractors Payment,2651.43,0.00,COMMERCIAL SUPPLIER 
 11-03-2022,Adults,GCH - Hillside Nursing Home,Nursing Homes - Private Contractors Payment,2651.43,0.00,COMMERCIAL SUPPLIER 
 11-03-2022,Adults,GCH - Hillside Nursing Home,Nursing Homes - Private Contractors Payment,2651.43,0.00,COMMERCIAL SUPPLIER 
 11-03-2022,Adults,GCH - Hillside Nursing Home,Nursing Homes - Private Contractors Payment,2651.43,0.00,COMMERCIAL SUPPLIER 
 11-03-2022,Adults,GCH - Hillside Nursing Home,Nursing Homes - Private Contractors Payment,2651.43,0.00,COMMERCIAL SUPPLIER 
 11-03-2022,Adults,GCH - Hillside Nursing Home,Nursing Homes - Private Contractors Payment,2651.43,0.00,COMMERCIAL SUPPLIER 
 11-03-2022,Adults,DMP Healthcare (Cherry Orchard) Ltd,Nursing Homes - Private Contractors Payment,2651.43,0.00,COMMERCIAL SUPPLIER 
 11-03-2022,Adults,Castle Care UK Ltd,Nursing Homes - Private Contractors Payment,2651.43,0.00,COMMERCIAL SUPPLIER 
 11-03-2022,Adults,Barleycroft Care Home Ltd,Nursing Homes - Private Contractors Payment,2651.43,0.00,COMMERCIAL SUPPLIER 
